Service Area,Service Division,Expense Type,Expense Code,Detailed Expense Type,Payment Date,Transaction Number,Amount Exc Vat,Supplier Name
Adults Wellbeing and Health,Central Charges,Premises,125009,Rents,02-Apr-12,2430308-62,"12,500.00",FINKLEGATE PROPERTIES LTD.
Adults Wellbeing and Health,Commissioning inc Supporting People,Third Party Payments,478111,Purchase of Care,02-Apr-12,2430152-APRIL2012,"1,088.75",REDACTED - PAYMENT TO INDIVIDUAL
Adults Wellbeing and Health,Commissioning inc Supporting People,Third Party Payments,478111,Purchase of Care,02-Apr-12,2430604-APRIL2012,"1,265.55",REDACTED - PAYMENT TO INDIVIDUAL
Adults Wellbeing and Health,Commissioning inc Supporting People,Third Party Payments,478111,Purchase of Care,02-Apr-12,2430388-APRIL2012,"1,265.55",REDACTED - PAYMENT TO INDIVIDUAL
Adults Wellbeing and Health,Financing-Adult Services,Debtors,930131,Debtor-Hospital Re-Admission Avoidance Project,02-Apr-12,2430398-13216,883.56,KELLY PARK CARING AGENCY LTD.
Adults Wellbeing and Health,Head of Adults,Employees,80025,Agency Staff,02-Apr-12,2430128-G2438582-DN-1,"2,577.15",ALLIED HEALTHCARE GROUP LTD.
Adults Wellbeing and Health,Head of Adults,Employees,80025,Agency Staff,02-Apr-12,2430128-G2438583-DN-1,716.25,ALLIED HEALTHCARE GROUP LTD.
Adults Wellbeing and Health,Head of Adults,Employees,80025,Agency Staff,02-Apr-12,2430128-G2438601-DN-1,639.48,ALLIED HEALTHCARE GROUP LTD.
Adults Wellbeing and Health,Head of Adults,Employees,80025,Agency Staff,02-Apr-12,2430128-G2444149-DN-1,904.7,ALLIED HEALTHCARE GROUP LTD.
Adults Wellbeing and Health,Head of Adults,Employees,80025,Agency Staff,02-Apr-12,2430128-G2444150-DN-1,584.3,ALLIED HEALTHCARE GROUP LTD.
Adults Wellbeing and Health,Head of Adults,Employees,80025,Agency Staff,02-Apr-12,2430128-G2444169-DN-1,"3,858.70",ALLIED HEALTHCARE GROUP LTD.
Adults Wellbeing and Health,Head of Adults,Employees,80025,Agency Staff,02-Apr-12,2430128-G2449719-DN-1,"1,517.40",ALLIED HEALTHCARE GROUP LTD.
Adults Wellbeing and Health,Head of Adults,Employees,80025,Agency Staff,02-Apr-12,2430128-G2449739-DN-1,"3,194.38",ALLIED HEALTHCARE GROUP LTD.
Adults Wellbeing and Health,Head of Adults,Employees,80025,Agency Staff,02-Apr-12,2430128-G2449741-DN-1,604.82,ALLIED HEALTHCARE GROUP LTD.
Adults Wellbeing and Health,Head of Adults,Employees,80025,Agency Staff,02-Apr-12,2430128-G2455417-DN-1,"1,398.80",ALLIED HEALTHCARE GROUP LTD.
Adults Wellbeing and Health,Head of Adults,Employees,80025,Agency Staff,02-Apr-12,2430128-G2455438-DN-1,"2,538.20",ALLIED HEALTHCARE GROUP LTD.
Adults Wellbeing and Health,Head of Adults,Employees,80025,Agency Staff,02-Apr-12,2430128-G2461756-DN-1,"1,500.60",ALLIED HEALTHCARE GROUP LTD.
Adults Wellbeing and Health,Head of Adults,Employees,80025,Agency Staff,02-Apr-12,2430128-G2461775-DN-1,"2,198.52",ALLIED HEALTHCARE GROUP LTD.
Adults Wellbeing and Health,Head of Adults,Employees,80025,Agency Staff,02-Apr-12,2430128-LD,"3,336.84",ALLIED HEALTHCARE GROUP LTD.
Adults Wellbeing and Health,Head of Adults,Employees,80025,Agency Staff,02-Apr-12,2430128-SC,"4,412.06",ALLIED HEALTHCARE GROUP LTD.
Adults Wellbeing and Health,Head of Adults,Transport,240001,Car Allowances,02-Apr-12,2430382-LWH/JBS/78,"1,198.05",JB SKILLCARE LTD.
Adults Wellbeing and Health,Head of Adults,Supplies and Services,324117,Provisions,02-Apr-12,2430393-K64053,876.25,JR HOLLAND FOOD SERVICES LTD.
Adults Wellbeing and Health,Head of Adults,Premises,125009,Rents,02-Apr-12,2430416-SI-001382,"26,730.00",LEISUREWORKS.
Adults Wellbeing and Health,Head of Adults,Premises,108301,Service Repairs and Maintenance,02-Apr-12,2430416-SI-001383,"21,707.00",LEISUREWORKS.
Adults Wellbeing and Health,Head of Adults,Premises,125009,Rents,02-Apr-12,2430727-182324,"1,172.55",WHITTLE JONES (GROUP) LTD.
Adults Wellbeing and Health,Head of Adults,Premises,125009,Rents,02-Apr-12,2430727-183026,"5,971.75",WHITTLE JONES (GROUP) LTD.
Adults Wellbeing and Health,Head of Adults,Premises,125009,Rents,02-Apr-12,2430255-GLSR,"4,215.60",DERWENTSIDE HOMES LTD.
Adults Wellbeing and Health,Head of Adults,Premises,125009,Rents,02-Apr-12,2430338-2400-035200,"3,297.26",GVA GRIMLEY LLP.
Adults Wellbeing and Health,Head of Adults,Premises,125009,Rents,02-Apr-12,2430378-APRIL2012,585.06,REDACTED - PAYMENT TO INDIVIDUAL
Adults Wellbeing and Health,Head of Adults,Premises,125009,Rents,02-Apr-12,2430342-92759,"1,236.99",HARLEY STREET INTERNATIONAL LTD.
Adults Wellbeing and Health,Head of Adults,Premises,125009,Rents,02-Apr-12,2430419-00015378-0Q1,"1,127.52",LIVIN HOUSING LTD.
Adults Wellbeing and Health,Head of Adults,Supplies and Services,338045,Services,02-Apr-12,2430683-171749,"3,000.00",THIRTY NINE ESSEX STREET.
Adults Wellbeing and Health,Head of Adults,Summary reporting level,720045,Fees and Charges,02-Apr-12,2430472-R,"6,159.99",REDACTED - PAYMENT TO INDIVIDUAL
Adults Wellbeing and Health,Head of Adults,Premises,125009,Rents,02-Apr-12,2430265-592338,743.33,DTZ DTL LTD CLIENT A/C.
Adults Wellbeing and Health,Planning and Performance,Supplies and Services,338089,Services,02-Apr-12,2430487-2DAY8-29/2/12,"1,200.00",NEDATS.
Adults Wellbeing and Health,Planning and Performance,Third Party Payments,479102,Purchase of Care,02-Apr-12,2430680-5670,532.44,THE ROAD CENTRE LTD.
Adults Wellbeing and Health,Planning and Performance,Supplies and Services,304421,Equipment and Materials,02-Apr-12,2430703-389278,517.54,UNITED CARLTON OFFICE SYSTEMS LTD.
Adults Wellbeing and Health,Planning and Performance,Supplies and Services,338091,Services,02-Apr-12,2430705-5011P,"1,555.00",UNIVERSITY OF NEWCASTLE UPON TYNE.
Adults Wellbeing and Health,Planning and Performance,Premises,125009,Rents,02-Apr-12,2430494-5400511/BUS/17265,"1,970.57",NETWORK RAIL.
Adults Wellbeing and Health,Planning and Performance,Premises,125009,Rents,02-Apr-12,2430435-1203077,"18,967.50",MANDALE INVESTMENTS LTD.
Adults Wellbeing and Health,Planning and Performance,Supplies and Services,384540,Miscellaneous Expenses,02-Apr-12,2430685-100000881654,"1,000.00",TMP (UK) LTD (RECRUITMENT).
Adults Wellbeing and Health,Social Inclusion,Supplies and Services,312009,"Newspapers, Books and Periodicals",02-Apr-12,2430117-NO1007521,933.66,ACTIVE LEARNING.
Adults Wellbeing and Health,Social Inclusion,Supplies and Services,384199,Miscellaneous Expenses,02-Apr-12,2430269-20009211,"2,027.84",DURHAM CONSTABULARY.
Adults Wellbeing and Health,Social Inclusion,Supplies and Services,384199,Miscellaneous Expenses,02-Apr-12,2430447-2057,875,MID NITE EXPRESS.
Adults Wellbeing and Health,Social Inclusion,Supplies and Services,384199,Miscellaneous Expenses,02-Apr-12,2430447-2058,"1,750.00",MID NITE EXPRESS.
Adults Wellbeing and Health,Social Inclusion,Supplies and Services,338078,Services,02-Apr-12,2430560-53215,976.15,PROTECTOR SECURITY GROUP LTD.
Adults Wellbeing and Health,Social Inclusion,Supplies and Services,338099,Services,02-Apr-12,2430279-414,"1,000.00",EAST DURHAM TRUST.
Adults Wellbeing and Health,Social Inclusion,Supplies and Services,338099,Services,02-Apr-12,2430279-447,"1,000.00",EAST DURHAM TRUST.
Adults Wellbeing and Health,Social Inclusion,Supplies and Services,338099,Services,02-Apr-12,2430270-DDH120,"1,000.00",DURHAM DALES HEALTH.
Assistant Chief Executive,Assistant Chief Executive Financing,Supplies and Services,340001,Postages,02-Apr-12,2430590-9038000073,"2,331.49",ROYAL MAIL GROUP PLC.
Assistant Chief Executive,Partnerships & Community Engagement Div.,Supplies and Services,384085,Miscellaneous Expenses,02-Apr-12,2430142-HUGS008-11,500,ASSOCIATION OF TEESDALE DAY CLUBS.
Assistant Chief Executive,Partnerships & Community Engagement Div.,Cap Exp on Grants & Other Financial Assistance (REFCUS),918004,Contributions to other bodies,02-Apr-12,2430269-DVLY001-NM10-P-C,"14,000.00",DURHAM CONSTABULARY.
Assistant Chief Executive,Partnerships & Community Engagement Div.,Supplies and Services,384086,Miscellaneous Expenses,02-Apr-12,2430312-EDRC012-NB11,"9,550.00",FISHBURN YOUTH & COMMUNITY CENTRE.
Assistant Chief Executive,Partnerships & Community Engagement Div.,Supplies and Services,384086,Miscellaneous Expenses,02-Apr-12,2430506-STAN028-NB11,"2,000.00",NORTH DURHAM ACADEMY.
Assistant Chief Executive,Partnerships & Community Engagement Div.,Transfer Payments,525030,Other,02-Apr-12,2430531-L,"1,916.00",PARKSIDE SPORTS COLLEGE ACADEMY..
Assistant Chief Executive,Partnerships & Community Engagement Div.,Transfer Payments,525030,Other,02-Apr-12,2430538-CHES009-AB11,"15,750.00",PELTON FELL COMMUNITY PARTNERSHIP.
Assistant Chief Executive,Partnerships & Community Engagement Div.,Transfer Payments,525030,Other,02-Apr-12,2430629-SPEN011-AB11,"5,800.00",SOUTH DURHAM ENG & MANUFACTURING FORUM LTD.
Assistant Chief Executive,Partnerships & Community Engagement Div.,Transfer Payments,525030,Other,02-Apr-12,2430653-CHES007-AB10F,"16,658.00",SUNDERLAND AFC FOUNDATION.
Assistant Chief Executive,Partnerships & Community Engagement Div.,Cap Exp on Grants & Other Financial Assistance (REFCUS),918004,Contributions to other bodies,02-Apr-12,2430686-TEES016-NB11,"11,000.00",TOFT HILL & ETHERLEY COMMUNITY ASSOCIATION.
Assistant Chief Executive,Partnerships & Community Engagement Div.,Supplies and Services,384086,Miscellaneous Expenses,02-Apr-12,2430691-3TWN036-NB11,"4,000.00",TOW LAW COMMUNITY ASSOCIATION.
Assistant Chief Executive,Planning & Performance Division,Employees,40149,"Recruitment, Instruction and Training",02-Apr-12,2430374-7692,"1,500.00",IT TRAINING SOLUTIONS LTD.
Children and Young Peoples Services,CYPS - Local Authority,Construction Work,908105,Construction work,02-Apr-12,2430114-27283,"2,452.00",A1 SHEET METAL FLUES LTD.
Children and Young Peoples Services,CYPS - Local Authority,Premises,125009,Rents,02-Apr-12,2430160-D09379,"10,737.11",BRADLEY HALL CHARTERED SURVEYORS CLIENT ACCOUNT.
Children and Young Peoples Services,CYPS - Local Authority,Premises,125009,Rents,02-Apr-12,2430160-D09380,"4,223.64",BRADLEY HALL CHARTERED SURVEYORS CLIENT ACCOUNT.
Children and Young Peoples Services,CYPS - Local Authority,Premises,125009,Rents,02-Apr-12,2430160-D09434,"4,280.95",BRADLEY HALL CHARTERED SURVEYORS CLIENT ACCOUNT.
Children and Young Peoples Services,CYPS - Local Authority,Supplies and Services,384491,Miscellaneous Expenses,02-Apr-12,2430173-C19,"1,113.00",BUTTERCUP NURSERIES LTD.
Children and Young Peoples Services,CYPS - Local Authority,Transfer Payments,510026,School Children,02-Apr-12,2430174-MID-T-R,"10,913.61",BUTTERKNOWLE & DIST VILLAGE HALL ASSOCIATION.
Children and Young Peoples Services,CYPS - Local Authority,Supplies and Services,338045,Services,02-Apr-12,2430197-DM/01/12/02/FG,"1,371.42",CHILDSAFE ASSOCIATES.
Children and Young Peoples Services,CYPS - Local Authority,Transport,230005,Contract Hire,02-Apr-12,2430206-12/005,724,CLUBMAN CABS.
Children and Young Peoples Services,CYPS - Local Authority,Employees,40149,"Recruitment, Instruction and Training",02-Apr-12,2430231-0000000098,962.49,CTC CHARITABLE TRUST.
Children and Young Peoples Services,CYPS - Local Authority,Supplies and Services,384199,Miscellaneous Expenses,02-Apr-12,2430239-MC12/06,"2,830.82",DALES AREA EIC.
Children and Young Peoples Services,CYPS - Local Authority,Supplies and Services,384999,Miscellaneous Expenses,02-Apr-12,2430253-ST11/12,"4,423.31",DERIC YOUTH BUS PROJECT.
Children and Young Peoples Services,CYPS - Local Authority,Supplies and Services,384999,Miscellaneous Expenses,02-Apr-12,2430266-BG,"4,956.00",DUKE OF EDINBURGHS AWARD.
Children and Young Peoples Services,CYPS - Local Authority,Supplies and Services,340001,Postages,02-Apr-12,2430314-54370APR12,"1,000.00",FP TELESET.
Children and Young Peoples Services,CYPS - Local Authority,Supplies and Services,364352,Grants to Voluntary Organisations,02-Apr-12,2430326-SIGN/00027954,697.12,GENTOO CONSTRUCTION LTD.
Children and Young Peoples Services,CYPS - Local Authority,Premises,145051,Cleaning and Domestic Supplies,02-Apr-12,2430329-117651,515.61,GLADMAN ESTATE MANAGEMENT LTD.
Children and Young Peoples Services,CYPS - Local Authority,Premises,108099,Service Repairs and Maintenance,02-Apr-12,2430338-2400-035186,"13,027.37",GVA GRIMLEY LLP.
Children and Young Peoples Services,CYPS - Local Authority,Supplies and Services,342007,Computers and Communications,02-Apr-12,2430364-2227/1189,980,INDIGO MULTIMEDIA LTD.
Children and Young Peoples Services,CYPS - Local Authority,Transport,230005,Contract Hire,02-Apr-12,2430423-981,"1,260.00",LOCAL TRANSPORT LTD.
Children and Young Peoples Services,CYPS - Local Authority,Transport,230005,Contract Hire,02-Apr-12,2430423-982,"2,206.00",LOCAL TRANSPORT LTD.
Children and Young Peoples Services,CYPS - Local Authority,"Vehicles, Equipment, Furniture and Fittings",912529,Purchase-equipment,02-Apr-12,2430428-1312,"3,280.00",LYNCH HEALTHCARE LTD.
Children and Young Peoples Services,CYPS - Local Authority,"Vehicles, Equipment, Furniture and Fittings",912529,Purchase-equipment,02-Apr-12,2430428-1313,770,LYNCH HEALTHCARE LTD.
Children and Young Peoples Services,CYPS - Local Authority,Supplies and Services,338045,Services,02-Apr-12,2430452-284087/INVDEC2,950,MISS DIANE CAMPBELL.
Children and Young Peoples Services,CYPS - Local Authority,Supplies and Services,338045,Services,02-Apr-12,2430453-AJK/SA/0431-281132,950,MISS SARAH WOOLRICH.
Children and Young Peoples Services,CYPS - Local Authority,Supplies and Services,338045,Services,02-Apr-12,2430454-284087/INVSEB12,500,MISS SUSAN BOOTHROYD.
Children and Young Peoples Services,CYPS - Local Authority,Supplies and Services,338045,Services,02-Apr-12,2430458-178147,800,MR CHARLES MCCAIN.
Children and Young Peoples Services,CYPS - Local Authority,Supplies and Services,338045,Services,02-Apr-12,2430460-284291/INVFM15,800,MR FRAZER MCDERMOTT.
Children and Young Peoples Services,CYPS - Local Authority,Supplies and Services,338045,Services,02-Apr-12,2430463-283641/INVKA7,750,MR KESTER ARMSTRONG.
Children and Young Peoples Services,CYPS - Local Authority,Supplies and Services,338045,Services,02-Apr-12,2430464-AJK/SA/0384-279886,500,MR MARTIN TODD.
Children and Young Peoples Services,CYPS - Local Authority,Supplies and Services,338027,Services,02-Apr-12,2430476-FEB12,"1,001.25",REDACTED - PAYMENT TO INDIVIDUAL
Children and Young Peoples Services,CYPS - Local Authority,Supplies and Services,340001,Postages,02-Apr-12,2430491-A/C236027MARCH2012,"1,000.00",NEOPOST LTD CREDIFON RCB ACCOUNT.
Children and Young Peoples Services,CYPS - Local Authority,Transport,230005,Contract Hire,02-Apr-12,2430512-SL01075849INV,598.4,NORTHGATE VEHICLE HIRE LTD.
Children and Young Peoples Services,CYPS - Local Authority,Supplies and Services,338057,Services,02-Apr-12,2430513-525120,"8,727.00",NORTHUMBERLAND TYNE & WEAR NHS TRUST.
Children and Young Peoples Services,CYPS - Local Authority,Supplies and Services,338099,Services,02-Apr-12,2430517-SV10/37741,726.18,NSPCC.
Children and Young Peoples Services,CYPS - Local Authority,Supplies and Services,384199,Miscellaneous Expenses,02-Apr-12,2430517-SV10/38249,726.18,NSPCC.
Children and Young Peoples Services,CYPS - Local Authority,Supplies and Services,384199,Miscellaneous Expenses,02-Apr-12,2430533-OPC,980,PAULA CROSBY COUNSELLING SERVICES..
Children and Young Peoples Services,CYPS - Local Authority,Premises,108301,Service Repairs and Maintenance,02-Apr-12,2430541-MI,"2,990.00",PETERLEE YOUTH CENTRE.
Children and Young Peoples Services,CYPS - Local Authority,Premises,125009,Rents,02-Apr-12,2430542-12023,"13,125.00",PETHERICKS LTD.
Children and Young Peoples Services,CYPS - Local Authority,Supplies and Services,384999,Miscellaneous Expenses,02-Apr-12,2430597-G-A-S,"1,720.00",SACRISTON COMMUNITY DEVELOPMENT GROUP.
Children and Young Peoples Services,CYPS - Local Authority,Transport,230005,Contract Hire,02-Apr-12,2430618-41392MAR12,584,SHOTTON PRIVATE HIRE.
Children and Young Peoples Services,CYPS - Local Authority,Transport,230005,Contract Hire,02-Apr-12,2430618-41393MAR12,534,SHOTTON PRIVATE HIRE.
Children and Young Peoples Services,CYPS - Local Authority,Supplies and Services,384899,Miscellaneous Expenses,02-Apr-12,2430630-YPGA,"1,720.00",SOUTH HETTON & DISTRICT COMMUNITY ASSOCIATION.
Children and Young Peoples Services,CYPS - Local Authority,Supplies and Services,384999,Miscellaneous Expenses,02-Apr-12,2430630-YWDGYP,"2,000.00",SOUTH HETTON & DISTRICT COMMUNITY ASSOCIATION.
Children and Young Peoples Services,CYPS - Local Authority,Transfer Payments,510026,School Children,02-Apr-12,2430638-M-M-R,"9,295.45",SPENNYMOOR YOUTH & COMMUNITY ASSOCIATION.
Children and Young Peoples Services,CYPS - Local Authority,Creditors,952011,Creditors-Government grants,02-Apr-12,2430662-PP,634.13,TALBOT HOUSE SCHOOL.
Children and Young Peoples Services,CYPS - Local Authority,Transport,230007,Contract Hire,02-Apr-12,2430690-TS2,960,TOP STAR TRAVEL.
Children and Young Peoples Services,CYPS - Local Authority,Transport,230007,Contract Hire,02-Apr-12,2430690-TS3,"1,280.00",TOP STAR TRAVEL.
Children and Young Peoples Services,CYPS - Local Authority,Transfer Payments,510026,School Children,02-Apr-12,2430724-R11/12,"6,841.62",WEST RAINTON YOUTH PROJECT.
Children and Young Peoples Services,Dedicated Schools Grant,Transport,230007,Contract Hire,02-Apr-12,2430690-TS1,"1,760.00",TOP STAR TRAVEL.
Corporate Resources,Financing- Resources,Supplies and Services,340001,Postages,02-Apr-12,2430589-9037746122,"1,986.11",ROYAL MAIL GROUP PLC.
Corporate Resources,Financing- Resources,Supplies and Services,340001,Postages,02-Apr-12,2430589-9037922551,"6,983.34",ROYAL MAIL GROUP PLC.
Corporate Resources,Financing- Resources,Supplies and Services,340001,Postages,02-Apr-12,2430590-9037470048,"1,023.05",ROYAL MAIL GROUP PLC.
Corporate Resources,ICT Services incl. Design and Print,Supplies and Services,304245,Equipment and Materials,02-Apr-12,2430133-WN1873604,530.64,ANTALIS MCNAUGHTON LTD.
Corporate Resources,ICT Services incl. Design and Print,Supplies and Services,304245,Equipment and Materials,02-Apr-12,2430133-WN1873605,509.2,ANTALIS MCNAUGHTON LTD.
Corporate Resources,ICT Services incl. Design and Print,Supplies and Services,304245,Equipment and Materials,02-Apr-12,2430133-WN1873606,626.05,ANTALIS MCNAUGHTON LTD.
Corporate Resources,ICT Services incl. Design and Print,Supplies and Services,304303,Equipment and Materials,02-Apr-12,2430368-11592599,"8,235.16",INSIGHT DIRECT (UK) LTD.
Corporate Resources,ICT Services incl. Design and Print,Supplies and Services,304303,Equipment and Materials,02-Apr-12,2430368-11592620,"3,144.16",INSIGHT DIRECT (UK) LTD.
Corporate Resources,ICT Services incl. Design and Print,Supplies and Services,304303,Equipment and Materials,02-Apr-12,2430368-11592624,"6,788.00",INSIGHT DIRECT (UK) LTD.
Corporate Resources,ICT Services incl. Design and Print,Supplies and Services,342033,Computers and Communications,02-Apr-12,2430368-11627088,"1,275.00",INSIGHT DIRECT (UK) LTD.
Corporate Resources,ICT Services incl. Design and Print,Supplies and Services,342033,Computers and Communications,02-Apr-12,2430368-11627089,"1,000.00",INSIGHT DIRECT (UK) LTD.
Corporate Resources,ICT Services incl. Design and Print,Supplies and Services,342033,Computers and Communications,02-Apr-12,2430368-11627090,750,INSIGHT DIRECT (UK) LTD.
Corporate Resources,ICT Services incl. Design and Print,Supplies and Services,332029,"Printing, Stationery and Gen Off Exps",02-Apr-12,2430406-1102534052,"1,088.08",KONICA MINOLTA BUSINESS SOLUTIONS (UK) LTD.
Corporate Resources,ICT Services incl. Design and Print,Supplies and Services,344033,Telephones,02-Apr-12,2430495-DUR357,"14,019.94",NETWORKS 2 BUSINESS LTD.
Corporate Resources,ICT Services incl. Design and Print,"Vehicles, Equipment, Furniture and Fittings",912529,Purchase-equipment,02-Apr-12,2430518-3155,"7,020.00",NTS (UK)LTD.
Corporate Resources,ICT Services incl. Design and Print,Supplies and Services,344014,Telephones,02-Apr-12,2430519-16028513,"1,600.00",O2 (UK) LTD.
Corporate Resources,ICT Services incl. Design and Print,Supplies and Services,332029,"Printing, Stationery and Gen Off Exps",02-Apr-12,2430566-8403,"1,870.00",RADECAL SIGNS GRAPHICS & ADVERTISING.
Corporate Resources,ICT Services incl. Design and Print,Supplies and Services,340001,Postages,02-Apr-12,2430589-9037273357,"5,267.74",ROYAL MAIL GROUP PLC.
Corporate Resources,ICT Services incl. Design and Print,Supplies and Services,340001,Postages,02-Apr-12,2430589-9037378829,"1,168.82",ROYAL MAIL GROUP PLC.
Corporate Resources,ICT Services incl. Design and Print,Supplies and Services,340001,Postages,02-Apr-12,2430589-9037866018,"6,101.46",ROYAL MAIL GROUP PLC.
Corporate Resources,ICT Services incl. Design and Print,Supplies and Services,340001,Postages,02-Apr-12,2430590-9037828283,"2,117.41",ROYAL MAIL GROUP PLC.
Corporate Resources,ICT Services incl. Design and Print,Supplies and Services,340001,Postages,02-Apr-12,2430590-9037946507,"1,011.62",ROYAL MAIL GROUP PLC.
Corporate Resources,ICT Services incl. Design and Print,"Vehicles, Equipment, Furniture and Fittings",912701,Computer equipment,02-Apr-12,2430628-INV00629755,"81,003.50",SOFTCAT LTD.
Corporate Resources,ICT Services incl. Design and Print,Stock,926900,Stock in hand-Inventory system,02-Apr-12,2430656-4823755,578.69,SUPPLIES TEAM LTD.
Corporate Resources,Legal & Democratic Services,Supplies and Services,384199,Miscellaneous Expenses,02-Apr-12,2430209-3942789,"2,604.00",CO DURHAM & DARLINGTON NHS FOUNDATION TRUST.
Corporate Resources,Legal & Democratic Services,Supplies and Services,384999,Miscellaneous Expenses,02-Apr-12,2430254-1466,"2,571.75",DERWENTSIDE COUNCIL FOR VOL SERVICES & VOL BUREAU.
Corporate Resources,Legal & Democratic Services,Supplies and Services,340001,Postages,02-Apr-12,2430490-SI7303,826.2,NEOPOST FINANCE LTD.
Corporate Resources,Legal & Democratic Services,Supplies and Services,340001,Postages,02-Apr-12,2430589-9037995249,958.99,ROYAL MAIL GROUP PLC.
Neighbourhood Services,Direct Services,Stock,926900,Stock in hand-Inventory system,02-Apr-12,2430136-916374397,841.16,ARCO LTD.
Neighbourhood Services,Direct Services,Stock,926900,Stock in hand-Inventory system,02-Apr-12,2430136-916402819,956.4,ARCO LTD.
Neighbourhood Services,Direct Services,Transport,230005,Contract Hire,02-Apr-12,2430153-277564,900,BICKFORD TRUCK HIRE LTD.
Neighbourhood Services,Direct Services,Supplies and Services,324117,Provisions,02-Apr-12,2430162-21061997,634,BRAKE BROS FOODSERVICE LTD.
Neighbourhood Services,Direct Services,Supplies and Services,324117,Provisions,02-Apr-12,2430162-21093871,829.87,BRAKE BROS FOODSERVICE LTD.
Neighbourhood Services,Direct Services,Supplies and Services,324117,Provisions,02-Apr-12,2430163-5779035,975.59,BRAMBLES FOODS LTD.
Neighbourhood Services,Direct Services,Transport,230005,Contract Hire,02-Apr-12,2430211-22710,500,COLLETT TRANSPORT SERVICES LTD.
Neighbourhood Services,Direct Services,Transport,230005,Contract Hire,02-Apr-12,2430211-22725,500,COLLETT TRANSPORT SERVICES LTD.
Neighbourhood Services,Direct Services,Transport,230005,Contract Hire,02-Apr-12,2430211-22727,500,COLLETT TRANSPORT SERVICES LTD.
Neighbourhood Services,Direct Services,Transport,230005,Contract Hire,02-Apr-12,2430211-22989,600,COLLETT TRANSPORT SERVICES LTD.
Neighbourhood Services,Direct Services,Transport,230005,Contract Hire,02-Apr-12,2430211-23474,600,COLLETT TRANSPORT SERVICES LTD.
Neighbourhood Services,Direct Services,Transport,230005,Contract Hire,02-Apr-12,2430211-23475,600,COLLETT TRANSPORT SERVICES LTD.
Neighbourhood Services,Direct Services,Transport,230005,Contract Hire,02-Apr-12,2430245-068911,"1,998.81",DAWSONRENTALS/SWEEPERS.
Neighbourhood Services,Direct Services,Stock,926900,Stock in hand-Inventory system,02-Apr-12,2430285-059-095249,880,EDMUNDSON ELECTRICAL LTD.
Neighbourhood Services,Direct Services,Supplies and Services,304221,Equipment and Materials,02-Apr-12,2430285-059-095993,"1,735.25",EDMUNDSON ELECTRICAL LTD.
Neighbourhood Services,Direct Services,"Vehicles, Equipment, Furniture and Fittings",912529,Purchase-equipment,02-Apr-12,2430300-6684757,"12,888.00",ESE LTD (ENVIRONMENTAL SYSTEMS EXPERTISE)..
Neighbourhood Services,Direct Services,"Vehicles, Equipment, Furniture and Fittings",912529,Purchase-equipment,02-Apr-12,2430300-6684758,"12,888.00",ESE LTD (ENVIRONMENTAL SYSTEMS EXPERTISE)..
Neighbourhood Services,Direct Services,"Vehicles, Equipment, Furniture and Fittings",912529,Purchase-equipment,02-Apr-12,2430300-6684759,"12,888.00",ESE LTD (ENVIRONMENTAL SYSTEMS EXPERTISE)..
Neighbourhood Services,Direct Services,"Vehicles, Equipment, Furniture and Fittings",912529,Purchase-equipment,02-Apr-12,2430300-6684993,"12,888.00",ESE LTD (ENVIRONMENTAL SYSTEMS EXPERTISE)..
Neighbourhood Services,Direct Services,Transport,215005,Running Costs of Vehicles,02-Apr-12,2430324-7345992,"9,059.86",GB OILS T/A BRETT FUELS.
Neighbourhood Services,Direct Services,Transport,215005,Running Costs of Vehicles,02-Apr-12,2430324-7346013,"1,308.40",GB OILS T/A BRETT FUELS.
Neighbourhood Services,Direct Services,Transport,215005,Running Costs of Vehicles,02-Apr-12,2430324-7461984,"2,806.40",GB OILS T/A BRETT FUELS.
Neighbourhood Services,Direct Services,Transport,215005,Running Costs of Vehicles,02-Apr-12,2430324-7498275,"41,793.56",GB OILS T/A BRETT FUELS.
Neighbourhood Services,Direct Services,Transport,215005,Running Costs of Vehicles,02-Apr-12,2430324-7555790,"19,954.60",GB OILS T/A BRETT FUELS.
Neighbourhood Services,Direct Services,Transport,215005,Running Costs of Vehicles,02-Apr-12,2430324-7555795,"3,510.69",GB OILS T/A BRETT FUELS.
Neighbourhood Services,Direct Services,Transport,210057,Repair and Maintenance of Vehicles,02-Apr-12,2430325-B71927,697.83,GEESINK NORBA LTD.
Neighbourhood Services,Direct Services,Third Party Payments,430100,Rendered by Private Contractors,02-Apr-12,2430387-11676,550,JOHN R BUTTERFIELD LTD.
Neighbourhood Services,Direct Services,Third Party Payments,430100,Rendered by Private Contractors,02-Apr-12,2430421-3902,664,LMC ELECTRICAL SERVICES T/A LMC ELECTRICAL & STAIRLIFT SERVICES LTD.
Neighbourhood Services,Direct Services,Transport,230005,Contract Hire,02-Apr-12,2430505-60181,"3,400.00",NOBLET MUNICIPAL SERVICES LTD.
Neighbourhood Services,Direct Services,Third Party Payments,430100,Rendered by Private Contractors,02-Apr-12,2430512-IW00656526,950.89,NORTHGATE VEHICLE HIRE LTD.
Neighbourhood Services,Direct Services,Stock,926004,Stock,02-Apr-12,2430515-SI1107997,514,NPA MOTOR FACTORS LTD.
Neighbourhood Services,Direct Services,Third Party Payments,430100,Rendered by Private Contractors,02-Apr-12,2430580-SLINV/00037943,676.77,RIVERSIDE TRUCK RENTAL LTD.
Neighbourhood Services,Direct Services,Transport,230005,Contract Hire,02-Apr-12,2430580-SLINV/00038186,"3,740.00",RIVERSIDE TRUCK RENTAL LTD.
Neighbourhood Services,Direct Services,Transport,230005,Contract Hire,02-Apr-12,2430580-SLINV/00038243,"4,378.00",RIVERSIDE TRUCK RENTAL LTD.
Neighbourhood Services,Direct Services,Transport,230005,Contract Hire,02-Apr-12,2430580-SLINV/00038246,"4,378.00",RIVERSIDE TRUCK RENTAL LTD.
Neighbourhood Services,Direct Services,Transport,230005,Contract Hire,02-Apr-12,2430580-SLINV/00038247,"4,378.00",RIVERSIDE TRUCK RENTAL LTD.
Neighbourhood Services,Direct Services,Transport,230005,Contract Hire,02-Apr-12,2430580-SLINV/00038248,"4,620.00",RIVERSIDE TRUCK RENTAL LTD.
Neighbourhood Services,Direct Services,Third Party Payments,430100,Rendered by Private Contractors,02-Apr-12,2430582-17574,547.35,ROBERT KIRKLAND (BLYTH) LTD.
Neighbourhood Services,Direct Services,Third Party Payments,430100,Rendered by Private Contractors,02-Apr-12,2430582-17591,"7,296.16",ROBERT KIRKLAND (BLYTH) LTD.
Neighbourhood Services,Direct Services,Transport,230710,Contract Hire,02-Apr-12,2430620-220/12/0001043,"56,370.89",SIEMENS FINANCIAL SERVICES LTD.
Neighbourhood Services,Direct Services,Transport,230710,Contract Hire,02-Apr-12,2430621-220/12/0001042,"212,101.25",SIEMENS FINANCIAL SERVICES LTD.
Neighbourhood Services,Direct Services,Supplies and Services,304357,Equipment and Materials,02-Apr-12,2430637-7005595312,"2,348.60",SPEEDY ASSET SERVICES LTD.
Neighbourhood Services,Direct Services,Supplies and Services,304221,Equipment and Materials,02-Apr-12,2430650-201263,"1,329.22",STEELCRAFT LTD.
Neighbourhood Services,Direct Services,Third Party Payments,430100,Rendered by Private Contractors,02-Apr-12,2430650-201264,"1,180.24",STEELCRAFT LTD.
Neighbourhood Services,Direct Services,Supplies and Services,304357,Equipment and Materials,02-Apr-12,2430722-20986,621.43,WERNICK HIRE LTD.
Neighbourhood Services,Direct Services,Supplies and Services,372009,Subscriptions,02-Apr-12,2430730-50731493,751.51,WOLTERS KLUWER (UK) LTD.
Neighbourhood Services,Projects and Business services,Third Party Payments,430105,Rendered by Private Contractors,02-Apr-12,2430555-SDIN/00006478,715.12,PREMIER WASTE MANAGEMENT LTD.
Neighbourhood Services,Sport & Leisure,Transport,230005,Contract Hire,02-Apr-12,2430194-1030912,604.8,CHARTER SELF DRIVE LTD.
Neighbourhood Services,Sport & Leisure,Supplies and Services,336005,Advertising,02-Apr-12,2430602-2303031,"1,590.00",SAGITTARIAN EMBROIDERY.
Neighbourhood Services,Technical Services,Supplies and Services,304358,Equipment and Materials,02-Apr-12,2430131-2689,"2,200.00",ANDREW HARDY CONSTRUCTION.
Neighbourhood Services,Technical Services,Supplies and Services,304358,Equipment and Materials,02-Apr-12,2430131-2690,"2,700.00",ANDREW HARDY CONSTRUCTION.
Neighbourhood Services,Technical Services,Supplies and Services,304358,Equipment and Materials,02-Apr-12,2430131-2700,"3,850.00",ANDREW HARDY CONSTRUCTION.
Neighbourhood Services,Technical Services,Employees,80025,Agency Staff,02-Apr-12,2430212-514759,"195,194.14",COMENSURA LTD.
Neighbourhood Services,Technical Services,Supplies and Services,304221,Equipment and Materials,02-Apr-12,2430224-14488,"1,478.16",COUPE LINE LTD.
Neighbourhood Services,Technical Services,Third Party Payments,460055,Contract Payments,02-Apr-12,2430224-14489,"6,913.05",COUPE LINE LTD.
Neighbourhood Services,Technical Services,Supplies and Services,304221,Equipment and Materials,02-Apr-12,2430224-14491,"10,114.57",COUPE LINE LTD.
Neighbourhood Services,Technical Services,Supplies and Services,304221,Equipment and Materials,02-Apr-12,2430224-14492,"2,211.29",COUPE LINE LTD.
Neighbourhood Services,Technical Services,Supplies and Services,304221,Equipment and Materials,02-Apr-12,2430224-14494,"19,623.45",COUPE LINE LTD.
Neighbourhood Services,Technical Services,Supplies and Services,304221,Equipment and Materials,02-Apr-12,2430224-14520,"1,021.36",COUPE LINE LTD.
Neighbourhood Services,Technical Services,Supplies and Services,304221,Equipment and Materials,02-Apr-12,2430224-14530,"2,043.45",COUPE LINE LTD.
Neighbourhood Services,Technical Services,Supplies and Services,304221,Equipment and Materials,02-Apr-12,2430224-14531,"1,149.66",COUPE LINE LTD.
Neighbourhood Services,Technical Services,Supplies and Services,304221,Equipment and Materials,02-Apr-12,2430224-14550,"3,403.61",COUPE LINE LTD.
Neighbourhood Services,Technical Services,Supplies and Services,352001,Conference Expenses,02-Apr-12,2430322-GHU34,"1,260.00",GAVIN HUTCHINSON.
Neighbourhood Services,Technical Services,Supplies and Services,304221,Equipment and Materials,02-Apr-12,2430330-622936,"2,833.68",GLASDON UK LTD.
Neighbourhood Services,Technical Services,Supplies and Services,304221,Equipment and Materials,02-Apr-12,2430341-AW9727,"20,024.44",HANSON CONTRACTING.
Neighbourhood Services,Technical Services,Supplies and Services,304221,Equipment and Materials,02-Apr-12,2430341-AW9728,"41,803.61",HANSON CONTRACTING.
Neighbourhood Services,Technical Services,Supplies and Services,304357,Equipment and Materials,02-Apr-12,2430377-1125,586,J & JG GILL & SONS LTD.
Neighbourhood Services,Technical Services,Supplies and Services,304358,Equipment and Materials,02-Apr-12,2430387-11468,863.78,JOHN R BUTTERFIELD LTD.
Neighbourhood Services,Technical Services,Supplies and Services,304358,Equipment and Materials,02-Apr-12,2430387-11495,"1,098.41",JOHN R BUTTERFIELD LTD.
Neighbourhood Services,Technical Services,Supplies and Services,304358,Equipment and Materials,02-Apr-12,2430387-11501,595.49,JOHN R BUTTERFIELD LTD.
Neighbourhood Services,Technical Services,Supplies and Services,304358,Equipment and Materials,02-Apr-12,2430387-11566,945.95,JOHN R BUTTERFIELD LTD.
Neighbourhood Services,Technical Services,Supplies and Services,304358,Equipment and Materials,02-Apr-12,2430387-11597,960.8,JOHN R BUTTERFIELD LTD.
Neighbourhood Services,Technical Services,Supplies and Services,304358,Equipment and Materials,02-Apr-12,2430389-0000077219,765,JOHN WADE (HAULAGE) LTD.
Neighbourhood Services,Technical Services,Third Party Payments,430100,Rendered by Private Contractors,02-Apr-12,2430410-INV00116819,"14,857.00",LANES GROUP PLC.
Neighbourhood Services,Technical Services,Third Party Payments,460152,Contract Payments,02-Apr-12,2430434-4489,502.4,MAKEPEACE MOTORS.
Neighbourhood Services,Technical Services,Third Party Payments,460350,Contract Payments,02-Apr-12,2430434-4493,638,MAKEPEACE MOTORS.
Neighbourhood Services,Technical Services,Third Party Payments,460350,Contract Payments,02-Apr-12,2430434-4494,638,MAKEPEACE MOTORS.
Neighbourhood Services,Technical Services,Supplies and Services,352001,Conference Expenses,02-Apr-12,2430438-MHO34,539.64,MARION HOCKWORTH.
Neighbourhood Services,Technical Services,Supplies and Services,304221,Equipment and Materials,02-Apr-12,2430442-24792,791.12,MAY GURNEY LTD.
Neighbourhood Services,Technical Services,Supplies and Services,304221,Equipment and Materials,02-Apr-12,2430498-29280,"7,434.67",NEW COUNTY ROADS.
Neighbourhood Services,Technical Services,Supplies and Services,304221,Equipment and Materials,02-Apr-12,2430498-29337,"2,530.76",NEW COUNTY ROADS.
Neighbourhood Services,Technical Services,Third Party Payments,430100,Rendered by Private Contractors,02-Apr-12,2430509-DI20137827,505.62,NORTHERN POWERGRID (NORTHEAST) LTD..
Neighbourhood Services,Technical Services,Supplies and Services,304221,Equipment and Materials,02-Apr-12,2430554-APP/02/81BBBL,574.2,PREMIER TRAFFIC MANAGEMENT LTD.
Neighbourhood Services,Technical Services,Supplies and Services,304221,Equipment and Materials,02-Apr-12,2430554-APP/02/82KL,586.63,PREMIER TRAFFIC MANAGEMENT LTD.
Neighbourhood Services,Technical Services,Supplies and Services,304221,Equipment and Materials,02-Apr-12,2430554-APP/03/23/INS1RL,"1,004.91",PREMIER TRAFFIC MANAGEMENT LTD.
Neighbourhood Services,Technical Services,Supplies and Services,304357,Equipment and Materials,02-Apr-12,2430554-APP/03/30A181/A19,522.72,PREMIER TRAFFIC MANAGEMENT LTD.
Neighbourhood Services,Technical Services,Supplies and Services,304221,Equipment and Materials,02-Apr-12,2430554-APP/03/31BB,742.5,PREMIER TRAFFIC MANAGEMENT LTD.
Neighbourhood Services,Technical Services,Supplies and Services,304221,Equipment and Materials,02-Apr-12,2430554-APP/03/32MAR12,"1,080.05",PREMIER TRAFFIC MANAGEMENT LTD.
Neighbourhood Services,Technical Services,Supplies and Services,304357,Equipment and Materials,02-Apr-12,2430554-APP/03/36-19/3/12,"3,057.73",PREMIER TRAFFIC MANAGEMENT LTD.
Neighbourhood Services,Technical Services,Supplies and Services,304221,Equipment and Materials,02-Apr-12,2430554-APP/03/38-19/3/12,570.9,PREMIER TRAFFIC MANAGEMENT LTD.
Neighbourhood Services,Technical Services,Supplies and Services,304221,Equipment and Materials,02-Apr-12,2430554-APP/03/42-INST1,519.2,PREMIER TRAFFIC MANAGEMENT LTD.
Neighbourhood Services,Technical Services,Supplies and Services,304221,Equipment and Materials,02-Apr-12,2430554-APP/03/47-21/3/12,649.99,PREMIER TRAFFIC MANAGEMENT LTD.
Neighbourhood Services,Technical Services,Supplies and Services,304221,Equipment and Materials,02-Apr-12,2430554-APP/03/50/A691FM,619.3,PREMIER TRAFFIC MANAGEMENT LTD.
Neighbourhood Services,Technical Services,Supplies and Services,304221,Equipment and Materials,02-Apr-12,2430554-APP/03/55-22/3/12,"3,412.15",PREMIER TRAFFIC MANAGEMENT LTD.
Neighbourhood Services,Technical Services,Supplies and Services,352001,Conference Expenses,02-Apr-12,2430573-RHU34,630,REX HUDSON.
Neighbourhood Services,Technical Services,Supplies and Services,304358,Equipment and Materials,02-Apr-12,2430617-2012033,"1,390.00",SHIREHAVEN LTD.
Neighbourhood Services,Technical Services,Supplies and Services,304358,Equipment and Materials,02-Apr-12,2430617-2012036,"2,364.00",SHIREHAVEN LTD.
Neighbourhood Services,Technical Services,Supplies and Services,304358,Equipment and Materials,02-Apr-12,2430617-2012037,"2,364.00",SHIREHAVEN LTD.
Neighbourhood Services,Technical Services,Supplies and Services,304358,Equipment and Materials,02-Apr-12,2430617-2012038,"2,364.00",SHIREHAVEN LTD.
Neighbourhood Services,Technical Services,Supplies and Services,304358,Equipment and Materials,02-Apr-12,2430617-2012039,"2,364.00",SHIREHAVEN LTD.
Neighbourhood Services,Technical Services,Supplies and Services,304358,Equipment and Materials,02-Apr-12,2430617-2012040,"1,664.00",SHIREHAVEN LTD.
Neighbourhood Services,Technical Services,Third Party Payments,430100,Rendered by Private Contractors,02-Apr-12,2430655-851,"1,872.50",SUPAMOLE DIRECTIONAL DRILLING SPECIALISTS.
Neighbourhood Services,Technical Services,Third Party Payments,430100,Rendered by Private Contractors,02-Apr-12,2430655-852,763.2,SUPAMOLE DIRECTIONAL DRILLING SPECIALISTS.
Neighbourhood Services,Technical Services,Third Party Payments,430100,Rendered by Private Contractors,02-Apr-12,2430655-854,"1,743.70",SUPAMOLE DIRECTIONAL DRILLING SPECIALISTS.
Neighbourhood Services,Technical Services,Supplies and Services,304358,Equipment and Materials,02-Apr-12,2430715-33221,"1,553.00",W MARLEY AGRICULTURAL CONTRACTORS LTD.
Neighbourhood Services,Technical Services,Supplies and Services,304358,Equipment and Materials,02-Apr-12,2430715-33314,"1,318.50",W MARLEY AGRICULTURAL CONTRACTORS LTD.
Neighbourhood Services,Technical Services,Supplies and Services,304358,Equipment and Materials,02-Apr-12,2430715-33373,"2,670.25",W MARLEY AGRICULTURAL CONTRACTORS LTD.
Neighbourhood Services,Technical Services,Supplies and Services,304358,Equipment and Materials,02-Apr-12,2430715-33376,"1,102.00",W MARLEY AGRICULTURAL CONTRACTORS LTD.
Neighbourhood Services,Technical Services,Supplies and Services,304358,Equipment and Materials,02-Apr-12,2430715-33377,"1,161.25",W MARLEY AGRICULTURAL CONTRACTORS LTD.
Neighbourhood Services,Technical Services,Supplies and Services,304357,Equipment and Materials,02-Apr-12,2430722-20989,621.43,WERNICK HIRE LTD.
Neighbourhood Services,Technical Services,Supplies and Services,304357,Equipment and Materials,02-Apr-12,2430722-20994,561.79,WERNICK HIRE LTD.
Neighbourhood Services,Training and Development,Employees,40149,"Recruitment, Instruction and Training",02-Apr-12,2430256-66559,"2,205.00",DEVELOP TRAINING LTD.
RED HRA,Housing Revenue Account,Supplies and Services,342053,Computers and Communications,02-Apr-12,2430511-91187184,"4,335.24",NORTHGATE INFORMATION SOLUTIONS UK LTD.
RED HRA,HRA Capital,Construction Work,908105,Construction work,02-Apr-12,2430210-137533,"54,764.46",COAST & COUNTRY HOUSING LTD.
RED HRA,HRA Capital,Other Expenses,914001,Other capital expenses,02-Apr-12,2430278-SINV/00002729,"19,504.84",EAST DURHAM HOMES.
RED HRA,HRA Capital,Construction Work,908105,Construction work,02-Apr-12,2430444-139599,"158,338.12",MGM LTD.
RED HRA,HRA Capital,Construction Work,908105,Construction work,02-Apr-12,2430537-0000056944,"2,090.00",PEART ACCESS RAMPS.
RED HRA,HRA Capital,Construction Work,908105,Construction work,02-Apr-12,2430537-0000057014,"1,124.00",PEART ACCESS RAMPS.
RED HRA,HRA Capital,Construction Work,908105,Construction work,02-Apr-12,2430726-19741,"2,388.00",WHITFIELDS BUILDING SERVICES LTD.
Regeneration & Economic Development,Economic Development,Other Expenses,914001,Other capital expenses,02-Apr-12,2430123-60155102-78,612,AECOM LTD.
Regeneration & Economic Development,Economic Development,Supplies and Services,384956,Miscellaneous Expenses,02-Apr-12,2430147-14337,"1,250.00",BANKSEARCH INFORMATION CONSULTANCY LTD.
Regeneration & Economic Development,Economic Development,Supplies and Services,384999,Miscellaneous Expenses,02-Apr-12,2430268-15388,"1,380.00",DURHAM CITY COACHES.
Regeneration & Economic Development,Economic Development,Fees,901002,Professional Fees,02-Apr-12,2430306-1492/28,"14,875.00",FEILDEN CLEGG BRADLEY STUDIOS.
Regeneration & Economic Development,Housing General Fund,Third Party Payments,440999,Other Third Party Payments,02-Apr-12,2430149-15279,"12,487.50",BAYDALE CONTROL SYSTEMS LTD.
Regeneration & Economic Development,Housing General Fund,Cap Exp on Grants & Other Financial Assistance (REFCUS),918401,Capital grants,02-Apr-12,2430303-DFG397/11,"1,920.00",F TIFFEN BUILDING SERVICES.
Regeneration & Economic Development,Housing General Fund,Supplies and Services,352001,Conference Expenses,02-Apr-12,2430360-SPINV11723,"2,583.98",HQN LTD.
Regeneration & Economic Development,Housing General Fund,Cap Exp on Grants & Other Financial Assistance (REFCUS),918401,Capital grants,02-Apr-12,2430375-DFG,"16,500.00",J & B NELSON CONSTRUCTION.
Regeneration & Economic Development,Housing General Fund,Cap Exp on Grants & Other Financial Assistance (REFCUS),918401,Capital grants,02-Apr-12,2430376-53/140A,"20,088.00",J & J SALKELD & SONS LTD.
Regeneration & Economic Development,Housing General Fund,Cap Exp on Grants & Other Financial Assistance (REFCUS),918401,Capital grants,02-Apr-12,2430395-1237,"6,587.41",K HARRISON (BUILDER) NE LTD.
Regeneration & Economic Development,Housing General Fund,Cap Exp on Grants & Other Financial Assistance (REFCUS),918401,Capital grants,02-Apr-12,2430417-SIP117802,"1,650.00",THYSSENKRUPP ENCASA LTD.
Regeneration & Economic Development,Housing General Fund,Cap Exp on Grants & Other Financial Assistance (REFCUS),918401,Capital grants,02-Apr-12,2430417-SIP117847,"1,735.00",THYSSENKRUPP ENCASA LTD.
Regeneration & Economic Development,Housing General Fund,Cap Exp on Grants & Other Financial Assistance (REFCUS),918401,Capital grants,02-Apr-12,2430587-D-F-G,570,RONDEN BUILDERS LTD.
Regeneration & Economic Development,Housing General Fund,Cap Exp on Grants & Other Financial Assistance (REFCUS),918401,Capital grants,02-Apr-12,2430587-DFG,"3,650.00",RONDEN BUILDERS LTD.
Regeneration & Economic Development,Housing General Fund,Cap Exp on Grants & Other Financial Assistance (REFCUS),918401,Capital grants,02-Apr-12,2430591-42,"6,150.00",ROYCE CARSON BUILDING SERVICES.
Regeneration & Economic Development,Housing General Fund,Cap Exp on Grants & Other Financial Assistance (REFCUS),918401,Capital grants,02-Apr-12,2430591-44,"24,107.14",ROYCE CARSON BUILDING SERVICES.
Regeneration & Economic Development,Housing General Fund,Fees,901001,Internal fees,02-Apr-12,2430684-SITRH/0004201,"1,638.00",THREE RIVERS HOUSING ASSOCIATION LTD.
Regeneration & Economic Development,"Spatial Policy, Planning, Assets & Environment",Construction Work,908105,Construction work,02-Apr-12,2430380-TBIG,"2,250.00",JANET STABLES.
Regeneration & Economic Development,"Spatial Policy, Planning, Assets & Environment",Supplies and Services,384199,Miscellaneous Expenses,02-Apr-12,2430394-161,"27,800.00",JW BAINBRIDGE CONTRACTORS LTD.
Regeneration & Economic Development,"Spatial Policy, Planning, Assets & Environment",Construction Work,908105,Construction work,02-Apr-12,2430470-TBIG,"1,830.00",REDACTED - PAYMENT TO INDIVIDUAL
Regeneration & Economic Development,"Spatial Policy, Planning, Assets & Environment",Employees,40149,"Recruitment, Instruction and Training",02-Apr-12,2430508-00000527,750,NORTHERN ARCHITECTURE.
Regeneration & Economic Development,Transport,Employees,80025,Agency Staff,02-Apr-12,2430123-60216682-37,"2,914.00",AECOM LTD.
Regeneration & Economic Development,Transport,Supplies and Services,384540,Miscellaneous Expenses,02-Apr-12,2430156-6833,"3,816.00",BISSELL DISPLAY.
Regeneration & Economic Development,Transport,Supplies and Services,344033,Telephones,02-Apr-12,2430167-VP07599470Q01001G9,"9,063.07",BRITISH TELECOMMUNICATIONS PLC.
Regeneration & Economic Development,Transport,Construction Work,908105,Construction work,02-Apr-12,2430494-1108593,"2,466.63",NETWORK RAIL.
Regeneration & Economic Development,Transport,Third Party Payments,410037,Rendered by Other Local Authorities,02-Apr-12,2430500-1800005904072,"13,455.69",NEWCASTLE UPON TYNE CITY COUNCIL.
Regeneration & Economic Development,Transport,Third Party Payments,430100,Rendered by Private Contractors,02-Apr-12,2430510-84022787,"25,745.26",NORTHERN RAIL LTD.
Regeneration & Economic Development,Transport,Supplies and Services,342051,Computers and Communications,02-Apr-12,2430547-87971,"4,492.40",PINDAR TRAVEL INFORMATION SYSTEMS LTD T/A PINDAR CREATIVE.
Regeneration & Economic Development,Transport,Supplies and Services,384540,Miscellaneous Expenses,02-Apr-12,2430547-88079,"4,115.80",PINDAR TRAVEL INFORMATION SYSTEMS LTD T/A PINDAR CREATIVE.
Adults Wellbeing and Health,Commissioning inc Supporting People,Supplies and Services,304421,Equipment and Materials,03-Apr-12,2431725-393827,"3,744.30",UNITED CARLTON OFFICE SYSTEMS LTD.
Adults Wellbeing and Health,Commissioning inc Supporting People,Supplies and Services,324001,Provisions,03-Apr-12,2431366-EW52705721,622.53,CARLSBERG UK LTD.
Adults Wellbeing and Health,Commissioning inc Supporting People,Supplies and Services,324001,Provisions,03-Apr-12,2431366-EW52731002,657.25,CARLSBERG UK LTD.
Adults Wellbeing and Health,Financing-Adult Services,Creditors,952035,Creditor-housing benefit-eqpt,03-Apr-12,2431657-CLG1555,"1,108.75",RENDLES HOUSE FURNISHER.
Adults Wellbeing and Health,Financing-Adult Services,Creditors,952035,Creditor-housing benefit-eqpt,03-Apr-12,2431657-CLG1558,856.49,RENDLES HOUSE FURNISHER.
Adults Wellbeing and Health,Head of Adults,Supplies and Services,304259,Equipment and Materials,03-Apr-12,2431475-120925,"1,693.10",GYM TECH.COM.
Adults Wellbeing and Health,Planning and Performance,Supplies and Services,352001,Conference Expenses,03-Apr-12,2431380-I0019260,600,CITY OF SUNDERLAND COLLEGE.
Adults Wellbeing and Health,Planning and Performance,Supplies and Services,384540,Miscellaneous Expenses,03-Apr-12,2431637-7035,"1,931.00",PA PROMOTIONS LTD.
Adults Wellbeing and Health,Social Inclusion,Premises,135005,Water Services,03-Apr-12,2431628-210029660111003,"1,382.10",NORTHUMBRIAN WATER LTD.
Adults Wellbeing and Health,Social Inclusion,Premises,135005,Water Services,03-Apr-12,2431628-210206120023003,"2,032.50",NORTHUMBRIAN WATER LTD.
Adults Wellbeing and Health,Social Inclusion,Premises,135005,Water Services,03-Apr-12,2431628-309921230039003,"1,626.00",NORTHUMBRIAN WATER LTD.
Adults Wellbeing and Health,Social Inclusion,Premises,135005,Water Services,03-Apr-12,2431628-309921230048003,"1,788.60",NORTHUMBRIAN WATER LTD.
Adults Wellbeing and Health,Social Inclusion,Premises,135005,Water Services,03-Apr-12,2431628-310297770018-010,"4,577.70",NORTHUMBRIAN WATER LTD.
Adults Wellbeing and Health,Social Inclusion,Premises,125009,Rents,03-Apr-12,2431746-97/2011,"11,659.58",WOLSINGHAM PARISH COUNCIL.
Adults Wellbeing and Health,Social Inclusion,Premises,125009,Rents,03-Apr-12,2431349-D09381,"3,425.00",BRADLEY HALL CHARTERED SURVEYORS CLIENT ACCOUNT.
Adults Wellbeing and Health,Social Inclusion,Supplies and Services,338078,Services,03-Apr-12,2431695-SI12001824,554.5,SOLON SECURITY LTD.
Adults Wellbeing and Health,Social Inclusion,Premises,120021,Energy Costs,03-Apr-12,2431626-NG,"1,021.68",NORTHERN PROPERTY (UK) LTD.
Adults Wellbeing and Health,Social Inclusion,Supplies and Services,338099,Services,03-Apr-12,2431649-00001429,"1,200.00",PHOTOSYMBOLS.
Assistant Chief Executive,Partnerships & Community Engagement Div.,Supplies and Services,384085,Miscellaneous Expenses,03-Apr-12,2431359-ORDR004-11,500,BURNOPFIELD COMMUNITY ASSOCIATION.
Assistant Chief Executive,Partnerships & Community Engagement Div.,Supplies and Services,312010,"Newspapers, Books and Periodicals",03-Apr-12,2431609-225216/0,"1,012.10",NATIONAL LEAFLET CO LTD.
Assistant Chief Executive,Partnerships & Community Engagement Div.,Transfer Payments,525030,Other,03-Apr-12,2431710-26/03/2012,"3,354.00",TEESDALE DISABILITY ACCESS FORUM.
Assistant Chief Executive,Policy & Communications Division,Supplies and Services,312010,"Newspapers, Books and Periodicals",03-Apr-12,2431609-223302/0,"16,740.93",NATIONAL LEAFLET CO LTD.
Children and Young Peoples Services,CYPS - Local Authority,Third Party Payments,440028,Other Third Party Payments,03-Apr-12,204369-794649,672.6,REDACTED - PAYMENT TO INDIVIDUAL
Children and Young Peoples Services,CYPS - Local Authority,Third Party Payments,440028,Other Third Party Payments,03-Apr-12,204384-794643,941.64,REDACTED - PAYMENT TO INDIVIDUAL
Children and Young Peoples Services,CYPS - Local Authority,Third Party Payments,440027,Other Third Party Payments,03-Apr-12,2430740-794404,571.71,REDACTED - PAYMENT TO INDIVIDUAL
Children and Young Peoples Services,CYPS - Local Authority,Third Party Payments,440027,Other Third Party Payments,03-Apr-12,2430770-794295,706.23,REDACTED - PAYMENT TO INDIVIDUAL
Children and Young Peoples Services,CYPS - Local Authority,Third Party Payments,440027,Other Third Party Payments,03-Apr-12,2430796-794428,874.38,REDACTED - PAYMENT TO INDIVIDUAL
Children and Young Peoples Services,CYPS - Local Authority,Third Party Payments,440027,Other Third Party Payments,03-Apr-12,2430801-794385,619.1,REDACTED - PAYMENT TO INDIVIDUAL
Children and Young Peoples Services,CYPS - Local Authority,Third Party Payments,440027,Other Third Party Payments,03-Apr-12,2430801-794386,952.5,REDACTED - PAYMENT TO INDIVIDUAL
Children and Young Peoples Services,CYPS - Local Authority,Third Party Payments,440027,Other Third Party Payments,03-Apr-12,2430816-794382,"1,076.16",REDACTED - PAYMENT TO INDIVIDUAL
Children and Young Peoples Services,CYPS - Local Authority,Third Party Payments,440027,Other Third Party Payments,03-Apr-12,2430827-794618,"1,177.05",REDACTED - PAYMENT TO INDIVIDUAL
Children and Young Peoples Services,CYPS - Local Authority,Third Party Payments,440027,Other Third Party Payments,03-Apr-12,2430829-794333,605.34,REDACTED - PAYMENT TO INDIVIDUAL
Children and Young Peoples Services,CYPS - Local Authority,Third Party Payments,440027,Other Third Party Payments,03-Apr-12,2430830-794379,"1,647.87",REDACTED - PAYMENT TO INDIVIDUAL
Children and Young Peoples Services,CYPS - Local Authority,Third Party Payments,440029,Other Third Party Payments,03-Apr-12,2430841-794281,"1,125.40",REDACTED - PAYMENT TO INDIVIDUAL
Children and Young Peoples Services,CYPS - Local Authority,Third Party Payments,440027,Other Third Party Payments,03-Apr-12,2430870-794328,504.45,REDACTED - PAYMENT TO INDIVIDUAL
Children and Young Peoples Services,CYPS - Local Authority,Third Party Payments,440027,Other Third Party Payments,03-Apr-12,2430874-794405,706.23,REDACTED - PAYMENT TO INDIVIDUAL
Children and Young Peoples Services,CYPS - Local Authority,Third Party Payments,440027,Other Third Party Payments,03-Apr-12,2430880-794293,538.08,REDACTED - PAYMENT TO INDIVIDUAL
Children and Young Peoples Services,CYPS - Local Authority,Third Party Payments,440028,Other Third Party Payments,03-Apr-12,2430892-794623,941.64,REDACTED - PAYMENT TO INDIVIDUAL
Children and Young Peoples Services,CYPS - Local Authority,Third Party Payments,440027,Other Third Party Payments,03-Apr-12,2430897-794507,"1,647.87",REDACTED - PAYMENT TO INDIVIDUAL
Children and Young Peoples Services,CYPS - Local Authority,Third Party Payments,440027,Other Third Party Payments,03-Apr-12,2430905-794455,706.23,REDACTED - PAYMENT TO INDIVIDUAL
Children and Young Peoples Services,CYPS - Local Authority,Third Party Payments,440027,Other Third Party Payments,03-Apr-12,2430908-794350,874.38,REDACTED - PAYMENT TO INDIVIDUAL
Children and Young Peoples Services,CYPS - Local Authority,Third Party Payments,440027,Other Third Party Payments,03-Apr-12,2430915-794368,504.45,REDACTED - PAYMENT TO INDIVIDUAL
Children and Young Peoples Services,CYPS - Local Authority,Third Party Payments,440027,Other Third Party Payments,03-Apr-12,2430930-794488,638.97,REDACTED - PAYMENT TO INDIVIDUAL
Children and Young Peoples Services,CYPS - Local Authority,Third Party Payments,440027,Other Third Party Payments,03-Apr-12,2430932-794479,706.23,REDACTED - PAYMENT TO INDIVIDUAL
Children and Young Peoples Services,CYPS - Local Authority,Third Party Payments,440027,Other Third Party Payments,03-Apr-12,2430935-794526,"1,345.20",REDACTED - PAYMENT TO INDIVIDUAL
Children and Young Peoples Services,CYPS - Local Authority,Third Party Payments,440027,Other Third Party Payments,03-Apr-12,2430949-794341,"1,177.05",REDACTED - PAYMENT TO INDIVIDUAL
Children and Young Peoples Services,CYPS - Local Authority,Third Party Payments,440027,Other Third Party Payments,03-Apr-12,2430954-794459,706.23,REDACTED - PAYMENT TO INDIVIDUAL
Children and Young Peoples Services,CYPS - Local Authority,Third Party Payments,440001,Other Third Party Payments,03-Apr-12,2430962-793650,505.42,REDACTED - PAYMENT TO INDIVIDUAL
Children and Young Peoples Services,CYPS - Local Authority,Third Party Payments,440027,Other Third Party Payments,03-Apr-12,2430981-794639,"1,177.05",REDACTED - PAYMENT TO INDIVIDUAL
Children and Young Peoples Services,CYPS - Local Authority,Third Party Payments,440027,Other Third Party Payments,03-Apr-12,2430984-794490,706.23,REDACTED - PAYMENT TO INDIVIDUAL
Children and Young Peoples Services,CYPS - Local Authority,Third Party Payments,440027,Other Third Party Payments,03-Apr-12,2430986-794460,638.97,REDACTED - PAYMENT TO INDIVIDUAL
Children and Young Peoples Services,CYPS - Local Authority,Third Party Payments,440027,Other Third Party Payments,03-Apr-12,2430990-794447,"1,177.05",REDACTED - PAYMENT TO INDIVIDUAL
Children and Young Peoples Services,CYPS - Local Authority,Third Party Payments,440029,Other Third Party Payments,03-Apr-12,2431013-794284,506.43,REDACTED - PAYMENT TO INDIVIDUAL
Children and Young Peoples Services,CYPS - Local Authority,Third Party Payments,440028,Other Third Party Payments,03-Apr-12,2431022-794647,941.64,REDACTED - PAYMENT TO INDIVIDUAL
Children and Young Peoples Services,CYPS - Local Authority,Third Party Payments,440027,Other Third Party Payments,03-Apr-12,2431031-794450,941.64,REDACTED - PAYMENT TO INDIVIDUAL
Children and Young Peoples Services,CYPS - Local Authority,Third Party Payments,440027,Other Third Party Payments,03-Apr-12,2431032-794377,706.23,REDACTED - PAYMENT TO INDIVIDUAL
Children and Young Peoples Services,CYPS - Local Authority,Third Party Payments,440027,Other Third Party Payments,03-Apr-12,2431036-794407,"1,143.42",REDACTED - PAYMENT TO INDIVIDUAL
Children and Young Peoples Services,CYPS - Local Authority,Third Party Payments,440027,Other Third Party Payments,03-Apr-12,2431061-794307,"1,647.87",REDACTED - PAYMENT TO INDIVIDUAL
Children and Young Peoples Services,CYPS - Local Authority,Third Party Payments,440027,Other Third Party Payments,03-Apr-12,2431065-794317,"1,647.87",REDACTED - PAYMENT TO INDIVIDUAL
Children and Young Peoples Services,CYPS - Local Authority,Third Party Payments,440027,Other Third Party Payments,03-Apr-12,2431070-794415,706.23,REDACTED - PAYMENT TO INDIVIDUAL
Children and Young Peoples Services,CYPS - Local Authority,Third Party Payments,440027,Other Third Party Payments,03-Apr-12,2431076-794575,706.23,REDACTED - PAYMENT TO INDIVIDUAL
Children and Young Peoples Services,CYPS - Local Authority,Third Party Payments,440027,Other Third Party Payments,03-Apr-12,2431078-794567,"1,446.09",REDACTED - PAYMENT TO INDIVIDUAL
Children and Young Peoples Services,CYPS - Local Authority,Third Party Payments,440028,Other Third Party Payments,03-Apr-12,2431094-794609,941.64,REDACTED - PAYMENT TO INDIVIDUAL
Children and Young Peoples Services,CYPS - Local Authority,Third Party Payments,440027,Other Third Party Payments,03-Apr-12,2431095-794430,706.23,REDACTED - PAYMENT TO INDIVIDUAL
Children and Young Peoples Services,CYPS - Local Authority,Third Party Payments,440027,Other Third Party Payments,03-Apr-12,2431097-794632,"1,210.68",REDACTED - PAYMENT TO INDIVIDUAL
Children and Young Peoples Services,CYPS - Local Authority,Third Party Payments,440026,Other Third Party Payments,03-Apr-12,2431109-794606,547.12,REDACTED - PAYMENT TO INDIVIDUAL
Children and Young Peoples Services,CYPS - Local Authority,Third Party Payments,440027,Other Third Party Payments,03-Apr-12,2431111-794565,"1,647.87",REDACTED - PAYMENT TO INDIVIDUAL
Children and Young Peoples Services,CYPS - Local Authority,Third Party Payments,440027,Other Third Party Payments,03-Apr-12,2431127-794351,"1,177.05",REDACTED - PAYMENT TO INDIVIDUAL
Children and Young Peoples Services,CYPS - Local Authority,Third Party Payments,440027,Other Third Party Payments,03-Apr-12,2431135-794542,"1,177.05",REDACTED - PAYMENT TO INDIVIDUAL
Children and Young Peoples Services,CYPS - Local Authority,Third Party Payments,440027,Other Third Party Payments,03-Apr-12,2431136-794534,"1,647.87",REDACTED - PAYMENT TO INDIVIDUAL
Children and Young Peoples Services,CYPS - Local Authority,Third Party Payments,440027,Other Third Party Payments,03-Apr-12,2431138-794531,"1,378.83",REDACTED - PAYMENT TO INDIVIDUAL
Children and Young Peoples Services,CYPS - Local Authority,Third Party Payments,440027,Other Third Party Payments,03-Apr-12,2431142-794422,706.23,REDACTED - PAYMENT TO INDIVIDUAL
Children and Young Peoples Services,CYPS - Local Authority,Third Party Payments,440027,Other Third Party Payments,03-Apr-12,2431171-794310,706.23,REDACTED - PAYMENT TO INDIVIDUAL
Children and Young Peoples Services,CYPS - Local Authority,Third Party Payments,440027,Other Third Party Payments,03-Apr-12,2431176-794315,706.23,REDACTED - PAYMENT TO INDIVIDUAL
Children and Young Peoples Services,CYPS - Local Authority,Third Party Payments,440027,Other Third Party Payments,03-Apr-12,2431191-794496,"1,177.05",REDACTED - PAYMENT TO INDIVIDUAL
Children and Young Peoples Services,CYPS - Local Authority,Third Party Payments,440029,Other Third Party Payments,03-Apr-12,2431197-794278,"1,181.67",REDACTED - PAYMENT TO INDIVIDUAL
Children and Young Peoples Services,CYPS - Local Authority,Third Party Payments,440027,Other Third Party Payments,03-Apr-12,2431207-794498,"1,647.87",REDACTED - PAYMENT TO INDIVIDUAL
Children and Young Peoples Services,CYPS - Local Authority,Third Party Payments,440029,Other Third Party Payments,03-Apr-12,2431229-794279,"1,069.13",REDACTED - PAYMENT TO INDIVIDUAL
Children and Young Peoples Services,CYPS - Local Authority,Third Party Payments,440029,Other Third Party Payments,03-Apr-12,2431242-794285,"1,012.86",REDACTED - PAYMENT TO INDIVIDUAL
Children and Young Peoples Services,CYPS - Local Authority,Third Party Payments,440027,Other Third Party Payments,03-Apr-12,2431249-794412,"1,177.05",REDACTED - PAYMENT TO INDIVIDUAL
Children and Young Peoples Services,CYPS - Local Authority,Third Party Payments,440027,Other Third Party Payments,03-Apr-12,2431262-794425,"1,277.94",REDACTED - PAYMENT TO INDIVIDUAL
Children and Young Peoples Services,CYPS - Local Authority,Third Party Payments,440027,Other Third Party Payments,03-Apr-12,2431275-794392,706.23,REDACTED - PAYMENT TO INDIVIDUAL
Children and Young Peoples Services,CYPS - Local Authority,Third Party Payments,440027,Other Third Party Payments,03-Apr-12,2431299-794299,773.49,REDACTED - PAYMENT TO INDIVIDUAL
Children and Young Peoples Services,CYPS - Local Authority,Transport,230007,Contract Hire,03-Apr-12,2431301-16,"2,200.00",A & P TAXI.
Children and Young Peoples Services,CYPS - Local Authority,Transport,230007,Contract Hire,03-Apr-12,2431302-423,"1,575.00",A BARKER.
Children and Young Peoples Services,CYPS - Local Authority,Transport,230007,Contract Hire,03-Apr-12,2431302-424,"1,050.00",A BARKER.
Children and Young Peoples Services,CYPS - Local Authority,Transport,230007,Contract Hire,03-Apr-12,2431302-425,"1,575.00",A BARKER.
Children and Young Peoples Services,CYPS - Local Authority,Transport,230201,Contract Hire,03-Apr-12,2431319-SI0000304547,583.74,ARVAL UK LTD.
Children and Young Peoples Services,CYPS - Local Authority,Supplies and Services,338035,Services,03-Apr-12,2431322-A12/1354703,"3,416.50",ASSOCIATED BOARD OF THE SCHOOL OF MUSIC.
Children and Young Peoples Services,CYPS - Local Authority,Transport,230007,Contract Hire,03-Apr-12,2431334-TGS0312,"7,064.64",BELL BROTHERS TRAVEL.
Children and Young Peoples Services,CYPS - Local Authority,Supplies and Services,384199,Miscellaneous Expenses,03-Apr-12,2431340-SINV21676,"31,000.00",BISHOP AUCKLAND COLLEGE.
Children and Young Peoples Services,CYPS - Local Authority,Transport,230007,Contract Hire,03-Apr-12,2431343-0024,"1,575.00",BOBBY DOVE.
Children and Young Peoples Services,CYPS - Local Authority,Transport,230007,Contract Hire,03-Apr-12,2431343-0025,"1,962.45",BOBBY DOVE.
Children and Young Peoples Services,CYPS - Local Authority,Supplies and Services,352001,Conference Expenses,03-Apr-12,2431354-MF156,842.95,BRIGHTSIDE YOUTH SERVICE LTD.
Children and Young Peoples Services,CYPS - Local Authority,Transport,230007,Contract Hire,03-Apr-12,2431382-495,"3,008.28",CLIVE HUBERY.
Children and Young Peoples Services,CYPS - Local Authority,Transport,230007,Contract Hire,03-Apr-12,2431382-496,"2,546.94",CLIVE HUBERY.
Children and Young Peoples Services,CYPS - Local Authority,Transport,230007,Contract Hire,03-Apr-12,2431382-497,"2,100.00",CLIVE HUBERY.
Children and Young Peoples Services,CYPS - Local Authority,Transport,230007,Contract Hire,03-Apr-12,2431386-C/6897,"5,939.34",COCHRANES T/A KELVIN TRAVEL.
Children and Young Peoples Services,CYPS - Local Authority,Transport,230007,Contract Hire,03-Apr-12,2431386-C/6898,"2,640.00",COCHRANES T/A KELVIN TRAVEL.
Children and Young Peoples Services,CYPS - Local Authority,Transport,230007,Contract Hire,03-Apr-12,2431404-230652,"2,640.00",DALELINK PRIVATE HIRE.
Children and Young Peoples Services,CYPS - Local Authority,Transport,230007,Contract Hire,03-Apr-12,2431404-230653,"1,430.00",DALELINK PRIVATE HIRE.
Children and Young Peoples Services,CYPS - Local Authority,Transport,230007,Contract Hire,03-Apr-12,2431431-008MAR12,"1,820.00",EMMA`S CABS.
Children and Young Peoples Services,CYPS - Local Authority,Transport,230007,Contract Hire,03-Apr-12,2431432-0481,"2,923.62",EN ROUTE TRAVEL.
Children and Young Peoples Services,CYPS - Local Authority,Transport,230007,Contract Hire,03-Apr-12,2431432-0482,"1,680.00",EN ROUTE TRAVEL.
Children and Young Peoples Services,CYPS - Local Authority,Third Party Payments,425040,Rendered by Voluntary Organisations,03-Apr-12,2431444-FC009701,740,FOSTER CARES LTD.
Children and Young Peoples Services,CYPS - Local Authority,Third Party Payments,425040,Rendered by Voluntary Organisations,03-Apr-12,2431444-FC009729,740,FOSTER CARES LTD.
Children and Young Peoples Services,CYPS - Local Authority,Transport,230007,Contract Hire,03-Apr-12,2431448-03/12,"1,870.00",FREEDOM PRIVATE HIRE.
Children and Young Peoples Services,CYPS - Local Authority,Transport,230007,Contract Hire,03-Apr-12,2431451-7260,697.76,G & I PRIVATE HIRE LTD.
Children and Young Peoples Services,CYPS - Local Authority,Transport,230007,Contract Hire,03-Apr-12,2431451-7260JAN12,915.81,G & I PRIVATE HIRE LTD.
Children and Young Peoples Services,CYPS - Local Authority,Transport,230007,Contract Hire,03-Apr-12,2431456-14059,"10,296.00",GARNETTS LTD.
Children and Young Peoples Services,CYPS - Local Authority,Transport,230007,Contract Hire,03-Apr-12,2431456-14060,"5,236.00",GARNETTS LTD.
Children and Young Peoples Services,CYPS - Local Authority,Transport,230007,Contract Hire,03-Apr-12,2431456-14061,"3,403.62",GARNETTS LTD.
Children and Young Peoples Services,CYPS - Local Authority,Transport,230007,Contract Hire,03-Apr-12,2431456-14062,"17,490.00",GARNETTS LTD.
Children and Young Peoples Services,CYPS - Local Authority,Transport,230007,Contract Hire,03-Apr-12,2431456-14063,"3,248.91",GARNETTS LTD.
Children and Young Peoples Services,CYPS - Local Authority,Transport,230007,Contract Hire,03-Apr-12,2431456-14064,"3,322.00",GARNETTS LTD.
Children and Young Peoples Services,CYPS - Local Authority,Transport,230007,Contract Hire,03-Apr-12,2431456-14065,"15,114.00",GARNETTS LTD.
Children and Young Peoples Services,CYPS - Local Authority,Transport,230007,Contract Hire,03-Apr-12,2431456-14066,"3,289.44",GARNETTS LTD.
Children and Young Peoples Services,CYPS - Local Authority,Transport,230007,Contract Hire,03-Apr-12,2431456-14067,"10,220.76",GARNETTS LTD.
Children and Young Peoples Services,CYPS - Local Authority,Transport,230007,Contract Hire,03-Apr-12,2431456-14068,"3,852.20",GARNETTS LTD.
Children and Young Peoples Services,CYPS - Local Authority,Transport,230007,Contract Hire,03-Apr-12,2431456-14069,"3,632.20",GARNETTS LTD.
Children and Young Peoples Services,CYPS - Local Authority,Transport,230007,Contract Hire,03-Apr-12,2431456-14070,"8,178.06",GARNETTS LTD.
Children and Young Peoples Services,CYPS - Local Authority,Transport,230007,Contract Hire,03-Apr-12,2431456-14071,"3,498.00",GARNETTS LTD.
Children and Young Peoples Services,CYPS - Local Authority,Transport,230007,Contract Hire,03-Apr-12,2431457-545,"1,256.42",GEM TRAVEL.
Children and Young Peoples Services,CYPS - Local Authority,Transport,230007,Contract Hire,03-Apr-12,2431461-018MAR12,"1,496.00",GMC TAXIS NORTH EAST.
Children and Young Peoples Services,CYPS - Local Authority,Transport,230007,Contract Hire,03-Apr-12,2431461-026MAR12,"1,320.00",GMC TAXIS NORTH EAST.
Children and Young Peoples Services,CYPS - Local Authority,Supplies and Services,304259,Equipment and Materials,03-Apr-12,2431465-873779,"1,007.80",GRANADA LEARNING LTD.
Children and Young Peoples Services,CYPS - Local Authority,Premises,125009,Rents,03-Apr-12,2431472-GH2928,"1,010.59",GROUNDWORK NORTH EAST.
Children and Young Peoples Services,CYPS - Local Authority,Transport,230007,Contract Hire,03-Apr-12,2431478-04/2012,"1,889.36",HARRY DICKSON.
Children and Young Peoples Services,CYPS - Local Authority,Transport,230007,Contract Hire,03-Apr-12,2431494-YC003,523.6,HOTS TAXIS.
Children and Young Peoples Services,CYPS - Local Authority,Transport,230007,Contract Hire,03-Apr-12,2431500-IR1204001,"1,260.00",I & R EXECUTIVE TRAVEL.
Children and Young Peoples Services,CYPS - Local Authority,Transport,230007,Contract Hire,03-Apr-12,2431506-EVS/18,"2,025.00",J & C COACHES.
Children and Young Peoples Services,CYPS - Local Authority,Transport,230007,Contract Hire,03-Apr-12,2431509-22,520,JK TAXIS.
Children and Young Peoples Services,CYPS - Local Authority,Transport,230007,Contract Hire,03-Apr-12,2431515-3,858,JOHN RIDLEY.
Children and Young Peoples Services,CYPS - Local Authority,Transport,230007,Contract Hire,03-Apr-12,2431516-5,"1,144.00",JOHNS TAXIS (CHESTER LE STREET).
Children and Young Peoples Services,CYPS - Local Authority,Transport,230007,Contract Hire,03-Apr-12,2431516-6,"1,650.00",JOHNS TAXIS (CHESTER LE STREET).
Children and Young Peoples Services,CYPS - Local Authority,Transport,230007,Contract Hire,03-Apr-12,2431516-8,704,JOHNS TAXIS (CHESTER LE STREET).
Children and Young Peoples Services,CYPS - Local Authority,Transport,230007,Contract Hire,03-Apr-12,2431517-SJ45,"1,596.54",JOVIAL PRIVATE HIRE.
Children and Young Peoples Services,CYPS - Local Authority,Transport,230007,Contract Hire,03-Apr-12,2431517-T13,"1,606.00",JOVIAL PRIVATE HIRE.
Children and Young Peoples Services,CYPS - Local Authority,Transport,230007,Contract Hire,03-Apr-12,2431525-2,"1,650.00",KD TAXIS.
Children and Young Peoples Services,CYPS - Local Authority,Transport,230007,Contract Hire,03-Apr-12,2431526-029,"1,716.00",KEITH HAMMOND.
Children and Young Peoples Services,CYPS - Local Authority,Transport,230007,Contract Hire,03-Apr-12,2431527-11026103,"1,210.00",REDACTED - PAYMENT TO INDIVIDUAL
Children and Young Peoples Services,CYPS - Local Authority,Transport,230007,Contract Hire,03-Apr-12,2431527-11026104,"1,210.00",REDACTED - PAYMENT TO INDIVIDUAL
Children and Young Peoples Services,CYPS - Local Authority,Supplies and Services,364999,Grants to Voluntary Organisations,03-Apr-12,2431531-303,"12,000.00",KEYFUND FEDERATION LTD.
Children and Young Peoples Services,CYPS - Local Authority,Transport,230007,Contract Hire,03-Apr-12,2431534-KW-0012,"1,072.50",KWIK CABS.
Children and Young Peoples Services,CYPS - Local Authority,Transport,230007,Contract Hire,03-Apr-12,2431534-KW-007,770,KWIK CABS.
Children and Young Peoples Services,CYPS - Local Authority,Transport,230007,Contract Hire,03-Apr-12,2431534-KW-009,880,KWIK CABS.
Children and Young Peoples Services,CYPS - Local Authority,Transport,230007,Contract Hire,03-Apr-12,2431534-KW-010,880,KWIK CABS.
Children and Young Peoples Services,CYPS - Local Authority,Transport,230007,Contract Hire,03-Apr-12,2431534-KW-011,990,KWIK CABS.
Children and Young Peoples Services,CYPS - Local Authority,Transport,230007,Contract Hire,03-Apr-12,2431541-053,"2,640.00",LD TAXIS.
Children and Young Peoples Services,CYPS - Local Authority,Transport,230007,Contract Hire,03-Apr-12,2431541-054,"1,680.00",LD TAXIS.
Children and Young Peoples Services,CYPS - Local Authority,Transport,230007,Contract Hire,03-Apr-12,2431544-019,939,LEE`S TAXIS.
Children and Young Peoples Services,CYPS - Local Authority,Transport,230007,Contract Hire,03-Apr-12,2431547-2656,959.84,LINCAB TAXIS.
Children and Young Peoples Services,CYPS - Local Authority,Transport,230007,Contract Hire,03-Apr-12,2431547-2657,672,LINCAB TAXIS.
Children and Young Peoples Services,CYPS - Local Authority,Transport,230007,Contract Hire,03-Apr-12,2431547-2658,880,LINCAB TAXIS.
Children and Young Peoples Services,CYPS - Local Authority,Transport,230007,Contract Hire,03-Apr-12,2431547-2659,"1,374.00",LINCAB TAXIS.
Children and Young Peoples Services,CYPS - Local Authority,Transport,230007,Contract Hire,03-Apr-12,2431547-2660,"1,671.52",LINCAB TAXIS.
Children and Young Peoples Services,CYPS - Local Authority,Transport,230007,Contract Hire,03-Apr-12,2431547-2662,"1,104.00",LINCAB TAXIS.
Children and Young Peoples Services,CYPS - Local Authority,Transport,230007,Contract Hire,03-Apr-12,2431551-1016,"1,798.35",LOCAL TRANSPORT LTD.
Children and Young Peoples Services,CYPS - Local Authority,Transport,230007,Contract Hire,03-Apr-12,2431551-1018,"2,414.72",LOCAL TRANSPORT LTD.
Children and Young Peoples Services,CYPS - Local Authority,Transport,230007,Contract Hire,03-Apr-12,2431551-1019,"2,643.14",LOCAL TRANSPORT LTD.
Children and Young Peoples Services,CYPS - Local Authority,Transport,230007,Contract Hire,03-Apr-12,2431551-1021,630,LOCAL TRANSPORT LTD.
Children and Young Peoples Services,CYPS - Local Authority,Transport,230007,Contract Hire,03-Apr-12,2431554-38,"1,474.00",LORRAINES TAXIS.
Children and Young Peoples Services,CYPS - Local Authority,Transport,230007,Contract Hire,03-Apr-12,2431554-39,"1,430.00",LORRAINES TAXIS.
Children and Young Peoples Services,CYPS - Local Authority,Transport,230007,Contract Hire,03-Apr-12,2431560-03,"1,370.60",M & S TAXIS.
Children and Young Peoples Services,CYPS - Local Authority,Transport,230007,Contract Hire,03-Apr-12,2431561-05,"1,320.00",M BUTCHER.
Children and Young Peoples Services,CYPS - Local Authority,Transport,230007,Contract Hire,03-Apr-12,2431561-07,525,M BUTCHER.
Children and Young Peoples Services,CYPS - Local Authority,Transport,230007,Contract Hire,03-Apr-12,2431564-424613,528,MARKS TAXIS.
Children and Young Peoples Services,CYPS - Local Authority,Transport,230007,Contract Hire,03-Apr-12,2431564-4313,"1,050.00",MARKS TAXIS.
Children and Young Peoples Services,CYPS - Local Authority,Transport,230007,Contract Hire,03-Apr-12,2431572-900,"2,367.43",MCDONALD TRAVEL.
Children and Young Peoples Services,CYPS - Local Authority,Transport,230007,Contract Hire,03-Apr-12,2431572-901,"1,827.54",MCDONALD TRAVEL.
Children and Young Peoples Services,CYPS - Local Authority,Transport,230007,Contract Hire,03-Apr-12,2431572-902,"1,827.54",MCDONALD TRAVEL.
Children and Young Peoples Services,CYPS - Local Authority,Transport,230007,Contract Hire,03-Apr-12,2431572-903,"1,827.54",MCDONALD TRAVEL.
Children and Young Peoples Services,CYPS - Local Authority,Transport,230007,Contract Hire,03-Apr-12,2431572-904,"2,284.48",MCDONALD TRAVEL.
Children and Young Peoples Services,CYPS - Local Authority,Transport,230007,Contract Hire,03-Apr-12,2431575-00453,"1,980.00",MICHAELS TRAVEL.
Children and Young Peoples Services,CYPS - Local Authority,Transport,230007,Contract Hire,03-Apr-12,2431575-00454,"2,508.10",MICHAELS TRAVEL.
Children and Young Peoples Services,CYPS - Local Authority,Transport,230007,Contract Hire,03-Apr-12,2431585-103012,"2,875.00",MJ TIMNEY.
Children and Young Peoples Services,CYPS - Local Authority,Transport,230007,Contract Hire,03-Apr-12,2431585-KDC020312,"2,421.40",MJ TIMNEY.
Children and Young Peoples Services,CYPS - Local Authority,Supplies and Services,338045,Services,03-Apr-12,2431593-178879-S&M,"1,300.00",MR FRAZER MCDERMOTT.
Children and Young Peoples Services,CYPS - Local Authority,Transport,230007,Contract Hire,03-Apr-12,2431594-53,"2,405.34",MR GN ROBBINS.
Children and Young Peoples Services,CYPS - Local Authority,Transport,230007,Contract Hire,03-Apr-12,2431594-54,"1,567.64",MR GN ROBBINS.
Children and Young Peoples Services,CYPS - Local Authority,Transport,230007,Contract Hire,03-Apr-12,2431595-CH/3/12,572,MR J AGAR T/A PARK TAXIS.
Children and Young Peoples Services,CYPS - Local Authority,Transport,230007,Contract Hire,03-Apr-12,2431595-NU-03-12,"1,512.00",MR J AGAR T/A PARK TAXIS.
Children and Young Peoples Services,CYPS - Local Authority,Transport,230007,Contract Hire,03-Apr-12,2431596-51590312,946,MR JOHN CHISHOLM.
Children and Young Peoples Services,CYPS - Local Authority,Transport,230007,Contract Hire,03-Apr-12,2431596-60180312,"1,056.00",MR JOHN CHISHOLM.
Children and Young Peoples Services,CYPS - Local Authority,Transport,230007,Contract Hire,03-Apr-12,2431596-E0540312,"1,298.00",MR JOHN CHISHOLM.
Children and Young Peoples Services,CYPS - Local Authority,Transport,230007,Contract Hire,03-Apr-12,2431597-0009MAR12,"3,593.30",MR P CAHILL.
Children and Young Peoples Services,CYPS - Local Authority,Transport,230007,Contract Hire,03-Apr-12,2431597-0014,"3,426.50",MR P CAHILL.
Children and Young Peoples Services,CYPS - Local Authority,Transport,230007,Contract Hire,03-Apr-12,2431600-AA160,"2,319.90",MR T GUNN.
Children and Young Peoples Services,CYPS - Local Authority,Transport,230007,Contract Hire,03-Apr-12,2431600-AA161,"3,025.00",MR T GUNN.
Children and Young Peoples Services,CYPS - Local Authority,Transport,230007,Contract Hire,03-Apr-12,2431600-AA162,"2,902.01",MR T GUNN.
Children and Young Peoples Services,CYPS - Local Authority,Transport,230007,Contract Hire,03-Apr-12,2431608-75,"1,611.06",N FORBES.
Children and Young Peoples Services,CYPS - Local Authority,Transport,230007,Contract Hire,03-Apr-12,2431608-76,"1,080.00",N FORBES.
Children and Young Peoples Services,CYPS - Local Authority,Supplies and Services,304259,Equipment and Materials,03-Apr-12,2431612-2011.54067,680.18,NEOPOST FINANCE LTD.
Children and Young Peoples Services,CYPS - Local Authority,Supplies and Services,340001,Postages,03-Apr-12,2431613-240641/APR12,"2,500.00",NEOPOST LTD CREDIFON RCB ACCOUNT.
Children and Young Peoples Services,CYPS - Local Authority,Supplies and Services,340001,Postages,03-Apr-12,2431613-291787,"1,000.00",NEOPOST LTD CREDIFON RCB ACCOUNT.
Children and Young Peoples Services,CYPS - Local Authority,Supplies and Services,340001,Postages,03-Apr-12,2431613-291788,"1,000.00",NEOPOST LTD CREDIFON RCB ACCOUNT.
Children and Young Peoples Services,CYPS - Local Authority,Supplies and Services,340001,Postages,03-Apr-12,2431613-291789,"1,000.00",NEOPOST LTD CREDIFON RCB ACCOUNT.
Children and Young Peoples Services,CYPS - Local Authority,Supplies and Services,340001,Postages,03-Apr-12,2431613-A4559950,"1,000.00",NEOPOST LTD CREDIFON RCB ACCOUNT.
Children and Young Peoples Services,CYPS - Local Authority,Transport,230007,Contract Hire,03-Apr-12,2431620-1804,"2,072.80",NIGHTINGALE COACHES.
Children and Young Peoples Services,CYPS - Local Authority,Transport,230007,Contract Hire,03-Apr-12,2431620-1841,"2,946.90",NIGHTINGALE COACHES.
Children and Young Peoples Services,CYPS - Local Authority,Transport,230007,Contract Hire,03-Apr-12,2431620-1842,"2,794.00",NIGHTINGALE COACHES.
Children and Young Peoples Services,CYPS - Local Authority,Transport,230007,Contract Hire,03-Apr-12,2431620-1843,"2,866.38",NIGHTINGALE COACHES.
Children and Young Peoples Services,CYPS - Local Authority,Transport,230007,Contract Hire,03-Apr-12,2431620-1853,"3,004.54",NIGHTINGALE COACHES.
Children and Young Peoples Services,CYPS - Local Authority,Transport,230007,Contract Hire,03-Apr-12,2431639-011,"1,181.18",PAUL SAVAGE.
Children and Young Peoples Services,CYPS - Local Authority,Transport,230007,Contract Hire,03-Apr-12,2431640-1MAR12,"1,527.24",PAUL WATSON TRAVEL.
Children and Young Peoples Services,CYPS - Local Authority,Transport,230007,Contract Hire,03-Apr-12,2431640-2MAR12,"2,741.20",PAUL WATSON TRAVEL.
Children and Young Peoples Services,CYPS - Local Authority,Transport,230007,Contract Hire,03-Apr-12,2431640-4MAR12,"1,540.00",PAUL WATSON TRAVEL.
Children and Young Peoples Services,CYPS - Local Authority,Transport,230007,Contract Hire,03-Apr-12,2431641-ST17/11,"1,813.68",PB PRIVATE HIRE.
Children and Young Peoples Services,CYPS - Local Authority,Transport,230007,Contract Hire,03-Apr-12,2431643-1,836,PETER HOLMES.
Children and Young Peoples Services,CYPS - Local Authority,Transport,230007,Contract Hire,03-Apr-12,2431646-0172,"2,420.00",PETER`S PRIVATE HIRE/PETER BEST.
Children and Young Peoples Services,CYPS - Local Authority,Transport,230007,Contract Hire,03-Apr-12,2431646-0173,782,PETER`S PRIVATE HIRE/PETER BEST.
Children and Young Peoples Services,CYPS - Local Authority,Transport,230007,Contract Hire,03-Apr-12,2431650-47MAR12,880,PITSTOP TAXIS.
Children and Young Peoples Services,CYPS - Local Authority,Transport,230007,Contract Hire,03-Apr-12,2431659-2062,"1,045.88",RICHIES TAXIS.
Children and Young Peoples Services,CYPS - Local Authority,Transport,230007,Contract Hire,03-Apr-12,2431664-6122,"3,597.88",ROBERTS OF WINGATE.
Children and Young Peoples Services,CYPS - Local Authority,Transport,230007,Contract Hire,03-Apr-12,2431667-1509,"2,047.54",RONS TAXIS.
Children and Young Peoples Services,CYPS - Local Authority,Transport,230007,Contract Hire,03-Apr-12,2431667-1510,880,RONS TAXIS.
Children and Young Peoples Services,CYPS - Local Authority,Transport,230007,Contract Hire,03-Apr-12,2431667-1511,"1,553.42",RONS TAXIS.
Children and Young Peoples Services,CYPS - Local Authority,Transport,230007,Contract Hire,03-Apr-12,2431667-1512,"2,100.00",RONS TAXIS.
Children and Young Peoples Services,CYPS - Local Authority,Transport,230007,Contract Hire,03-Apr-12,2431673-4204,"3,532.98",SAFARI TRAVEL.
Children and Young Peoples Services,CYPS - Local Authority,Transport,230007,Contract Hire,03-Apr-12,2431678-012,524,SAZ CABS.
Children and Young Peoples Services,CYPS - Local Authority,Supplies and Services,384302,Miscellaneous Expenses,03-Apr-12,2431689-10/2012,"1,781.28",SHOTTON & DISTRICT COMMUNITY ASSOCIATION.
Children and Young Peoples Services,CYPS - Local Authority,Supplies and Services,304421,Equipment and Materials,03-Apr-12,2431691-384/12/0012041,"1,263.62",SIEMENS FINANCIAL SERVICES LTD.
Children and Young Peoples Services,CYPS - Local Authority,Transport,230007,Contract Hire,03-Apr-12,2431693-1544,"2,978.00",SNOWDON COACHES.
Children and Young Peoples Services,CYPS - Local Authority,Transport,230007,Contract Hire,03-Apr-12,2431693-1545,"7,216.00",SNOWDON COACHES.
Children and Young Peoples Services,CYPS - Local Authority,Transport,230007,Contract Hire,03-Apr-12,2431693-1546,"2,728.00",SNOWDON COACHES.
Children and Young Peoples Services,CYPS - Local Authority,Transport,230007,Contract Hire,03-Apr-12,2431693-1547,"11,385.00",SNOWDON COACHES.
Children and Young Peoples Services,CYPS - Local Authority,Transport,230007,Contract Hire,03-Apr-12,2431698-2004MAR12,616,SPENNYMOOR TAXIS.
Children and Young Peoples Services,CYPS - Local Authority,Transport,230007,Contract Hire,03-Apr-12,2431705-STYL4050,"4,568.52",STYLE TRAVEL.
Children and Young Peoples Services,CYPS - Local Authority,Supplies and Services,324500,Provisions,03-Apr-12,2431708-SI-TSD-1000247,"251,085.00",TAYLOR SHAW LTD.
Children and Young Peoples Services,CYPS - Local Authority,Supplies and Services,384985,Miscellaneous Expenses,03-Apr-12,2431711-APPINV123,500,THE BABY CAFE CHARITABLE TRUST.
Children and Young Peoples Services,CYPS - Local Authority,Transport,230007,Contract Hire,03-Apr-12,2431732-895,"1,188.00",WE CONNOR.
Children and Young Peoples Services,Dedicated Schools Grant,Supplies and Services,338035,Services,03-Apr-12,2431320-160043,924,ASDAN LTD.
Children and Young Peoples Services,Dedicated Schools Grant,Transport,230007,Contract Hire,03-Apr-12,2431501-001,"1,584.00",IAN SOULSBY.
Children and Young Peoples Services,Dedicated Schools Grant,Transport,230007,Contract Hire,03-Apr-12,2431541-055,"1,680.00",LD TAXIS.
Children and Young Peoples Services,Dedicated Schools Grant,Transport,230007,Contract Hire,03-Apr-12,2431547-2663,"1,168.00",LINCAB TAXIS.
Children and Young Peoples Services,Dedicated Schools Grant,Supplies and Services,338099,Services,03-Apr-12,2431610-FJ/M2012,"4,323.00",NATIONAL UNION OF TEACHERS.
Corporate Resources,Asset Management,Premises,135005,Water Services,03-Apr-12,2431628-260100800019077,"3,630.62",NORTHUMBRIAN WATER LTD.
Corporate Resources,Asset Management,Premises,135005,Water Services,03-Apr-12,2431628-312708430017-002,738.8,NORTHUMBRIAN WATER LTD.
Corporate Resources,Asset Management,Premises,135005,Water Services,03-Apr-12,2431628-312708430026-002,738.8,NORTHUMBRIAN WATER LTD.
Corporate Resources,Financing- Resources,Supplies and Services,342224,Computers and Communications,03-Apr-12,2431748-R334645,"1,448.00",XMA LTD.
Corporate Resources,ICT Services incl. Design and Print,Premises,125009,Rents,03-Apr-12,2431349-D09530,"10,000.00",BRADLEY HALL CHARTERED SURVEYORS CLIENT ACCOUNT.
Corporate Resources,ICT Services incl. Design and Print,Supplies and Services,344033,Telephones,03-Apr-12,2431356-VP90592270M08201,"1,407.14",BRITISH TELECOMMUNICATIONS PLC.
Corporate Resources,ICT Services incl. Design and Print,Supplies and Services,304303,Equipment and Materials,03-Apr-12,2431474-INV0143269,704,GV MULTI MEDIA LTD.
Corporate Resources,ICT Services incl. Design and Print,Supplies and Services,344014,Telephones,03-Apr-12,2431631-SB14411203,911.66,O2 (UK) LTD.
Corporate Resources,ICT Services incl. Design and Print,Supplies and Services,344014,Telephones,03-Apr-12,2431631-SB14461203,573.56,O2 (UK) LTD.
Corporate Resources,ICT Services incl. Design and Print,Supplies and Services,344014,Telephones,03-Apr-12,2431631-SB14471203,602.48,O2 (UK) LTD.
Corporate Resources,ICT Services incl. Design and Print,Stock,926900,Stock in hand-Inventory system,03-Apr-12,2431706-4896644,"1,313.17",SUPPLIES TEAM LTD.
Corporate Resources,Internal Audit,Employees,40149,"Recruitment, Instruction and Training",03-Apr-12,2431372-381449,500,CHARTERED INSTITUTE OF INTERNAL AUDITORS.
Corporate Resources,Legal & Democratic Services,Supplies and Services,384151,Miscellaneous Expenses,03-Apr-12,2431618-R0183687,700,NEWCASTLE UPON TYNE HOSPITALS NHS FOUNDATION TRUST.
Corporate Resources,Legal & Democratic Services,Supplies and Services,384151,Miscellaneous Expenses,03-Apr-12,2431618-R0183713,525,NEWCASTLE UPON TYNE HOSPITALS NHS FOUNDATION TRUST.
Corporate Resources,Legal & Democratic Services,Supplies and Services,384151,Miscellaneous Expenses,03-Apr-12,2431618-R0183722,"1,680.00",NEWCASTLE UPON TYNE HOSPITALS NHS FOUNDATION TRUST.
Corporate Resources,Legal & Democratic Services,Supplies and Services,384151,Miscellaneous Expenses,03-Apr-12,2431619-R0183821,"2,595.00",NEWCASTLE UPON TYNE HOSPITALS NHS FOUNDATION TRUST.
Neighbourhood Services,Direct Services,Construction Work,908105,Construction work,03-Apr-12,2431364-92304207,"7,500.00",CAPITA SYMONDS LTD.
Neighbourhood Services,Direct Services,Stock,926900,Stock in hand-Inventory system,03-Apr-12,2431447-6/251100,798,FRED WILLIAMSON & SONS LTD.
Neighbourhood Services,Direct Services,Supplies and Services,304221,Equipment and Materials,03-Apr-12,2431482-4372154,"3,299.20",HEADLAM (FLOORCOVERING DISTRIBUTORS) LTD.
Neighbourhood Services,Direct Services,Third Party Payments,430100,Rendered by Private Contractors,03-Apr-12,2431491-42982,"3,329.49",HOGARTH COACHWORKS LTD.
Neighbourhood Services,Direct Services,Stock,926900,Stock in hand-Inventory system,03-Apr-12,2431512-NI019228,"3,599.84",JOHN MACLEAN & SONS ELECTRICAL (DINGWALL) LTD.
Neighbourhood Services,Direct Services,Stock,926900,Stock in hand-Inventory system,03-Apr-12,2431512-NI019230,"2,566.20",JOHN MACLEAN & SONS ELECTRICAL (DINGWALL) LTD.
Neighbourhood Services,Direct Services,Stock,926900,Stock in hand-Inventory system,03-Apr-12,2431519-STI359520,803.95,JT DOVE LTD.
Neighbourhood Services,Direct Services,Stock,926900,Stock in hand-Inventory system,03-Apr-12,2431519-STI359616,785.5,JT DOVE LTD.
Neighbourhood Services,Direct Services,Transport,230710,Contract Hire,03-Apr-12,2431524-AV/12/449275,"17,031.49",KBC LEASE (UK) LTD.
Neighbourhood Services,Direct Services,Third Party Payments,430100,Rendered by Private Contractors,03-Apr-12,2431538-INV00117225,950,LANES GROUP PLC.
Neighbourhood Services,Direct Services,Third Party Payments,430100,Rendered by Private Contractors,03-Apr-12,2431577-SIN093879,886,MICROLISE LTD.
Neighbourhood Services,Direct Services,Premises,135005,Water Services,03-Apr-12,2431628-225545540135026,"1,317.00",NORTHUMBRIAN WATER LTD.
Neighbourhood Services,Direct Services,Premises,135005,Water Services,03-Apr-12,2431628-310867560015005,"1,317.00",NORTHUMBRIAN WATER LTD.
Neighbourhood Services,Direct Services,Supplies and Services,304259,Equipment and Materials,03-Apr-12,2431660-751070,"2,340.00",RICKERBY LTD.
Neighbourhood Services,Direct Services,Transport,230710,Contract Hire,03-Apr-12,2431691-270/12/0000311,"24,920.28",SIEMENS FINANCIAL SERVICES LTD.
Neighbourhood Services,Direct Services,Transport,230710,Contract Hire,03-Apr-12,2431691-270/12/0000358,"25,554.80",SIEMENS FINANCIAL SERVICES LTD.
Neighbourhood Services,Direct Services,Transport,230710,Contract Hire,03-Apr-12,2431694-L/011/12/11440,"18,371.73",SOCIETE GENERALE EQUIPMENT FINANCE LTD.
Neighbourhood Services,Direct Services,Transport,230710,Contract Hire,03-Apr-12,2431694-L/011/12/11441,"10,818.33",SOCIETE GENERALE EQUIPMENT FINANCE LTD.
Neighbourhood Services,Direct Services,Transport,230710,Contract Hire,03-Apr-12,2431694-L/011/12/11442,"25,044.37",SOCIETE GENERALE EQUIPMENT FINANCE LTD.
Neighbourhood Services,Direct Services,Transport,230710,Contract Hire,03-Apr-12,2431694-L/011/12/14566,"2,850.00",SOCIETE GENERALE EQUIPMENT FINANCE LTD.
Neighbourhood Services,Direct Services,Transport,230710,Contract Hire,03-Apr-12,2431694-L/011/12/14567,"1,600.00",SOCIETE GENERALE EQUIPMENT FINANCE LTD.
Neighbourhood Services,Direct Services,Transport,210057,Repair and Maintenance of Vehicles,03-Apr-12,2431707-1867552,992,TATA STEEL LTD.
Neighbourhood Services,Direct Services,Third Party Payments,430100,Rendered by Private Contractors,03-Apr-12,2431709-ERCS2012,"6,909.00",TEESDALE CONSERVATION VOLUNTEERS.
Neighbourhood Services,Direct Services,Third Party Payments,430100,Rendered by Private Contractors,03-Apr-12,2431714-0000066130,552.73,THE SEKURA GROUP.
Neighbourhood Services,Direct Services,Third Party Payments,430100,Rendered by Private Contractors,03-Apr-12,2431714-3000066113,758.34,THE SEKURA GROUP.
Neighbourhood Services,Direct Services,Third Party Payments,430100,Rendered by Private Contractors,03-Apr-12,2431714-3000066118,500,THE SEKURA GROUP.
Neighbourhood Services,Direct Services,Supplies and Services,304357,Equipment and Materials,03-Apr-12,2431727-33337,600,W MARLEY AGRICULTURAL CONTRACTORS LTD.
Neighbourhood Services,Direct Services,Supplies and Services,304357,Equipment and Materials,03-Apr-12,2431727-33338,"1,367.88",W MARLEY AGRICULTURAL CONTRACTORS LTD.
Neighbourhood Services,Direct Services,Stock,926900,Stock in hand-Inventory system,03-Apr-12,2431729-13867,708,WARD TIMBER LTD.
Neighbourhood Services,"Environment,Health & Consumer Protection",Premises,135005,Water Services,03-Apr-12,2431628-10230970002X058,910.85,NORTHUMBRIAN WATER LTD.
Neighbourhood Services,"Environment,Health & Consumer Protection",Premises,135005,Water Services,03-Apr-12,2431628-225545540019018,"1,317.00",NORTHUMBRIAN WATER LTD.
Neighbourhood Services,"Environment,Health & Consumer Protection",Premises,135005,Water Services,03-Apr-12,2431628-225545540028016,738.8,NORTHUMBRIAN WATER LTD.
Neighbourhood Services,Projects and Business services,Third Party Payments,430103,Rendered by Private Contractors,03-Apr-12,2431355-259,653.44,BRITISH HEART FOUNDATION.
Neighbourhood Services,Projects and Business services,Supplies and Services,338027,Services,03-Apr-12,2431507-B1682500/006/SAA,"15,419.19",JACOBS ENGINEERING UK LTD.
Neighbourhood Services,Projects and Business services,Third Party Payments,430104,Rendered by Private Contractors,03-Apr-12,2431653-DCC/11/12,"1,146,161.47",PREMIER WASTE MANAGEMENT LTD.
Neighbourhood Services,Projects and Business services,Supplies and Services,340001,Postages,03-Apr-12,2431670-9037904253,"4,912.68",ROYAL MAIL GROUP PLC.
Neighbourhood Services,Sport & Leisure,Supplies and Services,352001,Conference Expenses,03-Apr-12,2431419-237794,855,DURHAM UNIVERSITY.
Neighbourhood Services,Sport & Leisure,Supplies and Services,328041,"Clothing, Uniforms and Laundry",03-Apr-12,2431676-2303030,"4,530.00",SAGITTARIAN EMBROIDERY.
Neighbourhood Services,Technical Services,Supplies and Services,304252,Equipment and Materials,03-Apr-12,2431353-53037993,"1,300.95",BRANDON HIRE PLC.
Neighbourhood Services,Technical Services,Supplies and Services,304252,Equipment and Materials,03-Apr-12,2431353-53041286,597.61,BRANDON HIRE PLC.
Neighbourhood Services,Technical Services,Supplies and Services,304252,Equipment and Materials,03-Apr-12,2431353-53041287,"2,084.50",BRANDON HIRE PLC.
Neighbourhood Services,Technical Services,Supplies and Services,304252,Equipment and Materials,03-Apr-12,2431353-53041288,"2,084.50",BRANDON HIRE PLC.
Neighbourhood Services,Technical Services,Summary reporting level,720299,Fees and Charges,03-Apr-12,2431385-S120405/ATK/MC,"2,875.68",COAL AUTHORITY.
Neighbourhood Services,Technical Services,Third Party Payments,430100,Rendered by Private Contractors,03-Apr-12,2431391-DCC/1330/3356,"4,920.00",CONDOR PROJECTS LTD.
Neighbourhood Services,Technical Services,Supplies and Services,304357,Equipment and Materials,03-Apr-12,2431458-8644,"3,336.64",GEORGE VARDY HAULAGE.
Neighbourhood Services,Technical Services,Supplies and Services,304357,Equipment and Materials,03-Apr-12,2431458-8660,740,GEORGE VARDY HAULAGE.
Neighbourhood Services,Technical Services,Supplies and Services,304221,Equipment and Materials,03-Apr-12,2431512-NI019229,"10,441.54",JOHN MACLEAN & SONS ELECTRICAL (DINGWALL) LTD.
Neighbourhood Services,Technical Services,Supplies and Services,304358,Equipment and Materials,03-Apr-12,2431514-11594,945.95,JOHN R BUTTERFIELD LTD.
Neighbourhood Services,Technical Services,Supplies and Services,304358,Equipment and Materials,03-Apr-12,2431514-11596,"1,195.43",JOHN R BUTTERFIELD LTD.
Neighbourhood Services,Technical Services,Supplies and Services,304358,Equipment and Materials,03-Apr-12,2431514-11605,"1,229.09",JOHN R BUTTERFIELD LTD.
Neighbourhood Services,Technical Services,Supplies and Services,304358,Equipment and Materials,03-Apr-12,2431514-11611,919.71,JOHN R BUTTERFIELD LTD.
Neighbourhood Services,Technical Services,Supplies and Services,304358,Equipment and Materials,03-Apr-12,2431514-11613,920.21,JOHN R BUTTERFIELD LTD.
Neighbourhood Services,Technical Services,Supplies and Services,304358,Equipment and Materials,03-Apr-12,2431514-11634,"1,167.71",JOHN R BUTTERFIELD LTD.
Neighbourhood Services,Technical Services,Supplies and Services,304358,Equipment and Materials,03-Apr-12,2431514-11636,694.98,JOHN R BUTTERFIELD LTD.
Neighbourhood Services,Technical Services,Supplies and Services,304358,Equipment and Materials,03-Apr-12,2431514-11642,919.71,JOHN R BUTTERFIELD LTD.
Neighbourhood Services,Technical Services,Supplies and Services,304358,Equipment and Materials,03-Apr-12,2431514-11667,945.95,JOHN R BUTTERFIELD LTD.
Neighbourhood Services,Technical Services,Supplies and Services,304358,Equipment and Materials,03-Apr-12,2431514-11669,"1,417.19",JOHN R BUTTERFIELD LTD.
Neighbourhood Services,Technical Services,Supplies and Services,304358,Equipment and Materials,03-Apr-12,2431514-11672,694.98,JOHN R BUTTERFIELD LTD.
Neighbourhood Services,Technical Services,Supplies and Services,304358,Equipment and Materials,03-Apr-12,2431514-11679,"1,141.47",JOHN R BUTTERFIELD LTD.
Neighbourhood Services,Technical Services,Supplies and Services,304358,Equipment and Materials,03-Apr-12,2431514-11692,748.44,JOHN R BUTTERFIELD LTD.
Neighbourhood Services,Technical Services,Supplies and Services,304358,Equipment and Materials,03-Apr-12,2431514-11693,720.06,JOHN R BUTTERFIELD LTD.
Neighbourhood Services,Technical Services,Supplies and Services,304358,Equipment and Materials,03-Apr-12,2431514-11717,945.95,JOHN R BUTTERFIELD LTD.
Neighbourhood Services,Technical Services,Supplies and Services,304358,Equipment and Materials,03-Apr-12,2431514-11718,"1,167.71",JOHN R BUTTERFIELD LTD.
Neighbourhood Services,Technical Services,Supplies and Services,304358,Equipment and Materials,03-Apr-12,2431514-11719,"1,167.71",JOHN R BUTTERFIELD LTD.
Neighbourhood Services,Technical Services,Supplies and Services,304358,Equipment and Materials,03-Apr-12,2431514-11720,960.8,JOHN R BUTTERFIELD LTD.
Neighbourhood Services,Technical Services,Supplies and Services,304358,Equipment and Materials,03-Apr-12,2431514-11726,"1,141.47",JOHN R BUTTERFIELD LTD.
Neighbourhood Services,Technical Services,Supplies and Services,304358,Equipment and Materials,03-Apr-12,2431514-11728,740.03,JOHN R BUTTERFIELD LTD.
Neighbourhood Services,Technical Services,Supplies and Services,304358,Equipment and Materials,03-Apr-12,2431514-11733,712.8,JOHN R BUTTERFIELD LTD.
Neighbourhood Services,Technical Services,Supplies and Services,304357,Equipment and Materials,03-Apr-12,2431536-8558,654,LAE VEHICLE RENTAL LTD.
Neighbourhood Services,Technical Services,Supplies and Services,304221,Equipment and Materials,03-Apr-12,2431565-ZBB0232615,"3,705.40",MARSHALLS MONO LTD.
Neighbourhood Services,Technical Services,Supplies and Services,304221,Equipment and Materials,03-Apr-12,2431565-ZBB0234950,"1,698.30",MARSHALLS MONO LTD.
Neighbourhood Services,Technical Services,Supplies and Services,304221,Equipment and Materials,03-Apr-12,2431565-ZBB0235657,"3,762.76",MARSHALLS MONO LTD.
Neighbourhood Services,Technical Services,Supplies and Services,304357,Equipment and Materials,03-Apr-12,2431573-141253,504,MECHPLANT (NORTH EAST) LTD.
Neighbourhood Services,Technical Services,Third Party Payments,430100,Rendered by Private Contractors,03-Apr-12,2431574-121,"1,472.00",MICHAEL KELLY.
Neighbourhood Services,Technical Services,Supplies and Services,304357,Equipment and Materials,03-Apr-12,2431586-718057894,720,MOBILE MINI UK LTD.
Neighbourhood Services,Technical Services,Supplies and Services,304221,Equipment and Materials,03-Apr-12,2431615-29278,"1,870.16",NEW COUNTY ROADS.
Neighbourhood Services,Technical Services,Third Party Payments,460350,Contract Payments,03-Apr-12,2431625-028139,523.2,NORTHERN DISPOSAL SERVICES LTD.
Neighbourhood Services,Technical Services,Supplies and Services,304221,Equipment and Materials,03-Apr-12,2431652-APP/03/25ST,747.89,PREMIER TRAFFIC MANAGEMENT LTD.
Neighbourhood Services,Technical Services,Supplies and Services,304221,Equipment and Materials,03-Apr-12,2431652-APP/03/29SR,554.06,PREMIER TRAFFIC MANAGEMENT LTD.
Neighbourhood Services,Technical Services,Supplies and Services,304221,Equipment and Materials,03-Apr-12,2431653-045147,"4,747.06",PREMIER WASTE MANAGEMENT LTD.
Neighbourhood Services,Technical Services,Supplies and Services,304358,Equipment and Materials,03-Apr-12,2431656-7931,762.2,RD KEARTON & SONS LTD.
RED HRA,HRA Capital,Construction Work,908105,Construction work,03-Apr-12,2431303-22032012,"1,272.00",ACADEMY PLASTERERS.
RED HRA,HRA Capital,Construction Work,908105,Construction work,03-Apr-12,2431303-29022012,"1,411.80",ACADEMY PLASTERERS.
RED HRA,HRA Capital,Construction Work,908105,Construction work,03-Apr-12,2431581-CON51438,"1,430.50",MIS ENVIRONMENTAL LTD.
RED HRA,HRA Capital,Construction Work,908105,Construction work,03-Apr-12,2431581-CON51531,955,MIS ENVIRONMENTAL LTD.
RED HRA,HRA Capital,Construction Work,908105,Construction work,03-Apr-12,2431581-CON51589,630,MIS ENVIRONMENTAL LTD.
RED HRA,HRA Capital,Construction Work,908105,Construction work,03-Apr-12,2431731-50290,"4,346.15",WATES CONSTRUCTION LTD.
RED HRA,HRA Capital,Construction Work,908105,Construction work,03-Apr-12,2431731-50294,"1,340.80",WATES CONSTRUCTION LTD.
RED HRA,HRA Capital,Construction Work,908105,Construction work,03-Apr-12,2431738-19723,"3,117.30",WHITFIELDS BUILDING SERVICES LTD.
RED HRA,HRA Capital,Construction Work,908105,Construction work,03-Apr-12,2431738-19724,"3,530.26",WHITFIELDS BUILDING SERVICES LTD.
RED HRA,HRA Capital,Construction Work,908105,Construction work,03-Apr-12,2431738-19725,"3,409.86",WHITFIELDS BUILDING SERVICES LTD.
RED HRA,HRA Capital,Construction Work,908105,Construction work,03-Apr-12,2431738-19726,"2,996.32",WHITFIELDS BUILDING SERVICES LTD.
RED HRA,HRA Capital,Construction Work,908105,Construction work,03-Apr-12,2431738-19727,"3,233.97",WHITFIELDS BUILDING SERVICES LTD.
RED HRA,HRA Capital,Construction Work,908105,Construction work,03-Apr-12,2431738-19732,"3,494.45",WHITFIELDS BUILDING SERVICES LTD.
Regeneration & Economic Development,Econ Dev and Regen Financing,Debtors,930017,Debtor-gas contract holding account,03-Apr-12,2431395-GASFEB2012,"575,833.52",CORONA ENERGY RETAIL 2 LTD.
Regeneration & Economic Development,Economic Development,Supplies and Services,338002,Services,03-Apr-12,2431305-395912617,"5,937.80",AE ROBB & ASSOCIATES.
Regeneration & Economic Development,Economic Development,Cap Exp on Grants & Other Financial Assistance (REFCUS),918401,Capital grants,03-Apr-12,2431365-TBIG-FP,"3,187.80",CAPTAINS COD LTD.
Regeneration & Economic Development,Economic Development,Supplies and Services,384700,Miscellaneous Expenses,03-Apr-12,2431419-238931,"24,473.36",DURHAM UNIVERSITY.
Regeneration & Economic Development,Economic Development,Construction Work,908105,Construction work,03-Apr-12,2431462-26287,"1,650.00",GODFREY SYRETT LTD.
Regeneration & Economic Development,Economic Development,Construction Work,908105,Construction work,03-Apr-12,2431462-26288,"1,730.40",GODFREY SYRETT LTD.
Regeneration & Economic Development,Economic Development,Supplies and Services,384199,Miscellaneous Expenses,03-Apr-12,2431616-NM28534,"8,465.00",NEW MIND INTERNET CONSULTANCY LTD.
Regeneration & Economic Development,Economic Development,Premises,145009,Cleaning and Domestic Supplies,03-Apr-12,2431628-302866120011-030,"1,317.00",NORTHUMBRIAN WATER LTD.
Regeneration & Economic Development,Economic Development,Supplies and Services,384899,Miscellaneous Expenses,03-Apr-12,2431683-C,"1,171.90",SHAUN STOKER ELECTRICAL SERVICES LTD.
Regeneration & Economic Development,Housing General Fund,Cap Exp on Grants & Other Financial Assistance (REFCUS),918401,Capital grants,03-Apr-12,2431326-D-F-G,"18,337.50",AVENSWAY BUILDING CONTRACTORS LTD.
Regeneration & Economic Development,Housing General Fund,Cap Exp on Grants & Other Financial Assistance (REFCUS),918401,Capital grants,03-Apr-12,2431522-2516,"6,485.50",K HARRISON (BUILDER) NE LTD.
Regeneration & Economic Development,Housing General Fund,Cap Exp on Grants & Other Financial Assistance (REFCUS),918401,Capital grants,03-Apr-12,2431522-2519,"6,336.75",K HARRISON (BUILDER) NE LTD.
Regeneration & Economic Development,Housing General Fund,Cap Exp on Grants & Other Financial Assistance (REFCUS),918401,Capital grants,03-Apr-12,2431546-SIP-117845,"1,765.00",THYSSENKRUPP ENCASA LTD.
Regeneration & Economic Development,Housing General Fund,Cap Exp on Grants & Other Financial Assistance (REFCUS),918401,Capital grants,03-Apr-12,2431546-SIP117806,"1,575.00",THYSSENKRUPP ENCASA LTD.
Regeneration & Economic Development,Housing General Fund,Cap Exp on Grants & Other Financial Assistance (REFCUS),918401,Capital grants,03-Apr-12,2431546-SIP117857,"1,789.00",THYSSENKRUPP ENCASA LTD.
Regeneration & Economic Development,Housing General Fund,Cap Exp on Grants & Other Financial Assistance (REFCUS),918401,Capital grants,03-Apr-12,2431546-SIP117905,"1,525.00",THYSSENKRUPP ENCASA LTD.
Regeneration & Economic Development,Housing General Fund,Cap Exp on Grants & Other Financial Assistance (REFCUS),918401,Capital grants,03-Apr-12,2431546-SIP117944,"1,495.00",THYSSENKRUPP ENCASA LTD.
Regeneration & Economic Development,Housing General Fund,Cap Exp on Grants & Other Financial Assistance (REFCUS),918401,Capital grants,03-Apr-12,2431546-SIP118069,"1,835.00",THYSSENKRUPP ENCASA LTD.
Regeneration & Economic Development,Housing General Fund,Cap Exp on Grants & Other Financial Assistance (REFCUS),918401,Capital grants,03-Apr-12,2431546-SIP118073,"6,130.00",THYSSENKRUPP ENCASA LTD.
Regeneration & Economic Development,Housing General Fund,Cap Exp on Grants & Other Financial Assistance (REFCUS),918401,Capital grants,03-Apr-12,2431546-SIP118074,"1,495.00",THYSSENKRUPP ENCASA LTD.
Regeneration & Economic Development,Housing General Fund,Cap Exp on Grants & Other Financial Assistance (REFCUS),918401,Capital grants,03-Apr-12,2431559-2012/470,"5,509.30",M & R DEVELOPMENTS & CONTRACTORS LTD..
Regeneration & Economic Development,Housing General Fund,Cap Exp on Grants & Other Financial Assistance (REFCUS),918401,Capital grants,03-Apr-12,2431559-2012/477,"11,137.95",M & R DEVELOPMENTS & CONTRACTORS LTD..
Regeneration & Economic Development,Housing General Fund,Cap Exp on Grants & Other Financial Assistance (REFCUS),918401,Capital grants,03-Apr-12,2431571-MCD100,"4,017.00",MC DEVELOPMENTS.
Regeneration & Economic Development,Housing General Fund,Cap Exp on Grants & Other Financial Assistance (REFCUS),918401,Capital grants,03-Apr-12,2431607-D-F-G,"8,784.93",N COOK BUILDING CONTRACTOR LTD.
Regeneration & Economic Development,Housing General Fund,Cap Exp on Grants & Other Financial Assistance (REFCUS),918401,Capital grants,03-Apr-12,2431614-DFG489/11,"7,420.00",NEW AGE PLUMBING & HEATING SERVICES.
Regeneration & Economic Development,Housing General Fund,Cap Exp on Grants & Other Financial Assistance (REFCUS),918401,Capital grants,03-Apr-12,2431614-DFG50711,"2,690.00",NEW AGE PLUMBING & HEATING SERVICES.
Regeneration & Economic Development,Housing General Fund,Cap Exp on Grants & Other Financial Assistance (REFCUS),918401,Capital grants,03-Apr-12,2431644-DFG502/11,"4,845.00",PETER JORDAN.
Regeneration & Economic Development,Housing General Fund,Cap Exp on Grants & Other Financial Assistance (REFCUS),918401,Capital grants,03-Apr-12,2431671-39,"4,890.00",ROYCE CARSON BUILDING SERVICES.
Regeneration & Economic Development,Housing General Fund,Fees,901001,Internal fees,03-Apr-12,2431716-SITRH/0004089,"1,450.00",THREE RIVERS HOUSING ASSOCIATION LTD.
Regeneration & Economic Development,Housing General Fund,Fees,901001,Internal fees,03-Apr-12,2431716-SITRH/0004202,"1,325.00",THREE RIVERS HOUSING ASSOCIATION LTD.
Regeneration & Economic Development,Housing General Fund,Fees,901001,Internal fees,03-Apr-12,2431716-SITRH/0004203,"1,028.60",THREE RIVERS HOUSING ASSOCIATION LTD.
Regeneration & Economic Development,Housing General Fund,Fees,901001,Internal fees,03-Apr-12,2431716-SITRH/0004210,"1,106.44",THREE RIVERS HOUSING ASSOCIATION LTD.
Regeneration & Economic Development,Housing General Fund,Cap Exp on Grants & Other Financial Assistance (REFCUS),918401,Capital grants,03-Apr-12,2431718-598,"3,495.00",TORONTO ELECTRICAL SERVICES & TESTING.
Regeneration & Economic Development,"Spatial Policy, Planning, Assets & Environment",Supplies and Services,384199,Miscellaneous Expenses,03-Apr-12,2431309-B/M,618.76,ALISTAIR LOCKETT.
Regeneration & Economic Development,"Spatial Policy, Planning, Assets & Environment",Supplies and Services,384700,Miscellaneous Expenses,03-Apr-12,2431323-1478,"1,500.00",ASSOCIATION OF NORTH EAST COUNCILS LTD.
Regeneration & Economic Development,"Spatial Policy, Planning, Assets & Environment",Supplies and Services,384199,Miscellaneous Expenses,03-Apr-12,2431376-12/07,"2,700.00",CHRIS & JOAN WADSWORTH.
Regeneration & Economic Development,"Spatial Policy, Planning, Assets & Environment",Employees,40149,"Recruitment, Instruction and Training",03-Apr-12,2431529-10,500,KEN SCOTT CONSULTANCY LTD.
Regeneration & Economic Development,Transport,Third Party Payments,440999,Other Third Party Payments,03-Apr-12,2431332-15292,"1,594.00",BAYDALE CONTROL SYSTEMS LTD.
Regeneration & Economic Development,Transport,Construction Work,908105,Construction work,03-Apr-12,2431361-18388,"2,804.01",BUS SHELTERS LTD.
Regeneration & Economic Development,Transport,Third Party Payments,430106,Rendered by Private Contractors,03-Apr-12,2431511-2012/01,"1,809.00",JM HUMBLE COACH HIRE.
Regeneration & Economic Development,Transport,Supplies and Services,352001,Conference Expenses,03-Apr-12,2431530-KTS2012512,"3,000.00",KEY TRAFFIC SYSTEMS LTD.
Regeneration & Economic Development,Transport,Construction Work,908105,Construction work,03-Apr-12,2431617-1800005904163,"12,744.45",NEWCASTLE UPON TYNE CITY COUNCIL.
Regeneration & Economic Development,Transport,Premises,135005,Water Services,03-Apr-12,2431628-225545540037020,738.8,NORTHUMBRIAN WATER LTD.
Regeneration & Economic Development,Transport,Premises,135005,Water Services,03-Apr-12,2431628-225545540073016,"1,317.00",NORTHUMBRIAN WATER LTD.
Regeneration & Economic Development,Transport,Premises,135005,Water Services,03-Apr-12,2431628-225545540091022,738.8,NORTHUMBRIAN WATER LTD.
Regeneration & Economic Development,Transport,Premises,135005,Water Services,03-Apr-12,2431628-260100700014051,"7,585.77",NORTHUMBRIAN WATER LTD.
Regeneration & Economic Development,Transport,Premises,135005,Water Services,03-Apr-12,2431628-308243560018009,"2,460.00",NORTHUMBRIAN WATER LTD.
Adults Wellbeing and Health,Commissioning inc Supporting People,Supplies and Services,304259,Equipment and Materials,04-Apr-12,2432044-00207044,522.42,STAGE ELECTRICS.
Adults Wellbeing and Health,Commissioning inc Supporting People,Employees,80025,Agency Staff,04-Apr-12,2431894-0151,"3,850.00",HULAM CONSULTING LTD.
Adults Wellbeing and Health,Commissioning inc Supporting People,Supplies and Services,384540,Miscellaneous Expenses,04-Apr-12,2432022-3084,525,SAVILLS COMMERCIAL LTD.
Adults Wellbeing and Health,Commissioning inc Supporting People,Supplies and Services,384302,Miscellaneous Expenses,04-Apr-12,2431770-4159,850,AS AUDIO SERVICES.
Adults Wellbeing and Health,Commissioning inc Supporting People,Supplies and Services,338047,Services,04-Apr-12,2432090-1204447,"1,538.81",WALT DISNEY CO LTD.
Adults Wellbeing and Health,Commissioning inc Supporting People,Supplies and Services,338047,Services,04-Apr-12,2432090-1204448,"3,806.46",WALT DISNEY CO LTD.
Adults Wellbeing and Health,Commissioning inc Supporting People,Supplies and Services,338047,Services,04-Apr-12,2432090-1204450,"2,209.44",WALT DISNEY CO LTD.
Adults Wellbeing and Health,Commissioning inc Supporting People,Supplies and Services,338047,Services,04-Apr-12,2432090-1204451,"1,345.67",WALT DISNEY CO LTD.
Adults Wellbeing and Health,Commissioning inc Supporting People,Supplies and Services,338047,Services,04-Apr-12,2432090-1204452,807.95,WALT DISNEY CO LTD.
Adults Wellbeing and Health,Commissioning inc Supporting People,Supplies and Services,338047,Services,04-Apr-12,2431782-2012_0017,"1,635.09",BIG BOY BLOATER.
Adults Wellbeing and Health,Head of Adults,Third Party Payments,472101,Purchase of Care,04-Apr-12,2432025-333810,807.7,SERVOCA NURSING & CARE LTD.
Adults Wellbeing and Health,Head of Adults,Third Party Payments,479102,Purchase of Care,04-Apr-12,2431817-3136148,"14,048.50",CO DURHAM & DARLINGTON NHS FOUNDATION TRUST.
Adults Wellbeing and Health,Head of Adults,Supplies and Services,338370,Services,04-Apr-12,2431817-3136154,"109,583.00",CO DURHAM & DARLINGTON NHS FOUNDATION TRUST.
Adults Wellbeing and Health,Head of Adults,Supplies and Services,338370,Services,04-Apr-12,2431817-3136262,"66,545.00",CO DURHAM & DARLINGTON NHS FOUNDATION TRUST.
Adults Wellbeing and Health,Head of Adults,Third Party Payments,479102,Purchase of Care,04-Apr-12,2431818-3136149,"5,838.00",CO DURHAM & DARLINGTON NHS FOUNDATION TRUST.
Adults Wellbeing and Health,Head of Adults,Third Party Payments,479102,Purchase of Care,04-Apr-12,2431818-3136150,"8,752.75",CO DURHAM & DARLINGTON NHS FOUNDATION TRUST.
Adults Wellbeing and Health,Head of Adults,Supplies and Services,338370,Services,04-Apr-12,2431818-3136153,"45,716.67",CO DURHAM & DARLINGTON NHS FOUNDATION TRUST.
Adults Wellbeing and Health,Head of Adults,Supplies and Services,338370,Services,04-Apr-12,2431818-3136155,"35,067.00",CO DURHAM & DARLINGTON NHS FOUNDATION TRUST.
Adults Wellbeing and Health,Head of Adults,Supplies and Services,338370,Services,04-Apr-12,2431818-3136245,"40,949.00",CO DURHAM & DARLINGTON NHS FOUNDATION TRUST.
Adults Wellbeing and Health,Head of Adults,Third Party Payments,478101,Purchase of Care,04-Apr-12,204609-2021206,"1,194.00",REDACTED - PAYMENT TO INDIVIDUAL
Adults Wellbeing and Health,Head of Adults,Supplies and Services,304259,Equipment and Materials,04-Apr-12,2432013-P03648480101,852.95,ROMPA LTD.
Adults Wellbeing and Health,Head of Adults,Supplies and Services,384616,Miscellaneous Expenses,04-Apr-12,2432076-SHOINV/181,"1,126.45",THREE RIVERS HOUSING ASSOCIATION LTD.
Adults Wellbeing and Health,Head of Adults,Supplies and Services,384616,Miscellaneous Expenses,04-Apr-12,2432076-SHOINV/182,"1,032.72",THREE RIVERS HOUSING ASSOCIATION LTD.
Adults Wellbeing and Health,Head of Adults,Supplies and Services,384616,Miscellaneous Expenses,04-Apr-12,2432076-SHOINV/183,"1,032.72",THREE RIVERS HOUSING ASSOCIATION LTD.
Adults Wellbeing and Health,Head of Adults,Supplies and Services,384616,Miscellaneous Expenses,04-Apr-12,2432076-SHOINV/184,"1,032.72",THREE RIVERS HOUSING ASSOCIATION LTD.
Adults Wellbeing and Health,Head of Adults,Supplies and Services,384616,Miscellaneous Expenses,04-Apr-12,2432076-SHOINV/186,704.25,THREE RIVERS HOUSING ASSOCIATION LTD.
Adults Wellbeing and Health,Head of Adults,Supplies and Services,384616,Miscellaneous Expenses,04-Apr-12,2432076-SHOINV/187,"1,248.52",THREE RIVERS HOUSING ASSOCIATION LTD.
Adults Wellbeing and Health,Head of Adults,Supplies and Services,384616,Miscellaneous Expenses,04-Apr-12,2432076-SHOINV/188,"1,159.34",THREE RIVERS HOUSING ASSOCIATION LTD.
Adults Wellbeing and Health,Head of Adults,Supplies and Services,384616,Miscellaneous Expenses,04-Apr-12,2432076-SHOINV/189,"1,121.77",THREE RIVERS HOUSING ASSOCIATION LTD.
Adults Wellbeing and Health,Head of Adults,Supplies and Services,384616,Miscellaneous Expenses,04-Apr-12,2432076-SHOINV/190,776.61,THREE RIVERS HOUSING ASSOCIATION LTD.
Adults Wellbeing and Health,Head of Adults,Supplies and Services,384616,Miscellaneous Expenses,04-Apr-12,2432076-SHOINV/191,"1,250.56",THREE RIVERS HOUSING ASSOCIATION LTD.
Adults Wellbeing and Health,Head of Adults,Cap Exp on Grants & Other Financial Assistance (REFCUS),918401,Capital grants,04-Apr-12,2432089-RF,"34,132.34",WADDINGTON STREET CENTRE LTD.
Adults Wellbeing and Health,Head of Adults,Third Party Payments,478101,Purchase of Care,04-Apr-12,204605-2024533,"1,340.00",REDACTED - PAYMENT TO INDIVIDUAL
Adults Wellbeing and Health,Head of Adults,Third Party Payments,478101,Purchase of Care,04-Apr-12,204605-2024534,"1,340.00",REDACTED - PAYMENT TO INDIVIDUAL
Adults Wellbeing and Health,Head of Adults,Transfer Payments,515201,Social Services Clients,04-Apr-12,204483-1229649H,737.76,REDACTED - PAYMENT TO INDIVIDUAL
Adults Wellbeing and Health,Head of Adults,Transfer Payments,515201,Social Services Clients,04-Apr-12,204648-1226409H,590.12,REDACTED - PAYMENT TO INDIVIDUAL
Adults Wellbeing and Health,Head of Adults,Supplies and Services,338045,Services,04-Apr-12,204407-SG/PG/74007,"3,400.79",BEN HOARE BELL SOLICITORS.
Adults Wellbeing and Health,Head of Adults,Transfer Payments,515201,Social Services Clients,04-Apr-12,2431755-1229326H,736.72,REDACTED - PAYMENT TO INDIVIDUAL
Adults Wellbeing and Health,Head of Adults,Summary reporting level,720033,Fees and Charges,04-Apr-12,204622-R,"2,041.86",REDACTED - PAYMENT TO INDIVIDUAL
Adults Wellbeing and Health,Head of Adults,Summary reporting level,720044,Fees and Charges,04-Apr-12,204603-R,741.13,REDACTED - PAYMENT TO INDIVIDUAL
Adults Wellbeing and Health,Head of Adults,Summary reporting level,720044,Fees and Charges,04-Apr-12,204581-R,"2,351.70",REDACTED - PAYMENT TO INDIVIDUAL
Adults Wellbeing and Health,Head of Adults,Summary reporting level,720044,Fees and Charges,04-Apr-12,204693-139607,948.25,REDACTED - PAYMENT TO INDIVIDUAL
Adults Wellbeing and Health,Head of Adults,Summary reporting level,720044,Fees and Charges,04-Apr-12,204608-RORF,"2,439.83",REDACTED - PAYMENT TO INDIVIDUAL
Adults Wellbeing and Health,Planning and Performance,Supplies and Services,384540,Miscellaneous Expenses,04-Apr-12,2432046-94155,"1,200.00",STAR RADIO.
Adults Wellbeing and Health,Planning and Performance,Supplies and Services,304259,Equipment and Materials,04-Apr-12,204655-11326436,"1,436.62",PC WORLD BUSINESS.
Adults Wellbeing and Health,Planning and Performance,Supplies and Services,340001,Postages,04-Apr-12,2431991-20400095,"13,510.80",POSTAGE BY PHONE PITNEY BOWES PLC.
Adults Wellbeing and Health,Planning and Performance,Supplies and Services,340001,Postages,04-Apr-12,2431991-20880111,"1,509.00",POSTAGE BY PHONE PITNEY BOWES PLC.
Adults Wellbeing and Health,Planning and Performance,Supplies and Services,338091,Services,04-Apr-12,2432083-85207,"2,060.00",UNIVERSITY OF TEESSIDE.
Adults Wellbeing and Health,Planning and Performance,Supplies and Services,338091,Services,04-Apr-12,2432083-85476,645,UNIVERSITY OF TEESSIDE.
Adults Wellbeing and Health,Social Inclusion,Supplies and Services,384199,Miscellaneous Expenses,04-Apr-12,2431845-20009212,"3,588.89",DURHAM CONSTABULARY.
Adults Wellbeing and Health,Social Inclusion,Premises,125009,Rents,04-Apr-12,2431900-5282,"36,141.25",IMPALA ESTATES LTD.
Adults Wellbeing and Health,Social Inclusion,Premises,125009,Rents,04-Apr-12,2431880-2400-036942,"4,315.63",GVA GRIMLEY LLP.
Adults Wellbeing and Health,Social Inclusion,Supplies and Services,324117,Provisions,04-Apr-12,2431801-EW52695443,723.18,CARLSBERG UK LTD.
Adults Wellbeing and Health,Social Inclusion,Premises,108251,Service Repairs and Maintenance,04-Apr-12,2432085-0064/2012,"2,535.00",VIPA UK LTD.
Assistant Chief Executive,Partnerships & Community Engagement Div.,Cap Exp on Grants & Other Financial Assistance (REFCUS),918004,Contributions to other bodies,04-Apr-12,204708-EDRC009-NB11,"13,100.00",TRIMDON COMMUNITY COLLEGE ASSOCIATION.
Children and Young Peoples Services,CYPS - Local Authority,Premises,145009,Cleaning and Domestic Supplies,04-Apr-12,204392-002673,570,A & B INDUSTRIAL CLEANING LTD.
Children and Young Peoples Services,CYPS - Local Authority,Supplies and Services,338066,Services,04-Apr-12,204443-REF:CHJAW94166,600,DAVID GRAY SOLICITORS.
Children and Young Peoples Services,CYPS - Local Authority,Supplies and Services,384199,Miscellaneous Expenses,04-Apr-12,204512-311,770,HEADSTART VENTURES LTD.
Children and Young Peoples Services,CYPS - Local Authority,Supplies and Services,338045,Services,04-Apr-12,204520-FINAL-UA11C00070,"1,900.00",HMCTS.
Children and Young Peoples Services,CYPS - Local Authority,Supplies and Services,338045,Services,04-Apr-12,204521-FINAL-ND10C00150,"1,900.00",HMCTS.
Children and Young Peoples Services,CYPS - Local Authority,Supplies and Services,338045,Services,04-Apr-12,204521-IRHFEE,700,HMCTS.
Children and Young Peoples Services,CYPS - Local Authority,Supplies and Services,352001,Conference Expenses,04-Apr-12,204524-1629,600,HSF TRAINING LTD.
Children and Young Peoples Services,CYPS - Local Authority,Supplies and Services,384199,Miscellaneous Expenses,04-Apr-12,204542-2012/6A,500,REDACTED - PAYMENT TO INDIVIDUAL
Children and Young Peoples Services,CYPS - Local Authority,Supplies and Services,384199,Miscellaneous Expenses,04-Apr-12,204548-241717,"1,542.88",KEITH N TAYLOR.
Children and Young Peoples Services,CYPS - Local Authority,Summary reporting level,720130,Fees and Charges,04-Apr-12,204568-THK/LAS/PRE62,500,MEIKLES SOLICITORS.
Children and Young Peoples Services,CYPS - Local Authority,Supplies and Services,338045,Services,04-Apr-12,204569-KD/TR/102175/0001/6,536.74,MESSRS PEARSON CAULFIELD.
Children and Young Peoples Services,CYPS - Local Authority,Supplies and Services,384199,Miscellaneous Expenses,04-Apr-12,204642-392,"1,200.00",NORTH STAR TRAVEL.
Children and Young Peoples Services,CYPS - Local Authority,Supplies and Services,338045,Services,04-Apr-12,204665-1456,"2,448.56",PSYCHOLOGICAL MEDICINE CONSULTANTS LTD.
Children and Young Peoples Services,CYPS - Local Authority,Supplies and Services,364358,Grants to Voluntary Organisations,04-Apr-12,204668-RUF,"1,290.00",REDACTED - PAYMENT TO INDIVIDUAL
Children and Young Peoples Services,CYPS - Local Authority,Creditors,952011,Creditors-Government grants,04-Apr-12,204690-PP-MM/EM,976,STOKE HEATH PRIMARY SCHOOL.
Children and Young Peoples Services,CYPS - Local Authority,Supplies and Services,364352,Grants to Voluntary Organisations,04-Apr-12,204691-JA,861.28,STONHAM HOUSING ASSOCIATION LTD.
Children and Young Peoples Services,CYPS - Local Authority,Supplies and Services,364352,Grants to Voluntary Organisations,04-Apr-12,204691-SMF8S2,802.08,STONHAM HOUSING ASSOCIATION LTD.
Children and Young Peoples Services,CYPS - Local Authority,Third Party Payments,425040,Rendered by Voluntary Organisations,04-Apr-12,2431778-104304278,"4,662.80",BARNARDOS.
Children and Young Peoples Services,CYPS - Local Authority,Third Party Payments,425040,Rendered by Voluntary Organisations,04-Apr-12,2431778-104304279,"3,730.24",BARNARDOS.
Children and Young Peoples Services,CYPS - Local Authority,Third Party Payments,425040,Rendered by Voluntary Organisations,04-Apr-12,2431778-104304330,"3,730.24",BARNARDOS.
Children and Young Peoples Services,CYPS - Local Authority,Third Party Payments,425040,Rendered by Voluntary Organisations,04-Apr-12,2431778-104304539,"3,450.48",BARNARDOS.
Children and Young Peoples Services,CYPS - Local Authority,Third Party Payments,425040,Rendered by Voluntary Organisations,04-Apr-12,2431778-104304659,"3,450.48",BARNARDOS.
Children and Young Peoples Services,CYPS - Local Authority,Third Party Payments,425040,Rendered by Voluntary Organisations,04-Apr-12,2431778-104304881,"35,878.40",BARNARDOS.
Children and Young Peoples Services,CYPS - Local Authority,Third Party Payments,425040,Rendered by Voluntary Organisations,04-Apr-12,2431778-104304883,"19,600.41",BARNARDOS.
Children and Young Peoples Services,CYPS - Local Authority,Third Party Payments,425040,Rendered by Voluntary Organisations,04-Apr-12,2431778-104304911,"3,852.30",BARNARDOS.
Children and Young Peoples Services,CYPS - Local Authority,Supplies and Services,344033,Telephones,04-Apr-12,2431793-NE19493805Q0347D,"1,000.55",BRITISH TELECOMMUNICATIONS PLC.
Children and Young Peoples Services,CYPS - Local Authority,Employees,80025,Agency Staff,04-Apr-12,2431799-03486216,600,CAPITA EDUCATION RESOURCING.
Children and Young Peoples Services,CYPS - Local Authority,Employees,80025,Agency Staff,04-Apr-12,2431799-03488551,995,CAPITA EDUCATION RESOURCING.
Children and Young Peoples Services,CYPS - Local Authority,Third Party Payments,425040,Rendered by Voluntary Organisations,04-Apr-12,2431807-4393,"3,011.34",CHILDRENS FAMILY TRUST.
Children and Young Peoples Services,CYPS - Local Authority,Third Party Payments,425040,Rendered by Voluntary Organisations,04-Apr-12,2431807-4394,"3,100.00",CHILDRENS FAMILY TRUST.
Children and Young Peoples Services,CYPS - Local Authority,Third Party Payments,425040,Rendered by Voluntary Organisations,04-Apr-12,2431807-4494,"3,011.34",CHILDRENS FAMILY TRUST.
Children and Young Peoples Services,CYPS - Local Authority,Third Party Payments,425040,Rendered by Voluntary Organisations,04-Apr-12,2431807-4495,"3,100.00",CHILDRENS FAMILY TRUST.
Children and Young Peoples Services,CYPS - Local Authority,Transport,230005,Contract Hire,04-Apr-12,2431816-12/006,971,CLUBMAN CABS.
Children and Young Peoples Services,CYPS - Local Authority,Employees,80025,Agency Staff,04-Apr-12,2431818-3136334,"17,065.81",CO DURHAM & DARLINGTON NHS FOUNDATION TRUST.
Children and Young Peoples Services,CYPS - Local Authority,Supplies and Services,324500,Provisions,04-Apr-12,2431822-9074,"17,687.95",CREATIVE MANAGEMENT SERVICES LTD.
Children and Young Peoples Services,CYPS - Local Authority,Summary reporting level,710150,Other Grants and Contributions,04-Apr-12,2431846-DDH122,"47,000.00",DURHAM DALES HEALTH.
Children and Young Peoples Services,CYPS - Local Authority,Employees,40149,"Recruitment, Instruction and Training",04-Apr-12,2431849-239083,"1,125.00",DURHAM UNIVERSITY.
Children and Young Peoples Services,CYPS - Local Authority,Third Party Payments,425040,Rendered by Voluntary Organisations,04-Apr-12,2431864-630028107,"3,374.35",FOSTER CARE ASSOCIATES LTD.
Children and Young Peoples Services,CYPS - Local Authority,Third Party Payments,425040,Rendered by Voluntary Organisations,04-Apr-12,2431864-630028108,"3,374.35",FOSTER CARE ASSOCIATES LTD.
Children and Young Peoples Services,CYPS - Local Authority,Third Party Payments,425040,Rendered by Voluntary Organisations,04-Apr-12,2431865-1941,"3,365.67",FOSTER CARE SOLUTIONS LTD.
Children and Young Peoples Services,CYPS - Local Authority,Third Party Payments,425040,Rendered by Voluntary Organisations,04-Apr-12,2431865-1946,"3,100.00",FOSTER CARE SOLUTIONS LTD.
Children and Young Peoples Services,CYPS - Local Authority,Third Party Payments,425040,Rendered by Voluntary Organisations,04-Apr-12,2431865-1985,"2,607.00",FOSTER CARE SOLUTIONS LTD.
Children and Young Peoples Services,CYPS - Local Authority,Third Party Payments,425040,Rendered by Voluntary Organisations,04-Apr-12,2431865-1986,"2,607.00",FOSTER CARE SOLUTIONS LTD.
Children and Young Peoples Services,CYPS - Local Authority,Third Party Payments,425040,Rendered by Voluntary Organisations,04-Apr-12,2431866-FC009537,740,FOSTER CARES LTD.
Children and Young Peoples Services,CYPS - Local Authority,Third Party Payments,425040,Rendered by Voluntary Organisations,04-Apr-12,2431866-FC009566,740,FOSTER CARES LTD.
Children and Young Peoples Services,CYPS - Local Authority,Third Party Payments,425040,Rendered by Voluntary Organisations,04-Apr-12,2431866-FC009597,740,FOSTER CARES LTD.
Children and Young Peoples Services,CYPS - Local Authority,Third Party Payments,425040,Rendered by Voluntary Organisations,04-Apr-12,2431866-FC009769,740,FOSTER CARES LTD.
Children and Young Peoples Services,CYPS - Local Authority,Third Party Payments,425040,Rendered by Voluntary Organisations,04-Apr-12,2431866-FC009864,730,FOSTER CARES LTD.
Children and Young Peoples Services,CYPS - Local Authority,Third Party Payments,425040,Rendered by Voluntary Organisations,04-Apr-12,2431866-FC009904,730,FOSTER CARES LTD.
Children and Young Peoples Services,CYPS - Local Authority,Third Party Payments,425040,Rendered by Voluntary Organisations,04-Apr-12,2431866-FC009925,980,FOSTER CARES LTD.
Children and Young Peoples Services,CYPS - Local Authority,Third Party Payments,425040,Rendered by Voluntary Organisations,04-Apr-12,2431866-FC009926,760,FOSTER CARES LTD.
Children and Young Peoples Services,CYPS - Local Authority,Third Party Payments,425040,Rendered by Voluntary Organisations,04-Apr-12,2431866-FC009934,820,FOSTER CARES LTD.
Children and Young Peoples Services,CYPS - Local Authority,Third Party Payments,425040,Rendered by Voluntary Organisations,04-Apr-12,2431866-FC009935,730,FOSTER CARES LTD.
Children and Young Peoples Services,CYPS - Local Authority,Third Party Payments,425040,Rendered by Voluntary Organisations,04-Apr-12,2431866-FC009936,730,FOSTER CARES LTD.
Children and Young Peoples Services,CYPS - Local Authority,Third Party Payments,425040,Rendered by Voluntary Organisations,04-Apr-12,2431866-FC009938,740,FOSTER CARES LTD.
Children and Young Peoples Services,CYPS - Local Authority,Third Party Payments,425040,Rendered by Voluntary Organisations,04-Apr-12,2431866-FC009939,730,FOSTER CARES LTD.
Children and Young Peoples Services,CYPS - Local Authority,Third Party Payments,425040,Rendered by Voluntary Organisations,04-Apr-12,2431866-FC009956,760,FOSTER CARES LTD.
Children and Young Peoples Services,CYPS - Local Authority,Third Party Payments,425040,Rendered by Voluntary Organisations,04-Apr-12,2431866-FC009964,820,FOSTER CARES LTD.
Children and Young Peoples Services,CYPS - Local Authority,Third Party Payments,425040,Rendered by Voluntary Organisations,04-Apr-12,2431866-FC009967,740,FOSTER CARES LTD.
Children and Young Peoples Services,CYPS - Local Authority,Third Party Payments,425040,Rendered by Voluntary Organisations,04-Apr-12,2431866-FC009968,730,FOSTER CARES LTD.
Children and Young Peoples Services,CYPS - Local Authority,Third Party Payments,425040,Rendered by Voluntary Organisations,04-Apr-12,2431867-0000011300,"3,038.00",FOSTERING PEOPLE LTD.
Children and Young Peoples Services,CYPS - Local Authority,Third Party Payments,425040,Rendered by Voluntary Organisations,04-Apr-12,2431867-0000011301,"3,038.00",FOSTERING PEOPLE LTD.
Children and Young Peoples Services,CYPS - Local Authority,Third Party Payments,425040,Rendered by Voluntary Organisations,04-Apr-12,2431867-0000011302,"2,950.89",FOSTERING PEOPLE LTD.
Children and Young Peoples Services,CYPS - Local Authority,Third Party Payments,425040,Rendered by Voluntary Organisations,04-Apr-12,2431867-0000011305,"2,950.89",FOSTERING PEOPLE LTD.
Children and Young Peoples Services,CYPS - Local Authority,Supplies and Services,364352,Grants to Voluntary Organisations,04-Apr-12,2431868-3550,"3,239.71",FOUNDATION.
Children and Young Peoples Services,CYPS - Local Authority,Supplies and Services,338045,Services,04-Apr-12,2431888-UA11C00121,700,HMCTS.
Children and Young Peoples Services,CYPS - Local Authority,Supplies and Services,338027,Services,04-Apr-12,2431908-7,"3,168.00",JOHN RYMASZEWSKI.
Children and Young Peoples Services,CYPS - Local Authority,Supplies and Services,338027,Services,04-Apr-12,2431913-SEPT/MAR,"1,297.32",KATE DAVISON.
Children and Young Peoples Services,CYPS - Local Authority,Employees,80025,Agency Staff,04-Apr-12,2431914-16073,925,KEYSTAGE RECRUITMENT LTD.
Children and Young Peoples Services,CYPS - Local Authority,Central Support and Capital,615092,Support Services,04-Apr-12,2431916-1000047,"27,426.58",KING JAMES I ACADEMY.
Children and Young Peoples Services,CYPS - Local Authority,Transport,230005,Contract Hire,04-Apr-12,2431929-975,"1,000.00",LOCAL TRANSPORT LTD.
Children and Young Peoples Services,CYPS - Local Authority,Supplies and Services,332047,"Printing, Stationery and Gen Off Exps",04-Apr-12,2431951-29/2-28/3/12,720,MR DAVID JA FARROW.
Children and Young Peoples Services,CYPS - Local Authority,Third Party Payments,440005,Other Third Party Payments,04-Apr-12,2431952-JR25/2/12,759.6,REDACTED - PAYMENT TO INDIVIDUAL
Children and Young Peoples Services,CYPS - Local Authority,Supplies and Services,338027,Services,04-Apr-12,2431958-2024,"2,034.17",REDACTED - PAYMENT TO INDIVIDUAL
Children and Young Peoples Services,CYPS - Local Authority,Supplies and Services,338027,Services,04-Apr-12,2431960-MARCH12,"1,417.50",REDACTED - PAYMENT TO INDIVIDUAL
Children and Young Peoples Services,CYPS - Local Authority,Third Party Payments,425040,Rendered by Voluntary Organisations,04-Apr-12,2431963-NFA57259,"3,024.41",NATIONAL FOSTERING AGENCY LTD.
Children and Young Peoples Services,CYPS - Local Authority,Third Party Payments,425040,Rendered by Voluntary Organisations,04-Apr-12,2431963-NFA57260,"3,024.41",NATIONAL FOSTERING AGENCY LTD.
Children and Young Peoples Services,CYPS - Local Authority,Transport,230007,Contract Hire,04-Apr-12,2431984-189,798,PETERLEE EXECUTIVE CARS.
Children and Young Peoples Services,CYPS - Local Authority,Transport,230007,Contract Hire,04-Apr-12,2431984-190,"1,575.00",PETERLEE EXECUTIVE CARS.
Children and Young Peoples Services,CYPS - Local Authority,Transport,230007,Contract Hire,04-Apr-12,2431984-191,"1,325.00",PETERLEE EXECUTIVE CARS.
Children and Young Peoples Services,CYPS - Local Authority,Transport,230007,Contract Hire,04-Apr-12,2431984-193,616,PETERLEE EXECUTIVE CARS.
Children and Young Peoples Services,CYPS - Local Authority,Transport,230007,Contract Hire,04-Apr-12,2431984-194,"1,260.00",PETERLEE EXECUTIVE CARS.
Children and Young Peoples Services,CYPS - Local Authority,Construction Work,908105,Construction work,04-Apr-12,2431987-358285,"2,702.57",PKL GROUP (UK) LTD.
Children and Young Peoples Services,CYPS - Local Authority,Supplies and Services,384491,Miscellaneous Expenses,04-Apr-12,2432013-P03655670101,918.6,ROMPA LTD.
Children and Young Peoples Services,CYPS - Local Authority,Construction Work,908105,Construction work,04-Apr-12,2432029-INS12-B,"332,348.18",SIR ROBERT MCALPINE LTD.
Children and Young Peoples Services,CYPS - Local Authority,Construction Work,908105,Construction work,04-Apr-12,2432029-INS31-EW,"285,804.77",SIR ROBERT MCALPINE LTD.
Children and Young Peoples Services,CYPS - Local Authority,Third Party Payments,425020,Rendered by Voluntary Organisations,04-Apr-12,2432041-1121244,"1,227.00",ST CUTHBERTS CARE.
Children and Young Peoples Services,CYPS - Local Authority,Third Party Payments,425020,Rendered by Voluntary Organisations,04-Apr-12,2432041-1121248,"3,469.00",ST CUTHBERTS CARE.
Children and Young Peoples Services,CYPS - Local Authority,Third Party Payments,425040,Rendered by Voluntary Organisations,04-Apr-12,2432041-1121339,"3,400.00",ST CUTHBERTS CARE.
Children and Young Peoples Services,CYPS - Local Authority,Third Party Payments,425021,Rendered by Voluntary Organisations,04-Apr-12,2432041-1121365,"11,514.29",ST CUTHBERTS CARE.
Children and Young Peoples Services,CYPS - Local Authority,Third Party Payments,425021,Rendered by Voluntary Organisations,04-Apr-12,2432041-1121374,"5,270.00",ST CUTHBERTS CARE.
Children and Young Peoples Services,CYPS - Local Authority,Supplies and Services,384638,Miscellaneous Expenses,04-Apr-12,2432043-2366,606.12,ST OSWALD`S HOSPICE.
Children and Young Peoples Services,CYPS - Local Authority,Third Party Payments,440031,Other Third Party Payments,04-Apr-12,2432049-RP17/3/12,777.21,REDACTED - PAYMENT TO INDIVIDUAL
Children and Young Peoples Services,CYPS - Local Authority,Supplies and Services,364352,Grants to Voluntary Organisations,04-Apr-12,2432052-173,853.2,STONHAM HOUSING ASSOCIATION LTD.
Children and Young Peoples Services,CYPS - Local Authority,Supplies and Services,364352,Grants to Voluntary Organisations,04-Apr-12,2432053-ROOM5-MAR12,612.24,STONHAM HOUSING ASSOCIATION LTD.
Children and Young Peoples Services,CYPS - Local Authority,Supplies and Services,364352,Grants to Voluntary Organisations,04-Apr-12,2432054-60201,553.64,STONHAM HOUSING ASSOCIATION LTD.
Children and Young Peoples Services,CYPS - Local Authority,Third Party Payments,425040,Rendered by Voluntary Organisations,04-Apr-12,2432060-110182,901,SWIIS (UK) LTD.
Children and Young Peoples Services,CYPS - Local Authority,Third Party Payments,425040,Rendered by Voluntary Organisations,04-Apr-12,2432060-110183,"1,069.00",SWIIS (UK) LTD.
Children and Young Peoples Services,CYPS - Local Authority,Third Party Payments,425040,Rendered by Voluntary Organisations,04-Apr-12,2432060-110187,"1,058.00",SWIIS (UK) LTD.
Children and Young Peoples Services,CYPS - Local Authority,Third Party Payments,425040,Rendered by Voluntary Organisations,04-Apr-12,2432060-110188,795,SWIIS (UK) LTD.
Children and Young Peoples Services,CYPS - Local Authority,Third Party Payments,425040,Rendered by Voluntary Organisations,04-Apr-12,2432060-110189,910,SWIIS (UK) LTD.
Children and Young Peoples Services,CYPS - Local Authority,Third Party Payments,425040,Rendered by Voluntary Organisations,04-Apr-12,2432060-110190,895,SWIIS (UK) LTD.
Children and Young Peoples Services,CYPS - Local Authority,Third Party Payments,425040,Rendered by Voluntary Organisations,04-Apr-12,2432060-110191,"1,091.00",SWIIS (UK) LTD.
Children and Young Peoples Services,CYPS - Local Authority,Third Party Payments,425040,Rendered by Voluntary Organisations,04-Apr-12,2432060-110391,895,SWIIS (UK) LTD.
Children and Young Peoples Services,CYPS - Local Authority,Third Party Payments,425040,Rendered by Voluntary Organisations,04-Apr-12,2432061-104535,"1,080.00",SWIIS FOSTER CARE LTD.
Children and Young Peoples Services,CYPS - Local Authority,Third Party Payments,425040,Rendered by Voluntary Organisations,04-Apr-12,2432061-104536,811,SWIIS FOSTER CARE LTD.
Children and Young Peoples Services,CYPS - Local Authority,Third Party Payments,425040,Rendered by Voluntary Organisations,04-Apr-12,2432061-104868,"1,080.00",SWIIS FOSTER CARE LTD.
Children and Young Peoples Services,CYPS - Local Authority,Third Party Payments,425040,Rendered by Voluntary Organisations,04-Apr-12,2432061-104869,811,SWIIS FOSTER CARE LTD.
Children and Young Peoples Services,CYPS - Local Authority,Third Party Payments,425040,Rendered by Voluntary Organisations,04-Apr-12,2432061-105243,"1,080.00",SWIIS FOSTER CARE LTD.
Children and Young Peoples Services,CYPS - Local Authority,Third Party Payments,425040,Rendered by Voluntary Organisations,04-Apr-12,2432061-105244,811,SWIIS FOSTER CARE LTD.
Children and Young Peoples Services,CYPS - Local Authority,Third Party Payments,425040,Rendered by Voluntary Organisations,04-Apr-12,2432061-105541,"1,080.00",SWIIS FOSTER CARE LTD.
Children and Young Peoples Services,CYPS - Local Authority,Third Party Payments,425040,Rendered by Voluntary Organisations,04-Apr-12,2432061-105542,811,SWIIS FOSTER CARE LTD.
Children and Young Peoples Services,CYPS - Local Authority,Third Party Payments,425040,Rendered by Voluntary Organisations,04-Apr-12,2432061-107189,"1,069.00",SWIIS FOSTER CARE LTD.
Children and Young Peoples Services,CYPS - Local Authority,Third Party Payments,425040,Rendered by Voluntary Organisations,04-Apr-12,2432061-107496,"1,069.00",SWIIS FOSTER CARE LTD.
Children and Young Peoples Services,CYPS - Local Authority,Third Party Payments,425040,Rendered by Voluntary Organisations,04-Apr-12,2432061-108555,"1,069.00",SWIIS FOSTER CARE LTD.
Children and Young Peoples Services,CYPS - Local Authority,Third Party Payments,425040,Rendered by Voluntary Organisations,04-Apr-12,2432061-108563,910,SWIIS FOSTER CARE LTD.
Children and Young Peoples Services,CYPS - Local Authority,Third Party Payments,425040,Rendered by Voluntary Organisations,04-Apr-12,2432061-108866,"1,069.00",SWIIS FOSTER CARE LTD.
Children and Young Peoples Services,CYPS - Local Authority,Third Party Payments,425040,Rendered by Voluntary Organisations,04-Apr-12,2432061-109207,"1,069.00",SWIIS FOSTER CARE LTD.
Children and Young Peoples Services,CYPS - Local Authority,Third Party Payments,425040,Rendered by Voluntary Organisations,04-Apr-12,2432061-109208,"1,342.00",SWIIS FOSTER CARE LTD.
Children and Young Peoples Services,CYPS - Local Authority,Third Party Payments,425040,Rendered by Voluntary Organisations,04-Apr-12,2432061-109209,902,SWIIS FOSTER CARE LTD.
Children and Young Peoples Services,CYPS - Local Authority,Third Party Payments,425040,Rendered by Voluntary Organisations,04-Apr-12,2432061-109210,774,SWIIS FOSTER CARE LTD.
Children and Young Peoples Services,CYPS - Local Authority,Third Party Payments,425040,Rendered by Voluntary Organisations,04-Apr-12,2432061-109211,"1,058.00",SWIIS FOSTER CARE LTD.
Children and Young Peoples Services,CYPS - Local Authority,Third Party Payments,425040,Rendered by Voluntary Organisations,04-Apr-12,2432061-109212,795,SWIIS FOSTER CARE LTD.
Children and Young Peoples Services,CYPS - Local Authority,Third Party Payments,425040,Rendered by Voluntary Organisations,04-Apr-12,2432061-109215,895,SWIIS FOSTER CARE LTD.
Children and Young Peoples Services,CYPS - Local Authority,Third Party Payments,425040,Rendered by Voluntary Organisations,04-Apr-12,2432061-109216,"1,091.00",SWIIS FOSTER CARE LTD.
Children and Young Peoples Services,CYPS - Local Authority,Third Party Payments,425040,Rendered by Voluntary Organisations,04-Apr-12,2432061-109598,"1,069.00",SWIIS FOSTER CARE LTD.
Children and Young Peoples Services,CYPS - Local Authority,Third Party Payments,425040,Rendered by Voluntary Organisations,04-Apr-12,2432061-109885,"1,069.00",SWIIS FOSTER CARE LTD.
Children and Young Peoples Services,CYPS - Local Authority,Third Party Payments,425040,Rendered by Voluntary Organisations,04-Apr-12,2432061-110185,902,SWIIS FOSTER CARE LTD.
Children and Young Peoples Services,CYPS - Local Authority,Third Party Payments,425040,Rendered by Voluntary Organisations,04-Apr-12,2432061-110186,774,SWIIS FOSTER CARE LTD.
Children and Young Peoples Services,CYPS - Local Authority,Third Party Payments,425040,Rendered by Voluntary Organisations,04-Apr-12,2432061-110192,911,SWIIS FOSTER CARE LTD.
Children and Young Peoples Services,CYPS - Local Authority,Supplies and Services,324117,Provisions,04-Apr-12,2432065-9410485397,802.78,TCHIBO COFFEE INTERNATIONAL LTD.
Children and Young Peoples Services,CYPS - Local Authority,Employees,80025,Agency Staff,04-Apr-12,2432066-729691,"1,300.00",TEACHING PERSONNEL LTD.
Children and Young Peoples Services,CYPS - Local Authority,Employees,80025,Agency Staff,04-Apr-12,2432066-729695,"1,920.00",TEACHING PERSONNEL LTD.
Children and Young Peoples Services,CYPS - Local Authority,Third Party Payments,425040,Rendered by Voluntary Organisations,04-Apr-12,2432067-16460,"2,900.00",TEAM FOSTERING.
Children and Young Peoples Services,CYPS - Local Authority,Third Party Payments,425040,Rendered by Voluntary Organisations,04-Apr-12,2432067-16515,"3,232.68",TEAM FOSTERING.
Children and Young Peoples Services,CYPS - Local Authority,Third Party Payments,425040,Rendered by Voluntary Organisations,04-Apr-12,2432067-16517,"3,011.34",TEAM FOSTERING.
Children and Young Peoples Services,CYPS - Local Authority,Third Party Payments,425040,Rendered by Voluntary Organisations,04-Apr-12,2432067-16543,"2,428.50",TEAM FOSTERING.
Children and Young Peoples Services,CYPS - Local Authority,Third Party Payments,425040,Rendered by Voluntary Organisations,04-Apr-12,2432067-16545,"5,000.00",TEAM FOSTERING.
Children and Young Peoples Services,CYPS - Local Authority,Supplies and Services,384199,Miscellaneous Expenses,04-Apr-12,2432078-SIN072367-TEL,650,TRIBAL EDUCATION.
Children and Young Peoples Services,CYPS - Local Authority,Transfer Payments,510033,School Children,04-Apr-12,2432082-3000021262-29/03/2012,650,UNIVERSITY OF NEWCASTLE UPON TYNE.
Children and Young Peoples Services,CYPS - Local Authority,Third Party Payments,425040,Rendered by Voluntary Organisations,04-Apr-12,2432097-000244,"2,500.00",WHITEHORSE LODGE LTD.
Children and Young Peoples Services,CYPS - Local Authority,Third Party Payments,425040,Rendered by Voluntary Organisations,04-Apr-12,2432097-000248,"2,500.00",WHITEHORSE LODGE LTD.
Children and Young Peoples Services,CYPS - Local Authority,Supplies and Services,384199,Miscellaneous Expenses,04-Apr-12,2432103-0000000206,"3,903.15",YOUTH JUSTICE AGENCY OF NORTHERN IRELAND.
Children and Young Peoples Services,Dedicated Schools Grant,Employees,80025,Agency Staff,04-Apr-12,2431799-03488550,995,CAPITA EDUCATION RESOURCING.
Children and Young Peoples Services,Dedicated Schools Grant,Supplies and Services,304259,Equipment and Materials,04-Apr-12,2431985-2590596430,727,PHONAK UK LTD.
Corporate Resources,Asset Management,Construction Work,908105,Construction work,04-Apr-12,2431831-01100,"1,200.00",DIGITAL SURVEYS.
Corporate Resources,Asset Management,Construction Work,908105,Construction work,04-Apr-12,2431874-INS21-SSJ,"163,753.00",GENTOO CONSTRUCTION LTD.
Corporate Resources,Asset Management,Premises,125009,Rents,04-Apr-12,2431943-1411,"17,793.75",MINTON OLDBURY LTD.
Corporate Resources,Asset Management,Premises,125009,Rents,04-Apr-12,2431947-R-A12,"4,550.00",MM KNITWEAR (1982) LTD.
Corporate Resources,Asset Management,Premises,135005,Water Services,04-Apr-12,2431971-226549660014027,696.7,NORTHUMBRIAN WATER LTD.
Corporate Resources,Financing- Resources,Supplies and Services,340001,Postages,04-Apr-12,2432014-9038034479,"1,105.86",ROYAL MAIL GROUP PLC.
Corporate Resources,Financing- Resources,Supplies and Services,364993,Grants to Voluntary Organisations,04-Apr-12,2432027-C,"1,000.00",SHOW RACISM THE RED CARD.
Corporate Resources,Human Resources Total,Supplies and Services,338057,Services,04-Apr-12,204463-JAN/FEB12,"1,750.00",DUNELM MEDICAL PRACTICE.
Corporate Resources,ICT Services incl. Design and Print,Supplies and Services,342051,Computers and Communications,04-Apr-12,204504-106640,"18,895.50",GGP SYSTEMS LTD.
Corporate Resources,ICT Services incl. Design and Print,Supplies and Services,332029,"Printing, Stationery and Gen Off Exps",04-Apr-12,2431887-63181,"1,454.00",HILLPRINT MEDIA LTD.
Corporate Resources,ICT Services incl. Design and Print,Supplies and Services,332029,"Printing, Stationery and Gen Off Exps",04-Apr-12,2431887-63184,"1,220.00",HILLPRINT MEDIA LTD.
Corporate Resources,ICT Services incl. Design and Print,Supplies and Services,304639,Equipment and Materials,04-Apr-12,2431889-15179,"3,830.00",HME TECHNOLOGY LTD.
Corporate Resources,ICT Services incl. Design and Print,Supplies and Services,342051,Computers and Communications,04-Apr-12,2431979-1362533,"75,262.16",ORACLE CORPORATION UK LTD.
Corporate Resources,ICT Services incl. Design and Print,Supplies and Services,342033,Computers and Communications,04-Apr-12,2432062-115625,"2,549.00",SWITCHSHOP LTD.
Corporate Resources,ICT Services incl. Design and Print,Supplies and Services,344102,Telephones,04-Apr-12,2432087-291229-047,"71,149.00",VIRGIN MEDIA LTD.
Corporate Resources,Internal Audit,Supplies and Services,372009,Subscriptions,04-Apr-12,204641-1797,500,NORTH EAST FRAUD FORUM LTD.
Corporate Resources,Legal & Democratic Services,Supplies and Services,338057,Services,04-Apr-12,2431833-312/S,580.8,DR BARRETT.
Corporate Resources,Legal & Democratic Services,Supplies and Services,338057,Services,04-Apr-12,2431834-312/N,"1,161.60",DR BARRETT.
Corporate Resources,Legal & Democratic Services,Supplies and Services,338057,Services,04-Apr-12,2431837-312/N,580.8,DR M SHARMA.
Corporate Resources,Legal & Democratic Services,Supplies and Services,338057,Services,04-Apr-12,2431838-312/N,677.6,DR PATEL.
Corporate Resources,Legal & Democratic Services,Supplies and Services,338057,Services,04-Apr-12,2431840-312/N,774.4,DR SIDHU.
Corporate Resources,Legal & Democratic Services,Supplies and Services,384199,Miscellaneous Expenses,04-Apr-12,2431970-2861,749,NORTHGENE LTD.
Neighbourhood Services,Direct Services,Third Party Payments,430100,Rendered by Private Contractors,04-Apr-12,204400-289AL20111203,"1,020.00",AMBERLIGHT ELECTRICAL SERVICES.
Neighbourhood Services,Direct Services,Supplies and Services,384700,Miscellaneous Expenses,04-Apr-12,204403-IN/B,500,ANNFIELD PLAIN JM SCHOOL.
Neighbourhood Services,Direct Services,Stock,926900,Stock in hand-Inventory system,04-Apr-12,204507-0249/0171382,"1,002.44",GRAHAM.
Neighbourhood Services,Direct Services,Stock,926900,Stock in hand-Inventory system,04-Apr-12,204507-0249/0171536,661.26,GRAHAM.
Neighbourhood Services,Direct Services,Third Party Payments,430101,Rendered by Private Contractors,04-Apr-12,204517-INV08822372,634.36,HI Q TYRESERVICES.
Neighbourhood Services,Direct Services,Third Party Payments,430101,Rendered by Private Contractors,04-Apr-12,204517-INV08841069,580,HI Q TYRESERVICES.
Neighbourhood Services,Direct Services,Third Party Payments,430101,Rendered by Private Contractors,04-Apr-12,204517-INV08844473,574.35,HI Q TYRESERVICES.
Neighbourhood Services,Direct Services,Supplies and Services,304221,Equipment and Materials,04-Apr-12,204704-7683,"1,023.20",THINFORD NURSERIES.
Neighbourhood Services,Direct Services,Supplies and Services,384700,Miscellaneous Expenses,04-Apr-12,204725-IN/B,500,SOUTH STANLEY PARTNERSHIP.
Neighbourhood Services,Direct Services,Third Party Payments,430100,Rendered by Private Contractors,04-Apr-12,2431763-12976,"21,235.00",AMBIC LTD.
Neighbourhood Services,Direct Services,Third Party Payments,430100,Rendered by Private Contractors,04-Apr-12,2431772-WHC,"1,960.00",ASTBURY CONTRACTS.
Neighbourhood Services,Direct Services,Transport,210057,Repair and Maintenance of Vehicles,04-Apr-12,2431780-25105198,561.47,BELL TRUCK SALES LTD.
Neighbourhood Services,Direct Services,Supplies and Services,304259,Equipment and Materials,04-Apr-12,2431785-331588,"10,508.75",BONINGALE NURSERIES.
Neighbourhood Services,Direct Services,Supplies and Services,324117,Provisions,04-Apr-12,2431787-21105361,791.13,BRAKE BROS FOODSERVICE LTD.
Neighbourhood Services,Direct Services,Supplies and Services,324117,Provisions,04-Apr-12,2431787-21143502,690.26,BRAKE BROS FOODSERVICE LTD.
Neighbourhood Services,Direct Services,Supplies and Services,304221,Equipment and Materials,04-Apr-12,2431795-INV088659,749.85,BROXAP LTD.
Neighbourhood Services,Direct Services,Third Party Payments,430100,Rendered by Private Contractors,04-Apr-12,2431798-NEW8089888,501.6,BURNT TREE GROUP LTD.
Neighbourhood Services,Direct Services,Premises,145009,Cleaning and Domestic Supplies,04-Apr-12,2431812-CC80607,"2,395.00",CITY CLEAN.
Neighbourhood Services,Direct Services,Stock,926900,Stock in hand-Inventory system,04-Apr-12,2431814-2596327,"5,512.50",CLEVELAND CABLE CO LTD.
Neighbourhood Services,Direct Services,Supplies and Services,304221,Equipment and Materials,04-Apr-12,2431851-05-095481,604.42,EDMUNDSON ELECTRICAL LTD.
Neighbourhood Services,Direct Services,Stock,926900,Stock in hand-Inventory system,04-Apr-12,2431851-059-095156,881.28,EDMUNDSON ELECTRICAL LTD.
Neighbourhood Services,Direct Services,Supplies and Services,304221,Equipment and Materials,04-Apr-12,2431851-059-095201,"1,341.22",EDMUNDSON ELECTRICAL LTD.
Neighbourhood Services,Direct Services,Supplies and Services,304221,Equipment and Materials,04-Apr-12,2431851-059-095527,"4,255.31",EDMUNDSON ELECTRICAL LTD.
Neighbourhood Services,Direct Services,Supplies and Services,304221,Equipment and Materials,04-Apr-12,2431851-059-095544,896.87,EDMUNDSON ELECTRICAL LTD.
Neighbourhood Services,Direct Services,Supplies and Services,304221,Equipment and Materials,04-Apr-12,2431851-059-095701,"1,169.28",EDMUNDSON ELECTRICAL LTD.
Neighbourhood Services,Direct Services,Supplies and Services,304221,Equipment and Materials,04-Apr-12,2431851-059-095992,"1,904.00",EDMUNDSON ELECTRICAL LTD.
Neighbourhood Services,Direct Services,Stock,926900,Stock in hand-Inventory system,04-Apr-12,2431851-059-096115,821.4,EDMUNDSON ELECTRICAL LTD.
Neighbourhood Services,Direct Services,Supplies and Services,304221,Equipment and Materials,04-Apr-12,2431851-059-096221,816,EDMUNDSON ELECTRICAL LTD.
Neighbourhood Services,Direct Services,Supplies and Services,304221,Equipment and Materials,04-Apr-12,2431851-059-096329,"2,176.00",EDMUNDSON ELECTRICAL LTD.
Neighbourhood Services,Direct Services,Stock,926900,Stock in hand-Inventory system,04-Apr-12,2431861-OP/I257838,525.68,FLEMING & CO (MACHINERY) LTD.
Neighbourhood Services,Direct Services,Transport,215005,Running Costs of Vehicles,04-Apr-12,2431872-7395285,"2,304.00",GB OILS T/A BRETT FUELS.
Neighbourhood Services,Direct Services,Transport,215005,Running Costs of Vehicles,04-Apr-12,2431872-7532276,"25,808.90",GB OILS T/A BRETT FUELS.
Neighbourhood Services,Direct Services,Transport,215005,Running Costs of Vehicles,04-Apr-12,2431872-7555802,"10,583.72",GB OILS T/A BRETT FUELS.
Neighbourhood Services,Direct Services,Transport,215005,Running Costs of Vehicles,04-Apr-12,2431872-7555807,"2,105.99",GB OILS T/A BRETT FUELS.
Neighbourhood Services,Direct Services,Transport,215005,Running Costs of Vehicles,04-Apr-12,2431872-7596346,"11,762.16",GB OILS T/A BRETT FUELS.
Neighbourhood Services,Direct Services,Third Party Payments,430100,Rendered by Private Contractors,04-Apr-12,2431873-B71815,861.13,GEESINK NORBA LTD.
Neighbourhood Services,Direct Services,Transport,210057,Repair and Maintenance of Vehicles,04-Apr-12,2431930-84472,"1,264.95",LONDONDERRY GARAGE LTD.
Neighbourhood Services,Direct Services,Supplies and Services,324117,Provisions,04-Apr-12,2431935-207001,"1,194.55",MALTON FOODS LTD.
Neighbourhood Services,Direct Services,Transport,230005,Contract Hire,04-Apr-12,2431969-SL01075798INV,717.6,NORTHGATE VEHICLE HIRE LTD.
Neighbourhood Services,Direct Services,Third Party Payments,430100,Rendered by Private Contractors,04-Apr-12,2431975-INV23375,"1,022.40",NTM LINKTIP LTD.
Neighbourhood Services,Direct Services,Stock,926900,Stock in hand-Inventory system,04-Apr-12,2431980-XL054986,520.2,PARK ELECTRICAL DISTRIBUTORS LTD.
Neighbourhood Services,Direct Services,Stock,926900,Stock in hand-Inventory system,04-Apr-12,2431980-XL054994,684,PARK ELECTRICAL DISTRIBUTORS LTD.
Neighbourhood Services,Direct Services,Stock,926900,Stock in hand-Inventory system,04-Apr-12,2431980-XL054999,"1,614.18",PARK ELECTRICAL DISTRIBUTORS LTD.
Neighbourhood Services,Direct Services,Supplies and Services,304221,Equipment and Materials,04-Apr-12,2431988-INV182986,848.28,POINTER LTD.
Neighbourhood Services,Direct Services,Third Party Payments,430100,Rendered by Private Contractors,04-Apr-12,2432017-MAR04012,"1,281.00",RW CHICKEN (SCAFFOLDING) LTD.
Neighbourhood Services,Direct Services,Third Party Payments,430100,Rendered by Private Contractors,04-Apr-12,2432017-MAR04112,600,RW CHICKEN (SCAFFOLDING) LTD.
Neighbourhood Services,Direct Services,Third Party Payments,430100,Rendered by Private Contractors,04-Apr-12,2432017-MAR05412,600,RW CHICKEN (SCAFFOLDING) LTD.
Neighbourhood Services,Direct Services,Third Party Payments,430100,Rendered by Private Contractors,04-Apr-12,2432017-MAR05712,517,RW CHICKEN (SCAFFOLDING) LTD.
Neighbourhood Services,Direct Services,Transport,210057,Repair and Maintenance of Vehicles,04-Apr-12,2432018-00165763,761.44,S JENNINGS LTD.
Neighbourhood Services,Direct Services,Transport,210057,Repair and Maintenance of Vehicles,04-Apr-12,2432018-00173145,"1,033.16",S JENNINGS LTD.
Neighbourhood Services,Direct Services,Transport,230710,Contract Hire,04-Apr-12,2432028-270/12/0000323,"2,302.98",SIEMENS FINANCIAL SERVICES LTD.
Neighbourhood Services,Direct Services,Supplies and Services,304221,Equipment and Materials,04-Apr-12,2432070-P15381,930.11,TERRY GROUP LTD.
Neighbourhood Services,Direct Services,Third Party Payments,430100,Rendered by Private Contractors,04-Apr-12,2432093-201265,"8,510.48",WENSLEY ROOFING LTD.
Neighbourhood Services,Direct Services,Third Party Payments,430100,Rendered by Private Contractors,04-Apr-12,2432096-201256,"78,341.86",WESTDALE SERVICES LTD.
Neighbourhood Services,Direct Services,Stock,926900,Stock in hand-Inventory system,04-Apr-12,2432102-71683256,969.54,WOLSELEY UK LTD.
Neighbourhood Services,Direct Services,Stock,926900,Stock in hand-Inventory system,04-Apr-12,2432102-71683278,880.2,WOLSELEY UK LTD.
Neighbourhood Services,Direct Services,Stock,926900,Stock in hand-Inventory system,04-Apr-12,2432102-71808281,"1,549.06",WOLSELEY UK LTD.
Neighbourhood Services,Direct Services,Stock,926900,Stock in hand-Inventory system,04-Apr-12,2432102-72002740,"2,343.54",WOLSELEY UK LTD.
Neighbourhood Services,"Environment,Health & Consumer Protection",Summary reporting level,720330,Fees and Charges,04-Apr-12,204712-0000013735,562.97,VIP SYSTEM LTD.
Neighbourhood Services,"Environment,Health & Consumer Protection",Premises,135005,Water Services,04-Apr-12,2431971-260101200036036,"2,452.28",NORTHUMBRIAN WATER LTD.
Neighbourhood Services,"Environment,Health & Consumer Protection",Premises,125009,Rents,04-Apr-12,2432092-1595,"12,568.75",WELLSPRINGS PROPERTIES LTD.
Neighbourhood Services,"Environment,Health & Consumer Protection",Premises,125009,Rents,04-Apr-12,2432092-1631,"1,250.00",WELLSPRINGS PROPERTIES LTD.
Neighbourhood Services,Finance - Neighbourhood Services,Creditors,952024,Creditor-sub contractors retention,04-Apr-12,2431855-NE-13025109/10,"6,217.08",ENNIS PRISMO TRAFFIC SAFETY SOLUTIONS..
Neighbourhood Services,Finance - Neighbourhood Services,Creditors,952024,Creditor-sub contractors retention,04-Apr-12,2431855-NE-13025110/11,"4,282.85",ENNIS PRISMO TRAFFIC SAFETY SOLUTIONS..
Neighbourhood Services,Finance - Neighbourhood Services,Creditors,952024,Creditor-sub contractors retention,04-Apr-12,2431855-NE-13025309/10,"4,861.56",ENNIS PRISMO TRAFFIC SAFETY SOLUTIONS..
Neighbourhood Services,Finance - Neighbourhood Services,Creditors,952024,Creditor-sub contractors retention,04-Apr-12,2431855-NE-13025310/11,"2,369.37",ENNIS PRISMO TRAFFIC SAFETY SOLUTIONS..
Neighbourhood Services,Projects and Business services,Supplies and Services,372009,Subscriptions,04-Apr-12,204650-24230,500,ORICA SOFTWARE SYSTEMS LTD.
Neighbourhood Services,Projects and Business services,Supplies and Services,304421,Equipment and Materials,04-Apr-12,2432081-389459,799.58,UNITED CARLTON OFFICE SYSTEMS LTD.
Neighbourhood Services,Sport & Leisure,Supplies and Services,384237,Miscellaneous Expenses,04-Apr-12,204434-B,"1,000.00",COMMUNITY FOUNDATION.
Neighbourhood Services,Sport & Leisure,Supplies and Services,338027,Services,04-Apr-12,204674-SAY/240,850,SAY CONSULTANCY LTD.
Neighbourhood Services,Technical Services,Supplies and Services,342051,Computers and Communications,04-Apr-12,204409-47381389,"10,231.50",BENTLEY SYSTEMS INTERNATIONAL LTD.
Neighbourhood Services,Technical Services,Supplies and Services,304358,Equipment and Materials,04-Apr-12,204498-47-28/02/2012,895.35,G & W JACKSON.
Neighbourhood Services,Technical Services,Supplies and Services,304221,Equipment and Materials,04-Apr-12,2431758-15974972,"3,630.55",AGGREGATE INDUSTRIES UK LTD.
Neighbourhood Services,Technical Services,Supplies and Services,304221,Equipment and Materials,04-Apr-12,2431758-15980965,"12,171.16",AGGREGATE INDUSTRIES UK LTD.
Neighbourhood Services,Technical Services,Supplies and Services,304221,Equipment and Materials,04-Apr-12,2431758-16115752,"1,239.94",AGGREGATE INDUSTRIES UK LTD.
Neighbourhood Services,Technical Services,Supplies and Services,304221,Equipment and Materials,04-Apr-12,2431758-16115754,"1,461.15",AGGREGATE INDUSTRIES UK LTD.
Neighbourhood Services,Technical Services,Supplies and Services,304221,Equipment and Materials,04-Apr-12,2431758-16115755,932.83,AGGREGATE INDUSTRIES UK LTD.
Neighbourhood Services,Technical Services,Supplies and Services,304221,Equipment and Materials,04-Apr-12,2431758-16115756,"11,527.35",AGGREGATE INDUSTRIES UK LTD.
Neighbourhood Services,Technical Services,Supplies and Services,304221,Equipment and Materials,04-Apr-12,2431758-16115757,"12,573.21",AGGREGATE INDUSTRIES UK LTD.
Neighbourhood Services,Technical Services,Supplies and Services,304221,Equipment and Materials,04-Apr-12,2431758-16115758,733.13,AGGREGATE INDUSTRIES UK LTD.
Neighbourhood Services,Technical Services,Supplies and Services,304221,Equipment and Materials,04-Apr-12,2431758-16122681,"1,451.62",AGGREGATE INDUSTRIES UK LTD.
Neighbourhood Services,Technical Services,Supplies and Services,304221,Equipment and Materials,04-Apr-12,2431758-16122682,"4,548.80",AGGREGATE INDUSTRIES UK LTD.
Neighbourhood Services,Technical Services,Supplies and Services,304221,Equipment and Materials,04-Apr-12,2431759-16115759,910,AGGREGATE INDUSTRIES UK LTD.
Neighbourhood Services,Technical Services,Supplies and Services,304221,Equipment and Materials,04-Apr-12,2431759-16115760,"2,129.25",AGGREGATE INDUSTRIES UK LTD.
Neighbourhood Services,Technical Services,Supplies and Services,304221,Equipment and Materials,04-Apr-12,2431759-16122683,"1,098.82",AGGREGATE INDUSTRIES UK LTD.
Neighbourhood Services,Technical Services,Supplies and Services,304221,Equipment and Materials,04-Apr-12,2431759-16219704,"1,632.58",AGGREGATE INDUSTRIES UK LTD.
Neighbourhood Services,Technical Services,Supplies and Services,304221,Equipment and Materials,04-Apr-12,2431759-16219705,602.92,AGGREGATE INDUSTRIES UK LTD.
Neighbourhood Services,Technical Services,Construction Work,908105,Construction work,04-Apr-12,2431843-2904,"4,855.10",DUNELM GEOTECHNICAL & ENVIRONMENTAL LTD.
Neighbourhood Services,Technical Services,Third Party Payments,460350,Contract Payments,04-Apr-12,2431906-30,690,JD ATKINSON.
Neighbourhood Services,Technical Services,Supplies and Services,304221,Equipment and Materials,04-Apr-12,2431992-041324,"3,557.01",PREMIER WASTE MANAGEMENT LTD.
Neighbourhood Services,Technical Services,Supplies and Services,304221,Equipment and Materials,04-Apr-12,2431992-041325,754.73,PREMIER WASTE MANAGEMENT LTD.
Neighbourhood Services,Technical Services,Supplies and Services,304221,Equipment and Materials,04-Apr-12,2431992-SDIN/00006337,"1,715.84",PREMIER WASTE MANAGEMENT LTD.
Neighbourhood Services,Technical Services,Supplies and Services,372009,Subscriptions,04-Apr-12,2432006-071754,635,RICS BOOKS.
Neighbourhood Services,Technical Services,Third Party Payments,430100,Rendered by Private Contractors,04-Apr-12,2432008-2511,"1,500.00",RINGLAND SCAFFOLDING.
Neighbourhood Services,Technical Services,Supplies and Services,304421,Equipment and Materials,04-Apr-12,2432081-389458,784.21,UNITED CARLTON OFFICE SYSTEMS LTD.
Neighbourhood Services,Technical Services,Supplies and Services,332029,"Printing, Stationery and Gen Off Exps",04-Apr-12,2432081-389464,577.96,UNITED CARLTON OFFICE SYSTEMS LTD.
Neighbourhood Services,Training and Development,Employees,40149,"Recruitment, Instruction and Training",04-Apr-12,2431804-PS65951,"3,400.00",CAUSEWAY TECHNOLOGIES LTD.
RED HRA,East Durham Homes - HRA Rent Control Account,Supplies and Services,384999,Miscellaneous Expenses,04-Apr-12,204596-1022176001/R,551.61,REDACTED - PAYMENT TO INDIVIDUAL
RED HRA,HRA Capital,Other Expenses,914001,Other capital expenses,04-Apr-12,204494-BAR1165551,915.62,FOUR SEASONS HEALTH CARE.
RED HRA,HRA Capital,Construction Work,908105,Construction work,04-Apr-12,2431850-SINV/00002731,994.49,EAST DURHAM HOMES.
RED HRA,HRA Capital,Construction Work,908105,Construction work,04-Apr-12,2431944-CON51534,868,MIS ENVIRONMENTAL LTD.
RED HRA,HRA Control Codes,Creditors,952184,Creditor-tenants contents insurance,04-Apr-12,2431938-5928135,"1,670.30",MARSH UK LTD.
Regeneration & Economic Development,Economic Development,Supplies and Services,324117,Provisions,04-Apr-12,2431750-36759869,635.23,3663
Regeneration & Economic Development,Economic Development,Supplies and Services,324117,Provisions,04-Apr-12,2431750-36764443,567.88,3663
Regeneration & Economic Development,Economic Development,Supplies and Services,324117,Provisions,04-Apr-12,2431750-36769325,550.27,3663
Regeneration & Economic Development,Economic Development,Supplies and Services,324117,Provisions,04-Apr-12,2431750-36773856,888.67,3663
Regeneration & Economic Development,Economic Development,Supplies and Services,324117,Provisions,04-Apr-12,2431750-36783400,645.38,3663
Regeneration & Economic Development,Economic Development,Supplies and Services,338005,Services,04-Apr-12,2431756-BCTB,"3,915.00",ADDISONS CHARTERED SURVEYORS.
Regeneration & Economic Development,Economic Development,Supplies and Services,338005,Services,04-Apr-12,2431756-C/P/V,"9,403.34",ADDISONS CHARTERED SURVEYORS.
Regeneration & Economic Development,Economic Development,Premises,108099,Service Repairs and Maintenance,04-Apr-12,2431813-28L,520,CLEAN THRU NORTHERN LTD.
Regeneration & Economic Development,Economic Development,Supplies and Services,384899,Miscellaneous Expenses,04-Apr-12,2431856-FS,"4,869.00",ENTER CIC.
Regeneration & Economic Development,Economic Development,Construction Work,908105,Construction work,04-Apr-12,2431940-INS1-SC&SB,"14,250.00",MGL DEMOLITION LTD.
Regeneration & Economic Development,Economic Development,Supplies and Services,384199,Miscellaneous Expenses,04-Apr-12,2431948-MI3188,531,MOBIOUS LTD.
Regeneration & Economic Development,Economic Development,Premises,106099,Centrally Controlled Rep and Maint,04-Apr-12,2431986-58402642,"1,569.30",PHS GROUP PLC.
Regeneration & Economic Development,Economic Development,Third Party Payments,410037,Rendered by Other Local Authorities,04-Apr-12,2432073-0000007739,"11,878.21",THE GREENHOUSE CO (GROUNDWORK) LTD.
Regeneration & Economic Development,Economic Development,Construction Work,908105,Construction work,04-Apr-12,2432086-50022630,"1,394.78",VIRGIN MEDIA LTD.
Regeneration & Economic Development,Economic Development,Third Party Payments,410037,Rendered by Other Local Authorities,04-Apr-12,2432088-G,"110,000.00",VISIT COUNTY DURHAM.
Regeneration & Economic Development,Housing General Fund,Cap Exp on Grants & Other Financial Assistance (REFCUS),918401,Capital grants,04-Apr-12,204397-DFG348/11,"3,495.00",ACORN PLUMBING & HEATING.
Regeneration & Economic Development,Housing General Fund,Cap Exp on Grants & Other Financial Assistance (REFCUS),918401,Capital grants,04-Apr-12,204397-DFG432/11,"5,200.00",ACORN PLUMBING & HEATING.
Regeneration & Economic Development,Housing General Fund,Cap Exp on Grants & Other Financial Assistance (REFCUS),918401,Capital grants,04-Apr-12,204558-747,"2,666.00",LORMOR & HALL CONSTRUCTION.
Regeneration & Economic Development,Housing General Fund,Employees,40149,"Recruitment, Instruction and Training",04-Apr-12,2431950-CF,900,MR CHRISTOPHER F SKINNER.
Regeneration & Economic Development,"Spatial Policy, Planning, Assets & Environment",Summary reporting level,720190,Fees and Charges,04-Apr-12,204528-R-OCT11,"1,541.00",INCHCAPE ESTATES LTD.
Regeneration & Economic Development,"Spatial Policy, Planning, Assets & Environment",Supplies and Services,384918,Miscellaneous Expenses,04-Apr-12,204572-WVP,"6,845.67",REDACTED - PAYMENT TO INDIVIDUAL
Regeneration & Economic Development,"Spatial Policy, Planning, Assets & Environment",Supplies and Services,384918,Miscellaneous Expenses,04-Apr-12,204619-WVP,"10,897.17",REDACTED - PAYMENT TO INDIVIDUAL
Regeneration & Economic Development,"Spatial Policy, Planning, Assets & Environment",Supplies and Services,384918,Miscellaneous Expenses,04-Apr-12,204724-WVP,"7,521.34",REDACTED - PAYMENT TO INDIVIDUAL
Regeneration & Economic Development,"Spatial Policy, Planning, Assets & Environment",Supplies and Services,384199,Miscellaneous Expenses,04-Apr-12,2431882-SDFGP,500,HAYBERGILL CENTRE.
Regeneration & Economic Development,"Spatial Policy, Planning, Assets & Environment",Supplies and Services,384899,Miscellaneous Expenses,04-Apr-12,2431992-CDENT/C,"1,000.00",PREMIER WASTE MANAGEMENT LTD.
Regeneration & Economic Development,Transport,Third Party Payments,410037,Rendered by Other Local Authorities,04-Apr-12,2431830-DN/2928,699.35,DIAMOND NORTHERN 91.
Regeneration & Economic Development,Transport,Third Party Payments,410037,Rendered by Other Local Authorities,04-Apr-12,2431830-DN/2929,523.7,DIAMOND NORTHERN 91.
Regeneration & Economic Development,Transport,Third Party Payments,410037,Rendered by Other Local Authorities,04-Apr-12,2431830-DN/2930,518.5,DIAMOND NORTHERN 91.
Regeneration & Economic Development,Transport,Premises,135005,Water Services,04-Apr-12,2431971-260101200027035,"2,234.75",NORTHUMBRIAN WATER LTD.
Adults Wellbeing and Health,Commissioning inc Supporting People,Supplies and Services,372009,Subscriptions,05-Apr-12,2432466-1462,"2,000.00",HOUSING OPTIONS LTD.
Adults Wellbeing and Health,Financing-Adult Services,Creditors,952035,Creditor-housing benefit-eqpt,05-Apr-12,2432509-13896,791.4,JEFFREY CARR LTD.
Adults Wellbeing and Health,Head of Adults,Supplies and Services,324117,Provisions,05-Apr-12,2432162-21,"1,488.00",ASHBARTON CATERING.
Adults Wellbeing and Health,Head of Adults,Transfer Payments,515201,Social Services Clients,05-Apr-12,2432786-PD20870,779.26,REDACTED - PAYMENT TO INDIVIDUAL
Adults Wellbeing and Health,Head of Adults,Third Party Payments,471101,Purchase of Care,05-Apr-12,2432860-F/O,"23,607.88",SOUTHERN CROSS HEALTHCARE GROUP PLC.
Adults Wellbeing and Health,Head of Adults,Transfer Payments,515201,Social Services Clients,05-Apr-12,2432503-PD100149,831.47,REDACTED - PAYMENT TO INDIVIDUAL
Adults Wellbeing and Health,Planning and Performance,Other Expenses,914001,Other capital expenses,05-Apr-12,2432320-6085,"1,891.63",DOCUMATION SOFTWARE LTD.
Adults Wellbeing and Health,Planning and Performance,Premises,155001,Insurance of Premises,05-Apr-12,2432583-1204071,"1,620.12",MANDALE INVESTMENTS LTD.
Adults Wellbeing and Health,Social Inclusion,Supplies and Services,312013,"Newspapers, Books and Periodicals",05-Apr-12,2432165-3450560,507.12,ASKEWS & HOLTS LIBRARY SERVICES LTD.
Adults Wellbeing and Health,Social Inclusion,Supplies and Services,312013,"Newspapers, Books and Periodicals",05-Apr-12,2432165-3457169,564.69,ASKEWS & HOLTS LIBRARY SERVICES LTD.
Adults Wellbeing and Health,Social Inclusion,Supplies and Services,312013,"Newspapers, Books and Periodicals",05-Apr-12,2432165-3467304,596.23,ASKEWS & HOLTS LIBRARY SERVICES LTD.
Adults Wellbeing and Health,Social Inclusion,Supplies and Services,312013,"Newspapers, Books and Periodicals",05-Apr-12,2432165-3467307,514.89,ASKEWS & HOLTS LIBRARY SERVICES LTD.
Adults Wellbeing and Health,Social Inclusion,Supplies and Services,312013,"Newspapers, Books and Periodicals",05-Apr-12,2432165-3467310,520.7,ASKEWS & HOLTS LIBRARY SERVICES LTD.
Adults Wellbeing and Health,Social Inclusion,Premises,120021,Energy Costs,05-Apr-12,2432475-5325,"3,978.74",IMPALA ESTATES LTD.
Adults Wellbeing and Health,Social Inclusion,Supplies and Services,312013,"Newspapers, Books and Periodicals",05-Apr-12,2432712-XI06081693,"11,530.00",OXFORD UNIVERSITY PRESS.
Adults Wellbeing and Health,Social Inclusion,Supplies and Services,338078,Services,05-Apr-12,2432768-53291,638.33,PROTECTOR SECURITY GROUP LTD.
Adults Wellbeing and Health,Social Inclusion,Supplies and Services,312009,"Newspapers, Books and Periodicals",05-Apr-12,2432966-DE2724300,"4,044.39",TTS GROUP LTD.
Adults Wellbeing and Health,Social Inclusion,Supplies and Services,312009,"Newspapers, Books and Periodicals",05-Apr-12,2432966-DE2725095,726.85,TTS GROUP LTD.
Adults Wellbeing and Health,Social Inclusion,Supplies and Services,312013,"Newspapers, Books and Periodicals",05-Apr-12,2432214-B11130,600,BRIGHT BOOK SUPPLIES.
Adults Wellbeing and Health,Social Inclusion,Supplies and Services,312013,"Newspapers, Books and Periodicals",05-Apr-12,2432767-30040174,"9,030.00",PROQUEST INFORMATION & LEARNING LTD.
Adults Wellbeing and Health,Social Inclusion,Supplies and Services,384199,Miscellaneous Expenses,05-Apr-12,2432289-MTC,"3,000.00",CRIME STOPPERS.
Assistant Chief Executive,Assistant Chief Executive Financing,Debtors,930159,Debtor-postages-Assistant Cheif Exec,05-Apr-12,2432644-211811-04/04/2012,"10,000.00",NEOPOST LTD CREDIFON RCB ACCOUNT.
Assistant Chief Executive,Partnerships & Community Engagement Div.,Transfer Payments,525030,Other,05-Apr-12,2432104-BASH005-AB11,"6,000.00",2D LTD.
Assistant Chief Executive,Partnerships & Community Engagement Div.,Cap Exp on Grants & Other Financial Assistance (REFCUS),918004,Contributions to other bodies,05-Apr-12,2432335-R,"50,000.00",EASINGTON SOCIAL WELFARE CENTRE.
Assistant Chief Executive,Partnerships & Community Engagement Div.,Transfer Payments,525030,Other,05-Apr-12,2432399-CB2012/13,"3,500.00",FRAMWELLGATE MOOR & DISTRICT YOUTH & COMMUNITY ASSOCIATION.
Assistant Chief Executive,Partnerships & Community Engagement Div.,Transfer Payments,525030,Other,05-Apr-12,2432500-3TWN020-AB11,"2,650.00",JACK DRUM ARTS LTD.
Assistant Chief Executive,Partnerships & Community Engagement Div.,Supplies and Services,384085,Miscellaneous Expenses,05-Apr-12,2432857-TODR02-12HUNE02-12,"1,000.00",SOUTH HETTON & DISTRICT COMMUNITY ASSOCIATION.
Assistant Chief Executive,Partnerships & Community Engagement Div.,Supplies and Services,384085,Miscellaneous Expenses,05-Apr-12,2432931-TODR01-12HUNE01-12,"1,000.00",THE HAZELWELL CENTRE.
Assistant Chief Executive,Partnerships & Community Engagement Div.,Transfer Payments,525030,Other,05-Apr-12,2432963-CB12/13,"1,496.00",TRIMDON VILLAGE HALL ASSOCIATION.
Children and Young Peoples Services,CYPS - Local Authority,Construction Work,908105,Construction work,05-Apr-12,2432120-20924626-61,545.68,ADT FIRE & SECURITY PLC.
Children and Young Peoples Services,CYPS - Local Authority,Third Party Payments,425040,Rendered by Voluntary Organisations,05-Apr-12,2432181-104304319,"3,730.24",BARNARDOS.
Children and Young Peoples Services,CYPS - Local Authority,Third Party Payments,425040,Rendered by Voluntary Organisations,05-Apr-12,2432181-104304460,"4,662.80",BARNARDOS.
Children and Young Peoples Services,CYPS - Local Authority,Third Party Payments,425040,Rendered by Voluntary Organisations,05-Apr-12,2432181-104304461,"3,730.24",BARNARDOS.
Children and Young Peoples Services,CYPS - Local Authority,Third Party Payments,425040,Rendered by Voluntary Organisations,05-Apr-12,2432181-104304882,"27,805.76",BARNARDOS.
Children and Young Peoples Services,CYPS - Local Authority,Third Party Payments,425021,Rendered by Voluntary Organisations,05-Apr-12,2432181-104304979,"3,892.28",BARNARDOS.
Children and Young Peoples Services,CYPS - Local Authority,Third Party Payments,425040,Rendered by Voluntary Organisations,05-Apr-12,2432181-104305010,863.66,BARNARDOS.
Children and Young Peoples Services,CYPS - Local Authority,Transfer Payments,510026,School Children,05-Apr-12,2432209-02JAN-30MAR,"1,695.20",BRANDON HAPPYTIMES DAYCARE.
Children and Young Peoples Services,CYPS - Local Authority,Transfer Payments,510026,School Children,05-Apr-12,2432209-LW-JAN-MAR12,"2,193.75",BRANDON HAPPYTIMES DAYCARE.
Children and Young Peoples Services,CYPS - Local Authority,Supplies and Services,372009,Subscriptions,05-Apr-12,2432217-12/FM/73461,"8,786.88",BRITISH ASSOC FOR ADOPTION & FOSTERING BAAF.
Children and Young Peoples Services,CYPS - Local Authority,Supplies and Services,338089,Services,05-Apr-12,2432217-N6702,765.75,BRITISH ASSOC FOR ADOPTION & FOSTERING BAAF.
Children and Young Peoples Services,CYPS - Local Authority,Employees,80025,Agency Staff,05-Apr-12,2432232-03486215,995,CAPITA EDUCATION RESOURCING.
Children and Young Peoples Services,CYPS - Local Authority,Employees,80025,Agency Staff,05-Apr-12,2432232-03486217,995,CAPITA EDUCATION RESOURCING.
Children and Young Peoples Services,CYPS - Local Authority,Transport,230007,Contract Hire,05-Apr-12,2432255-43171,"6,999.51",CJ GRIERSON.
Children and Young Peoples Services,CYPS - Local Authority,Transport,230007,Contract Hire,05-Apr-12,2432255-43173,"8,176.98",CJ GRIERSON.
Children and Young Peoples Services,CYPS - Local Authority,Transport,230007,Contract Hire,05-Apr-12,2432255-43174,"2,284.48",CJ GRIERSON.
Children and Young Peoples Services,CYPS - Local Authority,Supplies and Services,384638,Miscellaneous Expenses,05-Apr-12,2432339-1-30RC,"8,000.00",EAST DURHAM POSITIVE INCULSION PARTNERSHIP.
Children and Young Peoples Services,CYPS - Local Authority,Transfer Payments,510026,School Children,05-Apr-12,2432360-SDCATCH11/04,"7,580.00",EMERALD NURSERY.
Children and Young Peoples Services,CYPS - Local Authority,Construction Work,908105,Construction work,05-Apr-12,2432375-INS5-C,815.93,EXTRASPACE SOLUTIONS (UK) LTD.
Children and Young Peoples Services,CYPS - Local Authority,Construction Work,908105,Construction work,05-Apr-12,2432375-INS7-N-A,"4,813.90",EXTRASPACE SOLUTIONS (UK) LTD.
Children and Young Peoples Services,CYPS - Local Authority,Construction Work,908105,Construction work,05-Apr-12,2432375-INS9-S,"3,538.35",EXTRASPACE SOLUTIONS (UK) LTD.
Children and Young Peoples Services,CYPS - Local Authority,Third Party Payments,486029,Service Level Agreements,05-Apr-12,2432380-14403,"21,125.83",FAMILY ACTION.
Children and Young Peoples Services,CYPS - Local Authority,Transport,230007,Contract Hire,05-Apr-12,2432384-09/12,685.3,FERRYHILL TAXIS.
Children and Young Peoples Services,CYPS - Local Authority,Third Party Payments,425040,Rendered by Voluntary Organisations,05-Apr-12,2432395-2200000046,565.2,FOSTER CARE ASSOCIATES LTD.
Children and Young Peoples Services,CYPS - Local Authority,Third Party Payments,425040,Rendered by Voluntary Organisations,05-Apr-12,2432396-FC009955,980,FOSTER CARES LTD.
Children and Young Peoples Services,CYPS - Local Authority,Third Party Payments,425040,Rendered by Voluntary Organisations,05-Apr-12,2432396-FC009986,980,FOSTER CARES LTD.
Children and Young Peoples Services,CYPS - Local Authority,Third Party Payments,425040,Rendered by Voluntary Organisations,05-Apr-12,2432396-FC009988,760,FOSTER CARES LTD.
Children and Young Peoples Services,CYPS - Local Authority,Third Party Payments,425040,Rendered by Voluntary Organisations,05-Apr-12,2432396-FC009998,740,FOSTER CARES LTD.
Children and Young Peoples Services,CYPS - Local Authority,Third Party Payments,425040,Rendered by Voluntary Organisations,05-Apr-12,2432396-FC009999,730,FOSTER CARES LTD.
Children and Young Peoples Services,CYPS - Local Authority,Transfer Payments,510026,School Children,05-Apr-12,2432421-302,"1,990.20",GIANT STEPS LTD.
Children and Young Peoples Services,CYPS - Local Authority,Creditors,952011,Creditors-Government grants,05-Apr-12,2432425-LG,"23,540.50",GLENDENE SCHOOL & COMMUNITY ARTS COLLEGE LEARNED.
Children and Young Peoples Services,CYPS - Local Authority,Supplies and Services,338027,Services,05-Apr-12,2432455-DS,"1,296.00",HERMITAGE ACADEMY.
Children and Young Peoples Services,CYPS - Local Authority,Employees,80025,Agency Staff,05-Apr-12,2432476-A047,979.6,IMPROVEMENT FOCUS LTD.
Children and Young Peoples Services,CYPS - Local Authority,Employees,80025,Agency Staff,05-Apr-12,2432476-A050,"1,012.36",IMPROVEMENT FOCUS LTD.
Children and Young Peoples Services,CYPS - Local Authority,Employees,80025,Agency Staff,05-Apr-12,2432476-A051,964,IMPROVEMENT FOCUS LTD.
Children and Young Peoples Services,CYPS - Local Authority,Supplies and Services,338027,Services,05-Apr-12,2432477-ISPL018,500,IMPROVEMENT SUPPORT PARTNERS LTD.
Children and Young Peoples Services,CYPS - Local Authority,Supplies and Services,304999,Equipment and Materials,05-Apr-12,2432479-2235/869,"4,500.00",INDIGO MULTIMEDIA LTD.
Children and Young Peoples Services,CYPS - Local Authority,Transport,230007,Contract Hire,05-Apr-12,2432497-15,"1,716.00",J SUNLEY.
Children and Young Peoples Services,CYPS - Local Authority,Transport,230007,Contract Hire,05-Apr-12,2432499-0137,"2,655.82",JA SHORT.
Children and Young Peoples Services,CYPS - Local Authority,Transport,230007,Contract Hire,05-Apr-12,2432501-F487MAR12,616,JAFFAS TAXIS.
Children and Young Peoples Services,CYPS - Local Authority,Transport,230007,Contract Hire,05-Apr-12,2432507-18,792,JDS PRIVATE HIRE.
Children and Young Peoples Services,CYPS - Local Authority,Transport,230007,Contract Hire,05-Apr-12,2432508-1259,"1,987.48",JEFF ANDERSON COACHES LTD.
Children and Young Peoples Services,CYPS - Local Authority,Transport,230007,Contract Hire,05-Apr-12,2432508-1260,"2,188.78",JEFF ANDERSON COACHES LTD.
Children and Young Peoples Services,CYPS - Local Authority,Transport,230007,Contract Hire,05-Apr-12,2432508-1261,"2,314.78",JEFF ANDERSON COACHES LTD.
Children and Young Peoples Services,CYPS - Local Authority,Transport,230007,Contract Hire,05-Apr-12,2432512-2012/04,"1,613.26",JM HUMBLE COACH HIRE.
Children and Young Peoples Services,CYPS - Local Authority,Transport,230007,Contract Hire,05-Apr-12,2432534-00164,"2,200.00",KENNAS KABS.
Children and Young Peoples Services,CYPS - Local Authority,Transport,230007,Contract Hire,05-Apr-12,2432534-E033C,660,KENNAS KABS.
Children and Young Peoples Services,CYPS - Local Authority,Premises,155001,Insurance of Premises,05-Apr-12,2432583-1204068,"1,500.11",MANDALE INVESTMENTS LTD.
Children and Young Peoples Services,CYPS - Local Authority,Transport,230007,Contract Hire,05-Apr-12,2432608-15MAR12,"1,890.00",MOLLYS TAXIS.
Children and Young Peoples Services,CYPS - Local Authority,Transport,230007,Contract Hire,05-Apr-12,2432613-5,735,MR DAVID CULLEN.
Children and Young Peoples Services,CYPS - Local Authority,Transport,230007,Contract Hire,05-Apr-12,2432613-6,770,MR DAVID CULLEN.
Children and Young Peoples Services,CYPS - Local Authority,Transport,230007,Contract Hire,05-Apr-12,2432614-003,836,MR DEREK HENDERSON.
Children and Young Peoples Services,CYPS - Local Authority,Transport,230007,Contract Hire,05-Apr-12,2432617-10011,"1,470.00",MR JR BLYTH T/A JRB TAXIS.
Children and Young Peoples Services,CYPS - Local Authority,Transport,230007,Contract Hire,05-Apr-12,2432618-0018,"1,260.00",MR JR FORT.
Children and Young Peoples Services,CYPS - Local Authority,Transport,230007,Contract Hire,05-Apr-12,2432620-00121,"1,323.00",MR P GARBUTT.
Children and Young Peoples Services,CYPS - Local Authority,Third Party Payments,440015,Other Third Party Payments,05-Apr-12,2432623-BD-SGO,841.28,REDACTED - PAYMENT TO INDIVIDUAL
Children and Young Peoples Services,CYPS - Local Authority,Supplies and Services,384491,Miscellaneous Expenses,05-Apr-12,2432649-CC-M,660,NEW BEGINNINGS (MOORSIDE) CO LTD.
Children and Young Peoples Services,CYPS - Local Authority,Supplies and Services,338066,Services,05-Apr-12,2432667-511134,"19,651.83",NHS COUNTY DURHAM FORMERLY CO DURHAM PCT .
Children and Young Peoples Services,CYPS - Local Authority,Transport,230007,Contract Hire,05-Apr-12,2432670-1852,"2,007.72",NIGHTINGALE COACHES.
Children and Young Peoples Services,CYPS - Local Authority,Supplies and Services,384638,Miscellaneous Expenses,05-Apr-12,2432678-COM5293,753,NORTH EAST AUTISM SOCIETY.
Children and Young Peoples Services,CYPS - Local Authority,Supplies and Services,384638,Miscellaneous Expenses,05-Apr-12,2432678-COM5320,502,NORTH EAST AUTISM SOCIETY.
Children and Young Peoples Services,CYPS - Local Authority,Supplies and Services,384199,Miscellaneous Expenses,05-Apr-12,2432679-105,"5,000.00",NORTH EAST ENVIRONMENT NETWORK LTD.
Children and Young Peoples Services,CYPS - Local Authority,Third Party Payments,440999,Other Third Party Payments,05-Apr-12,2432681-5841,550,NORTH EAST REGIONAL EMPLOYERS ORGANISATION.
Children and Young Peoples Services,CYPS - Local Authority,Supplies and Services,338099,Services,05-Apr-12,2432698-SV10/34412,726.18,NSPCC.
Children and Young Peoples Services,CYPS - Local Authority,Transfer Payments,510026,School Children,05-Apr-12,2432699-37-3/4/12,"1,101.60",NURSERY TIME.
Children and Young Peoples Services,CYPS - Local Authority,Supplies and Services,338060,Services,05-Apr-12,2432706-SINCC3F18870,"2,421.00",OFSTED.
Children and Young Peoples Services,CYPS - Local Authority,Supplies and Services,338060,Services,05-Apr-12,2432706-SINCC3F18958,"1,549.00",OFSTED.
Children and Young Peoples Services,CYPS - Local Authority,Third Party Payments,425040,Rendered by Voluntary Organisations,05-Apr-12,2432710-02023,"2,800.00",ORCHARD CARE (NORTH EAST) LTD.
Children and Young Peoples Services,CYPS - Local Authority,Third Party Payments,425040,Rendered by Voluntary Organisations,05-Apr-12,2432710-02026,"12,400.00",ORCHARD CARE (NORTH EAST) LTD.
Children and Young Peoples Services,CYPS - Local Authority,Third Party Payments,425040,Rendered by Voluntary Organisations,05-Apr-12,2432710-02028,"2,920.00",ORCHARD CARE (NORTH EAST) LTD.
Children and Young Peoples Services,CYPS - Local Authority,Transport,230007,Contract Hire,05-Apr-12,2432720-3MAR12,"2,741.12",PAUL WATSON TRAVEL.
Children and Young Peoples Services,CYPS - Local Authority,Transport,230007,Contract Hire,05-Apr-12,2432755-120301,"1,722.60",PRATTS TAXIS.
Children and Young Peoples Services,CYPS - Local Authority,Transport,230007,Contract Hire,05-Apr-12,2432755-120302,"1,380.60",PRATTS TAXIS.
Children and Young Peoples Services,CYPS - Local Authority,Transport,230007,Contract Hire,05-Apr-12,2432755-120303,"3,309.90",PRATTS TAXIS.
Children and Young Peoples Services,CYPS - Local Authority,Transport,230007,Contract Hire,05-Apr-12,2432755-120304,639.54,PRATTS TAXIS.
Children and Young Peoples Services,CYPS - Local Authority,Transport,230007,Contract Hire,05-Apr-12,2432755-120305,594,PRATTS TAXIS.
Children and Young Peoples Services,CYPS - Local Authority,Transport,230007,Contract Hire,05-Apr-12,2432755-120306,528,PRATTS TAXIS.
Children and Young Peoples Services,CYPS - Local Authority,Transport,230007,Contract Hire,05-Apr-12,2432755-120307,"1,540.00",PRATTS TAXIS.
Children and Young Peoples Services,CYPS - Local Authority,Transport,230007,Contract Hire,05-Apr-12,2432756-213,"1,305.00",PREMIER PRIVATE HIRE.
Children and Young Peoples Services,CYPS - Local Authority,Transport,230007,Contract Hire,05-Apr-12,2432756-214,"1,081.88",PREMIER PRIVATE HIRE.
Children and Young Peoples Services,CYPS - Local Authority,Transport,230007,Contract Hire,05-Apr-12,2432780-12,"2,170.08",RAYNERS COACHES.
Children and Young Peoples Services,CYPS - Local Authority,Transport,230007,Contract Hire,05-Apr-12,2432780-12MAR12,"2,741.20",RAYNERS COACHES.
Children and Young Peoples Services,CYPS - Local Authority,Construction Work,908105,Construction work,05-Apr-12,2432812-437/03/12,"1,549.44",SAFE STRIP UK LTD.
Children and Young Peoples Services,CYPS - Local Authority,Transport,230007,Contract Hire,05-Apr-12,2432840-41399MAR12,"1,708.96",SHOTTON PRIVATE HIRE.
Children and Young Peoples Services,CYPS - Local Authority,Transport,230007,Contract Hire,05-Apr-12,2432852-04403,"1,092.30",SMILERS TAXIS.
Children and Young Peoples Services,CYPS - Local Authority,Transport,230007,Contract Hire,05-Apr-12,2432852-2403,"1,294.48",SMILERS TAXIS.
Children and Young Peoples Services,CYPS - Local Authority,Transport,230007,Contract Hire,05-Apr-12,2432852-520312,638,SMILERS TAXIS.
Children and Young Peoples Services,CYPS - Local Authority,Transport,230007,Contract Hire,05-Apr-12,2432852-AO6903,"1,210.00",SMILERS TAXIS.
Children and Young Peoples Services,CYPS - Local Authority,Transport,230007,Contract Hire,05-Apr-12,2432858-19,"2,083.36",SOUTH HETTON PRIVATE HIRE.
Children and Young Peoples Services,CYPS - Local Authority,Third Party Payments,425040,Rendered by Voluntary Organisations,05-Apr-12,2432859-12017406,"2,450.00",SOUTH TYNESIDE COUNCIL.
Children and Young Peoples Services,CYPS - Local Authority,Construction Work,908105,Construction work,05-Apr-12,2432894-INS1-G-J,"416,665.49",SURGO CONSTRUCTION LTD.
Children and Young Peoples Services,CYPS - Local Authority,Third Party Payments,425040,Rendered by Voluntary Organisations,05-Apr-12,2432896-109206,901,SWIIS FOSTER CARE LTD.
Children and Young Peoples Services,CYPS - Local Authority,Third Party Payments,425040,Rendered by Voluntary Organisations,05-Apr-12,2432896-109214,892,SWIIS FOSTER CARE LTD.
Children and Young Peoples Services,CYPS - Local Authority,Employees,80025,Agency Staff,05-Apr-12,2432910-729693,925,TEACHING PERSONNEL LTD.
Children and Young Peoples Services,CYPS - Local Authority,Employees,80025,Agency Staff,05-Apr-12,2432910-729696,600,TEACHING PERSONNEL LTD.
Children and Young Peoples Services,CYPS - Local Authority,Third Party Payments,425040,Rendered by Voluntary Organisations,05-Apr-12,2432911-16447,"3,232.68",TEAM FOSTERING.
Children and Young Peoples Services,CYPS - Local Authority,Premises,125009,Rents,05-Apr-12,2432936-2046,700,THE WORK PLACE (AYCLIFFE) LTD.
Children and Young Peoples Services,Dedicated Schools Grant,Transport,230005,Contract Hire,05-Apr-12,2432115-0018,"1,488.00",ABC TAXIS.
Children and Young Peoples Services,Dedicated Schools Grant,Transport,230005,Contract Hire,05-Apr-12,2432121-06/12,"1,540.00",ADVANCE TRAVEL.
Children and Young Peoples Services,Dedicated Schools Grant,Supplies and Services,304245,Equipment and Materials,05-Apr-12,2432136-010430,"1,118.34",ALLISONS MACHINERY LTD.
Children and Young Peoples Services,Dedicated Schools Grant,Transport,230005,Contract Hire,05-Apr-12,2432157-RI0000290315,"43,640.64",ARVAL LTD.
Children and Young Peoples Services,Dedicated Schools Grant,Supplies and Services,338035,Services,05-Apr-12,2432166-20841356,"1,245.70",ASSESSMENT & QUALIFICATIONS ALLIANCE.
Children and Young Peoples Services,Dedicated Schools Grant,Transport,230005,Contract Hire,05-Apr-12,2432187-323,"1,710.00",BEELINE MINI BUSES.
Children and Young Peoples Services,Dedicated Schools Grant,Employees,80025,Agency Staff,05-Apr-12,2432232-03488880,995,CAPITA EDUCATION RESOURCING.
Children and Young Peoples Services,Dedicated Schools Grant,Third Party Payments,425005,Rendered by Voluntary Organisations,05-Apr-12,2432273-SFHL/005549,"8,160.00",CONTINUUM CARE & EDUCATION GROUP LTD.
Children and Young Peoples Services,Dedicated Schools Grant,Supplies and Services,338091,Services,05-Apr-12,2432288-7-30/3/12,"1,050.00",CRIMDON PONYWORLD.
Children and Young Peoples Services,Dedicated Schools Grant,Supplies and Services,384199,Miscellaneous Expenses,05-Apr-12,2432336-0000026796,630,EAST DURHAM COLLEGE.
Children and Young Peoples Services,Dedicated Schools Grant,Transport,230005,Contract Hire,05-Apr-12,2432485-I/N-064,"2,100.00",INSPIRED TRAINING CENTRE.
Children and Young Peoples Services,Dedicated Schools Grant,Transport,230005,Contract Hire,05-Apr-12,2432485-I/N-065,"2,200.00",INSPIRED TRAINING CENTRE.
Children and Young Peoples Services,Dedicated Schools Grant,Transport,230005,Contract Hire,05-Apr-12,2432504-WP0093MAR12,"1,490.00",JASPERS TAXIS.
Children and Young Peoples Services,Dedicated Schools Grant,Transport,230005,Contract Hire,05-Apr-12,2432524-SYC1,"1,211.00",JOVIAL PRIVATE HIRE.
Children and Young Peoples Services,Dedicated Schools Grant,Transport,230007,Contract Hire,05-Apr-12,2432534-00166,"2,240.00",KENNAS KABS.
Children and Young Peoples Services,Dedicated Schools Grant,Transport,230005,Contract Hire,05-Apr-12,2432554-I/N-100,"3,400.00",LIAM DINEEN T/A BOX CLEVER.
Children and Young Peoples Services,Dedicated Schools Grant,Transport,230005,Contract Hire,05-Apr-12,2432554-I/N-101,"3,500.00",LIAM DINEEN T/A BOX CLEVER.
Children and Young Peoples Services,Dedicated Schools Grant,Transport,230005,Contract Hire,05-Apr-12,2432570-41,"1,110.00",LORRAINES TAXIS.
Children and Young Peoples Services,Dedicated Schools Grant,Transport,230005,Contract Hire,05-Apr-12,2432578-12A,"8,000.00",MA BODDY.
Children and Young Peoples Services,Dedicated Schools Grant,Third Party Payments,410037,Rendered by Other Local Authorities,05-Apr-12,2432597-6228132,574.67,MIDDLESBROUGH BOROUGH COUNCIL.
Children and Young Peoples Services,Dedicated Schools Grant,Third Party Payments,410037,Rendered by Other Local Authorities,05-Apr-12,2432656-1800005906226,"50,993.28",NEWCASTLE UPON TYNE CITY COUNCIL.
Children and Young Peoples Services,Dedicated Schools Grant,Third Party Payments,410037,Rendered by Other Local Authorities,05-Apr-12,2432657-1800005906561,"11,508.90",NEWCASTLE UPON TYNE CITY COUNCIL.
Children and Young Peoples Services,Dedicated Schools Grant,Third Party Payments,410037,Rendered by Other Local Authorities,05-Apr-12,2432690-061033,"18,616.82",NORTHUMBERLAND COUNTY COUNCIL.
Children and Young Peoples Services,Dedicated Schools Grant,Transport,230007,Contract Hire,05-Apr-12,2432693-0001MAR12,625,NORTHVIEW PRIVATE HIRE.
Children and Young Peoples Services,Dedicated Schools Grant,Transport,230007,Contract Hire,05-Apr-12,2432755-120308,"1,192.00",PRATTS TAXIS.
Children and Young Peoples Services,Dedicated Schools Grant,Transport,230005,Contract Hire,05-Apr-12,2432755-120309,"1,414.00",PRATTS TAXIS.
Children and Young Peoples Services,Dedicated Schools Grant,Transport,230005,Contract Hire,05-Apr-12,2432961-33,"1,650.00",TRIDENT TAXIS.
Corporate Resources,Human Resources Total,Supplies and Services,352001,Conference Expenses,05-Apr-12,2432691-91129688,"1,236.00",NORTHUMBRIA UNIVERSITY.
Corporate Resources,ICT Services incl. Design and Print,"Vehicles, Equipment, Furniture and Fittings",912701,Computer equipment,05-Apr-12,2432484-11642693,"1,039.94",INSIGHT DIRECT (UK) LTD.
Corporate Resources,ICT Services incl. Design and Print,"Vehicles, Equipment, Furniture and Fittings",912701,Computer equipment,05-Apr-12,2433004-R303239,"1,213.50",XMA LTD.
Corporate Resources,Legal & Democratic Services,Creditors,952027,Creditor-lab grp-deds frm memb all,05-Apr-12,2432327-SUBS-10/11Q4,"2,855.16",DURHAM COUNTY COUNCIL LABOUR GROUP.
Corporate Resources,Legal & Democratic Services,Supplies and Services,372009,Subscriptions,05-Apr-12,2432553-SU2F75535,545,LEXISNEXIS BUTTERWORTHS.
Neighbourhood Services,Direct Services,Third Party Payments,430100,Rendered by Private Contractors,05-Apr-12,2432120-20899237-61,695.6,ADT FIRE & SECURITY PLC.
Neighbourhood Services,Direct Services,Stock,926900,Stock in hand-Inventory system,05-Apr-12,2432175-INV067938,760.1,AZTEC CHEMICALS LTD.
Neighbourhood Services,Direct Services,Third Party Payments,430100,Rendered by Private Contractors,05-Apr-12,2432189-46026381,"1,573.10",BELL TRUCK SALES LTD.
Neighbourhood Services,Direct Services,Supplies and Services,304357,Equipment and Materials,05-Apr-12,2432210-53042508,561,BRANDON HIRE PLC.
Neighbourhood Services,Direct Services,Transport,230005,Contract Hire,05-Apr-12,2432227-NEW8089869,501.6,BURNT TREE GROUP LTD.
Neighbourhood Services,Direct Services,Transport,230005,Contract Hire,05-Apr-12,2432227-NEW8089871,501.6,BURNT TREE GROUP LTD.
Neighbourhood Services,Direct Services,Third Party Payments,430100,Rendered by Private Contractors,05-Apr-12,2432227-NEW8089873,501.6,BURNT TREE GROUP LTD.
Neighbourhood Services,Direct Services,Transport,230014,Contract Hire,05-Apr-12,2432227-NEW8089898,523.6,BURNT TREE GROUP LTD.
Neighbourhood Services,Direct Services,Third Party Payments,430100,Rendered by Private Contractors,05-Apr-12,2432365-17272,563.23,ENTERPRISE ACCIDENT REPAIR CENTRE LTD.
Neighbourhood Services,Direct Services,Third Party Payments,430100,Rendered by Private Contractors,05-Apr-12,2432366-0000078633,799,ENVIROVENT LTD.
Neighbourhood Services,Direct Services,"Vehicles, Equipment, Furniture and Fittings",912529,Purchase-equipment,05-Apr-12,2432369-6684756,"12,888.00",ESE LTD (ENVIRONMENTAL SYSTEMS EXPERTISE)..
Neighbourhood Services,Direct Services,"Vehicles, Equipment, Furniture and Fittings",912529,Purchase-equipment,05-Apr-12,2432369-6684760,"12,888.00",ESE LTD (ENVIRONMENTAL SYSTEMS EXPERTISE)..
Neighbourhood Services,Direct Services,"Vehicles, Equipment, Furniture and Fittings",912529,Purchase-equipment,05-Apr-12,2432369-6684761,"12,888.00",ESE LTD (ENVIRONMENTAL SYSTEMS EXPERTISE)..
Neighbourhood Services,Direct Services,"Vehicles, Equipment, Furniture and Fittings",912529,Purchase-equipment,05-Apr-12,2432369-6684762,"12,888.00",ESE LTD (ENVIRONMENTAL SYSTEMS EXPERTISE)..
Neighbourhood Services,Direct Services,"Vehicles, Equipment, Furniture and Fittings",912529,Purchase-equipment,05-Apr-12,2432369-6684763,"12,888.00",ESE LTD (ENVIRONMENTAL SYSTEMS EXPERTISE)..
Neighbourhood Services,Direct Services,"Vehicles, Equipment, Furniture and Fittings",912529,Purchase-equipment,05-Apr-12,2432369-6684764,"12,888.00",ESE LTD (ENVIRONMENTAL SYSTEMS EXPERTISE)..
Neighbourhood Services,Direct Services,"Vehicles, Equipment, Furniture and Fittings",912529,Purchase-equipment,05-Apr-12,2432369-6684765,"12,888.00",ESE LTD (ENVIRONMENTAL SYSTEMS EXPERTISE)..
Neighbourhood Services,Direct Services,"Vehicles, Equipment, Furniture and Fittings",912529,Purchase-equipment,05-Apr-12,2432369-6684903,"12,888.00",ESE LTD (ENVIRONMENTAL SYSTEMS EXPERTISE)..
Neighbourhood Services,Direct Services,"Vehicles, Equipment, Furniture and Fittings",912529,Purchase-equipment,05-Apr-12,2432369-6684904,"12,888.00",ESE LTD (ENVIRONMENTAL SYSTEMS EXPERTISE)..
Neighbourhood Services,Direct Services,"Vehicles, Equipment, Furniture and Fittings",912529,Purchase-equipment,05-Apr-12,2432369-6684905,"12,888.00",ESE LTD (ENVIRONMENTAL SYSTEMS EXPERTISE)..
Neighbourhood Services,Direct Services,"Vehicles, Equipment, Furniture and Fittings",912529,Purchase-equipment,05-Apr-12,2432369-6684992,"12,888.00",ESE LTD (ENVIRONMENTAL SYSTEMS EXPERTISE)..
Neighbourhood Services,Direct Services,Stock,926004,Stock,05-Apr-12,2432405-216071214,"1,199.00",FUCHS LUBRICANTS (UK) PLC.
Neighbourhood Services,Direct Services,Transport,215005,Running Costs of Vehicles,05-Apr-12,2432411-7562523,"23,662.00",GB OILS T/A BRETT FUELS.
Neighbourhood Services,Direct Services,Transport,215005,Running Costs of Vehicles,05-Apr-12,2432411-7578801,"2,141.96",GB OILS T/A BRETT FUELS.
Neighbourhood Services,Direct Services,Transport,215005,Running Costs of Vehicles,05-Apr-12,2432411-7612101,"22,323.10",GB OILS T/A BRETT FUELS.
Neighbourhood Services,Direct Services,Transport,215005,Running Costs of Vehicles,05-Apr-12,2432411-7612818,712.15,GB OILS T/A BRETT FUELS.
Neighbourhood Services,Direct Services,Premises,145009,Cleaning and Domestic Supplies,05-Apr-12,2432482-12729037,852.78,INITIAL WASHROOM SOLUTIONS.
Neighbourhood Services,Direct Services,Transport,210057,Repair and Maintenance of Vehicles,05-Apr-12,2432521-60904817,616.49,JOHNSTON SWEEPERS LTD.
Neighbourhood Services,Direct Services,Supplies and Services,324117,Provisions,05-Apr-12,2432525-K64065,918.14,JR HOLLAND FOOD SERVICES LTD.
Neighbourhood Services,Direct Services,Debtors,930046,Debtor-leasing,05-Apr-12,2432683-225341,"20,768.00",NORTH EAST TRUCK & VAN LTD.
Neighbourhood Services,Direct Services,Debtors,930046,Debtor-leasing,05-Apr-12,2432683-225342,"20,768.00",NORTH EAST TRUCK & VAN LTD.
Neighbourhood Services,Direct Services,Stock,926900,Stock in hand-Inventory system,05-Apr-12,2432688-0251402,651.66,NORTHERN TOOLS & ACCESSORIES.
Neighbourhood Services,Direct Services,Transport,230005,Contract Hire,05-Apr-12,2432689-SL00971210INV,550,NORTHGATE VEHICLE HIRE LTD.
Neighbourhood Services,Direct Services,Transport,230005,Contract Hire,05-Apr-12,2432689-SL01024083INV,525,NORTHGATE VEHICLE HIRE LTD.
Neighbourhood Services,Direct Services,Third Party Payments,430100,Rendered by Private Contractors,05-Apr-12,2432689-SL01075896INV,510.4,NORTHGATE VEHICLE HIRE LTD.
Neighbourhood Services,Direct Services,Supplies and Services,304221,Equipment and Materials,05-Apr-12,2433000-70773264,"2,689.91",WOLSELEY UK LTD.
Neighbourhood Services,Direct Services,Supplies and Services,304221,Equipment and Materials,05-Apr-12,2433000-71658575,541.35,WOLSELEY UK LTD.
Neighbourhood Services,Projects and Business services,Supplies and Services,304999,Equipment and Materials,05-Apr-12,2433004-R294315,"5,536.00",XMA LTD.
Neighbourhood Services,Sport & Leisure,Employees,80025,Agency Staff,05-Apr-12,2432251-1800018614,"4,822.71",CHURCH COMMISSIONERS.
Neighbourhood Services,Sport & Leisure,Employees,80025,Agency Staff,05-Apr-12,2432251-1800020236,"4,801.62",CHURCH COMMISSIONERS.
Neighbourhood Services,Sport & Leisure,Employees,80025,Agency Staff,05-Apr-12,2432251-1800022129,"4,801.62",CHURCH COMMISSIONERS.
Neighbourhood Services,Sport & Leisure,Employees,80025,Agency Staff,05-Apr-12,2432251-1800023978,"4,801.62",CHURCH COMMISSIONERS.
Neighbourhood Services,Sport & Leisure,Supplies and Services,384956,Miscellaneous Expenses,05-Apr-12,2432730-3453225,"5,895.93",PERFORMING RIGHTS SOCIETY LTD.
Neighbourhood Services,Sport & Leisure,Supplies and Services,304221,Equipment and Materials,05-Apr-12,2432765-103086,"2,995.00",PROEL (INTERNATIONAL) LTD.
Neighbourhood Services,Technical Services,Supplies and Services,304221,Equipment and Materials,05-Apr-12,2432125-16175052,"1,088.94",AGGREGATE INDUSTRIES UK LTD.
Neighbourhood Services,Technical Services,Supplies and Services,304221,Equipment and Materials,05-Apr-12,2432125-16175054,988.74,AGGREGATE INDUSTRIES UK LTD.
Neighbourhood Services,Technical Services,Supplies and Services,304221,Equipment and Materials,05-Apr-12,2432125-16175055,986.74,AGGREGATE INDUSTRIES UK LTD.
Neighbourhood Services,Technical Services,Supplies and Services,304221,Equipment and Materials,05-Apr-12,2432125-16175058,"12,310.81",AGGREGATE INDUSTRIES UK LTD.
Neighbourhood Services,Technical Services,Supplies and Services,304221,Equipment and Materials,05-Apr-12,2432125-16196840,761.51,AGGREGATE INDUSTRIES UK LTD.
Neighbourhood Services,Technical Services,Supplies and Services,304221,Equipment and Materials,05-Apr-12,2432125-16196841,"10,187.20",AGGREGATE INDUSTRIES UK LTD.
Neighbourhood Services,Technical Services,Supplies and Services,304221,Equipment and Materials,05-Apr-12,2432125-16196842,679.15,AGGREGATE INDUSTRIES UK LTD.
Neighbourhood Services,Technical Services,Supplies and Services,304221,Equipment and Materials,05-Apr-12,2432125-16204405,822.62,AGGREGATE INDUSTRIES UK LTD.
Neighbourhood Services,Technical Services,Supplies and Services,304221,Equipment and Materials,05-Apr-12,2432125-16204406,"1,776.66",AGGREGATE INDUSTRIES UK LTD.
Neighbourhood Services,Technical Services,Supplies and Services,304221,Equipment and Materials,05-Apr-12,2432125-16204407,"3,949.02",AGGREGATE INDUSTRIES UK LTD.
Neighbourhood Services,Technical Services,Supplies and Services,304221,Equipment and Materials,05-Apr-12,2432125-16212068,"1,062.07",AGGREGATE INDUSTRIES UK LTD.
Neighbourhood Services,Technical Services,Supplies and Services,304221,Equipment and Materials,05-Apr-12,2432125-16212160,"11,277.93",AGGREGATE INDUSTRIES UK LTD.
Neighbourhood Services,Technical Services,Supplies and Services,304221,Equipment and Materials,05-Apr-12,2432125-16212161,856.02,AGGREGATE INDUSTRIES UK LTD.
Neighbourhood Services,Technical Services,Supplies and Services,304221,Equipment and Materials,05-Apr-12,2432125-16212162,586.25,AGGREGATE INDUSTRIES UK LTD.
Neighbourhood Services,Technical Services,Supplies and Services,304221,Equipment and Materials,05-Apr-12,2432125-16212165,"9,445.29",AGGREGATE INDUSTRIES UK LTD.
Neighbourhood Services,Technical Services,Supplies and Services,304221,Equipment and Materials,05-Apr-12,2432125-16212167,"2,294.55",AGGREGATE INDUSTRIES UK LTD.
Neighbourhood Services,Technical Services,Supplies and Services,304221,Equipment and Materials,05-Apr-12,2432125-16212169,"1,064.58",AGGREGATE INDUSTRIES UK LTD.
Neighbourhood Services,Technical Services,Supplies and Services,304358,Equipment and Materials,05-Apr-12,2432143-2702,650,ANDREW HARDY CONSTRUCTION.
Neighbourhood Services,Technical Services,Supplies and Services,304358,Equipment and Materials,05-Apr-12,2432143-2703,784,ANDREW HARDY CONSTRUCTION.
